Workbook

Sheet Notes
A1: TheQuotientTransform.xlsm
A2: Coded beginning 2014-Jun-04 by Ronald McAllister (rpmac_xltt@sprynet.com)
A4: This Workbook demonstrates an EXCEL version of the ideas presented
A5: by John F. Ehlers in an article titled "The Quotient Transform"
A6: which appears in the August 2014 issue of
A7: "Technical Analysis of Stocks and Commodities" magazine.
A9: Change Log:
A11: CalculationsAndCharts construction Notes:
A13: Data for this EXCEL example:
B14: Download from Yahoo finance, symbol SPY.
C15: Figure 3 from the article can be replicated using dates 08/29/2012 thru 10/09/2013.
C16: With controls:
C17: Quotient 1 parms set to 0.9, 20, 100
C18: Quotient 2 parms set to 0.4, 20, 100
C20: If you would like to explore the Quotient Transform in a downtrending period
C21: you can do so using SPY with dates 11/12/99 thru 11/22/02.
C23: For down trends Mr Ehlers suggests negative linearity control values:
C24: Quotient 1 parms set to -0.9, 20, 100
C25: Quotient 2 parms set to -40.4, 20, 100
C27: With these settings, the signals are inverted.
C28: Enter a short position when Quotient 1 goes below zero.
C29: Exit the position when quotient 2 crosses above zero.
A31: Development Notes:
A32: 1 | C32: This workbook contains and uses VBA macros.
A33: 2 | C33: Input Data
C34: The data in this workbook is sorted date descending (most recent date at the top). All formulas and
C35: VBA routines are built accordingly.
A37: Calculation and Chart Worksheet Usage Comments:
A38: 1 | C38: In General, Items in Bolded BLUE are items you may freely change to play what-if games.
C39: Be sure to have a backup copy of the spreadsheet before you alter anything else.
A40: 2 | C40: Several of the column formulas begin with "IF" logic that determines when there is sufficient data
C41: available for the subsequent calculations to be relevant. The cell will calculate to blank or the
C42: result of the calculation.
C43: In a couple of cases, this "IF" logic also sets starter values for subsequent smoothing calculations.
A44: 3 | C44: Data windowing can be performed by changing cell A11. Positive values logically "Pan" the
C45: data window represented by the Calculation sheet down the input sheet and back in time.
C46: This can have two side effects: First, data may fall outside of the fixed Y-axis scales and be clipped
C47: or fall well inside the Y-axis scales wasting a lot of chart vertical space. Second, you may move far
C48: enough back that you do not have sufficient data points to fill the left of the chart.
A49: 4 | C49: The VBA macros behind the SetChart button address these Data Windowing problems and also
C50: resizes and vertically aligns all charts on the work sheet to match the Price chart and then
C51: horizontally adjusts the X-axis positions of all charts on the work sheet so that the corresponding
C52: data points align vertically.
C53: The macros behind the SetChart button are sensitive to the user control values in cells A11 and
C54: A12, and also uses the computed values in cells A8, F11, and F12

Sheet InputPriceData
A1: SPDR S&P 500 (SPY) -PCX (Daily)
A2: Last Trade: | B2: 2014-06-04 | C2: 192.47 | D2: 193.3 | E2: 192.265 | F2: 193.19 | G2: 55529372 | H2: 4:00pm | L2: Notes: | M2: Online Yahoo Finance Query Interfaces used in the VBA code to obtain this data:
A3: Request Online Yahoo History for: | M3: A.) Price History Only: "http://ichart.finance.yahoo.com/table.csv"
A4: Symbol | B4: SPY | D4: Valid | M4: B.) Price History w/ imbedded divs n splits: "http://ichart.finance.yahoo.com/x"
A5: From | B5: 1977-01-07 | D5: Data
A6: To | B6: =TODAY() -> 2014-06-09 | D6: Types | E6: =VLOOKUP(B7,D7:E10,2,FALSE) -> d | M6: C.) Fundamentals (in this case name and exchange):
A7: Data Type | B7: Daily | D7: Daily | E7: d | M7: "http://download.finance.yahoo.com/d/quotes.csv?"
D8: Weekly | E8: w | M8: For some how-to doc regarding this particular interface, including a list of the
A9: Available Data | D9: Monthly | E9: m | M9: specific fields you can include in a request to this interface see:
A10: Bar Count: | B10: =COUNTA(B15:B53583)-1 -> 5376 | M10: http://www.gummy-stuff.org/Yahoo-data.htm
A11: From: | B11: =IF(B10<=0,"",OFFSET(B15,B10,IF(HistReqDataType="v",1,0),1,1)) -> 1993-01-29 | M11: This web site includes a downloadable working EXCEL/VBA example | W11: Trailing 12 Month Dividend Returns
A12: To: | B12: =IF(B10<=0,"",IF(HistReqDataType="v",OFFSET(B15,2,1,1,1),OFFSET(B15,1,0,1,1))) -> 2014-06-04 | M12: of the capabilities of this interface. | W12: Raw Close price on Dividend date | X12: Looking for year ago Div date | Y12: Year ago Div Date we found | Z12: row offset to year ago div Date | AA12: Same month flag | AB12: Trailing 12 Div Total | AC12: Trailing 12 Div return
Q13: Split History | S13: =COUNT(Q16:Q10996) -> 0 | T13: Running | U13: Dividend History
B14: Raw Data Values | H14: Adjusted | I14: Price Adjust | J14: Vol Adjust | K14: Adjusted Values | P14: Last | Q14: Effective | R14: Shares | T14: Vol Adjust | V14: =COUNT(U16:U10996) -> 89
A15: RelRow | B15: Date | C15: Open | D15: High | E15: Low | F15: Close | G15: Volume | H15: Close | I15: Factor | J15: Factor | K15: Open | L15: High | M15: Low | N15: Close | O15: Volume | P15: Trade | Q15: 41795 | R15: New | S15: Old | T15: 1 | U15: Date | V15: $ / Share
A16: 1 | B16: 2014-06-04 | C16: 192.47 | D16: 193.3 | E16: 192.27 | F16: 193.19 | G16: 55481800 | H16: 193.19 | I16: =H16/F16 -> 1 | J16: =INDEX(OFFSET($T$15,0,0,$S$13+1,1),MATCH(B16,OFFSET($Q$15,0,0,$S$13+1,1),-1)) -> 1 | K16: =ROUND($I16*C16,2) -> 192.47 | L16: =ROUND($I16*D16,2) -> 193.3 | M16: 192.27 | N16: 193.19 | O16: =G16*J16 -> 55481800 | U16: 2014-03-21 | V16: 0.825 | W16: =(INDEX(OFFSET($F$15,1,0,$B$10,1),MATCH(U16,OFFSET($B$15,1,0,$B$10,1),-1))) -> 186.2 | X16: =IF(MONTH(DATE(YEAR(U16)-1,MONTH(U16),DAY(U16)))<>MONTH(U16),DATE(YEAR(U16)-1,MONTH(U16),DAY(U16-1)),DATE(YEAR(U16)-1,MONTH(U16),DAY(U16))) -> 2013-03-21 | Y16: =OFFSET(U15,Z16,0,1,1) -> 2013-06-21 | Z16: =MATCH(X16,OFFSET($U$15,A16,0,$V$14+1-A16,1),-1) -> 4 | AA16: =IF(MONTH(U16)=MONTH(Y16),1,0) -> 0 | AB16: =(V16+IFERROR(SUM(OFFSET(V16,1,0,Z16-AA16-1,1)),0)) -> 3.482 | AC16: =(V16+IFERROR(SUM(OFFSET(V16,1,0,Z16-AA16-1,1)),0))/(INDEX(OFFSET($F$15,1,0,$B$10,1),MATCH(U16,OFFSET($B$15,1,0,$B$10,1),-1))) -> 0.01870032223
A17: 2 | B17: 2014-06-03 | C17: 192.43 | D17: 192.9 | E17: 192.25 | F17: 192.8 | G17: 65026900 | H17: 192.8 | I17: =H17/F17 -> 1 | J17: =INDEX(OFFSET($T$15,0,0,$S$13+1,1),MATCH(B17,OFFSET($Q$15,0,0,$S$13+1,1),-1)) -> 1 | K17: =ROUND($I17*C17,2) -> 192.43 | L17: =ROUND($I17*D17,2) -> 192.9 | M17: =ROUND($I17*E17,2) -> 192.25 | N17: =ROUND($I17*F17,2) -> 192.8 | O17: =G17*J17 -> 65026900 | U17: 2013-12-20 | V17: 0.98 | W17: =(INDEX(OFFSET($F$15,1,0,$B$10,1),MATCH(U17,OFFSET($B$15,1,0,$B$10,1),-1))) -> 181.56 | X17: =IF(MONTH(DATE(YEAR(U17)-1,MONTH(U17),DAY(U17)))<>MONTH(U17),DATE(YEAR(U17)-1,MONTH(U17),DAY(U17-1)),DATE(YEAR(U17)-1,MONTH(U17),DAY(U17))) -> 2012-12-20 | Y17: =OFFSET(U16,Z17,0,1,1) -> 2012-12-21 | Z17: =MATCH(X17,OFFSET($U$15,A17,0,$V$14+1-A17,1),-1) -> 5 | AA17: =IF(MONTH(U17)=MONTH(Y17),1,0) -> 1 | AB17: =(V17+IFERROR(SUM(OFFSET(V17,1,0,Z17-AA17-1,1)),0)) -> 3.351 | AC17: =(V17+IFERROR(SUM(OFFSET(V17,1,0,Z17-AA17-1,1)),0))/(INDEX(OFFSET($F$15,1,0,$B$10,1),MATCH(U17,OFFSET($B$15,1,0,$B$10,1),-1))) -> 0.01845670853
A18: 3 | B18: 2014-06-02 | C18: 192.95 | D18: 192.99 | E18: 191.97 | F18: 192.9 | G18: 64220900 | H18: 192.9 | I18: 1 | J18: 1 | K18: 192.95 | L18: 192.99 | M18: 191.97 | N18: 192.9 | O18: 64220900 | U18: 2013-09-20 | V18: 0.838 | W18: 170.72 | X18: 2012-09-20 | Y18: 2012-09-21 | Z18: 5 | AA18: 1 | AB18: 3.393 | AC18: 0.01987464855
A19: 4 | B19: 2014-05-30 | C19: 192.19 | D19: 192.8 | E19: 192.03 | F19: 192.68 | G19: 76316000 | H19: 192.68 | I19: 1 | J19: 1 | K19: 192.19 | L19: 192.8 | M19: 192.03 | N19: 192.68 | O19: 76316000 | U19: 2013-06-21 | V19: 0.839 | W19: 159.07 | X19: 2012-06-21 | Y19: 2012-09-21 | Z19: 4 | AA19: 0 | AB19: 3.334 | AC19: 0.02095932608
A20: 5 | B20: 2014-05-29 | C20: 191.82 | D20: 192.4 | E20: 191.33 | F20: 192.37 | G20: 64377000 | H20: 192.37 | I20: 1 | J20: 1 | K20: 191.82 | L20: 192.4 | M20: 191.33 | N20: 192.37 | O20: 64377000 | U20: 2013-03-15 | V20: 0.694 | W20: 155.83 | X20: 2012-03-15 | Y20: 2012-03-16 | Z20: 5 | AA20: 1 | AB20: 3.183 | AC20: 0.02042610537
A21: 6 | B21: 2014-05-28 | C21: 191.52 | D21: 191.82 | E21: 191.06 | F21: 191.38 | G21: 66723000 | H21: 191.38 | I21: 1 | J21: 1 | K21: 191.52 | L21: 191.82 | M21: 191.06 | N21: 191.38 | O21: 66723000 | U21: 2012-12-21 | V21: 1.022 | W21: 142.79 | X21: 2011-12-21 | Y21: 2012-03-16 | Z21: 4 | AA21: 0 | AB21: 3.103 | AC21: 0.02173121367
A22: 7 | B22: 2014-05-27 | C22: 191.06 | D22: 191.58 | E22: 190.95 | F22: 191.52 | G22: 72010000 | H22: 191.52 | I22: 1 | J22: 1 | K22: 191.06 | L22: 191.58 | M22: 190.95 | N22: 191.52 | O22: 72010000 | U22: 2012-09-21 | V22: 0.779 | W22: 145.87 | X22: 2011-09-21 | Y22: 2011-12-16 | Z22: 4 | AA22: 0 | AB22: 2.851 | AC22: 0.01954480016
A23: 8 | B23: 2014-05-23 | C23: 189.76 | D23: 190.48 | E23: 189.59 | F23: 190.35 | G23: 61092800 | H23: 190.35 | I23: 1 | J23: 1 | K23: 189.76 | L23: 190.48 | M23: 189.59 | N23: 190.35 | O23: 61092800 | U23: 2012-06-15 | V23: 0.688 | W23: 134.14 | X23: 2011-06-15 | Y23: 2011-06-17 | Z23: 5 | AA23: 1 | AB23: 2.697 | AC23: 0.02010585955
A24: 9 | B24: 2014-05-22 | C24: 189.18 | D24: 189.98 | E24: 188.86 | F24: 189.59 | G24: 61549000 | H24: 189.59 | I24: 1 | J24: 1 | K24: 189.18 | L24: 189.98 | M24: 188.86 | N24: 189.59 | O24: 61549000 | U24: 2012-03-16 | V24: 0.614 | W24: 140.3 | X24: 2011-03-16 | Y24: 2011-03-18 | Z24: 5 | AA24: 1 | AB24: 2.637 | AC24: 0.01879543835
A25: 10 | B25: 2014-05-21 | C25: 188.09 | D25: 189.22 | E25: 188.06 | F25: 189.13 | G25: 89093000 | H25: 189.13 | I25: 1 | J25: 1 | K25: 188.09 | L25: 189.22 | M25: 188.06 | N25: 189.13 | O25: 89093000 | U25: 2011-12-16 | V25: 0.77 | W25: 121.59 | X25: 2010-12-16 | Y25: 2010-12-17 | Z25: 5 | AA25: 1 | AB25: 2.576 | AC25: 0.02118595279
A26: 11 | B26: 2014-05-20 | C26: 188.65 | D26: 188.67 | E26: 187.07 | F26: 187.55 | G26: 111644000 | H26: 187.55 | I26: 1 | J26: 1 | K26: 188.65 | L26: 188.67 | M26: 187.07 | N26: 187.55 | O26: 111644000 | U26: 2011-09-16 | V26: 0.625 | W26: 121.52 | X26: 2010-09-16 | Y26: 2010-09-17 | Z26: 5 | AA26: 1 | AB26: 2.459 | AC26: 0.02023535221
A27: 12 | B27: 2014-05-19 | C27: 187.69 | D27: 188.89 | E27: 187.52 | F27: 188.74 | G27: 63839000 | H27: 188.74 | I27: 1 | J27: 1 | K27: 187.69 | L27: 188.89 | M27: 187.52 | N27: 188.74 | O27: 63839000 | U27: 2011-06-17 | V27: 0.628 | W27: 127.05 | X27: 2010-06-17 | Y27: 2010-06-18 | Z27: 5 | AA27: 1 | AB27: 2.436 | AC27: 0.01917355372
A28: 13 | B28: 2014-05-16 | C28: 187.51 | D28: 188.13 | E28: 186.72 | F28: 188.05 | G28: 97458000 | H28: 188.05 | I28: 1 | J28: 1 | K28: 187.51 | L28: 188.13 | M28: 186.72 | N28: 188.05 | O28: 97458000 | U28: 2011-03-18 | V28: 0.553 | W28: 127.76 | X28: 2010-03-18 | Y28: 2010-03-19 | Z28: 5 | AA28: 1 | AB28: 2.339 | AC28: 0.01830776456
A29: 14 | B29: 2014-05-15 | C29: 188.68 | D29: 188.72 | E29: 186.48 | F29: 187.4 | G29: 154956000 | H29: 187.4 | I29: 1 | J29: 1 | K29: 188.68 | L29: 188.72 | M29: 186.48 | N29: 187.4 | O29: 154956000 | U29: 2010-12-17 | V29: 0.653 | W29: 124.3 | X29: 2009-12-17 | Y29: 2009-12-18 | Z29: 5 | AA29: 1 | AB29: 2.266 | AC29: 0.0182300885
A30: 15 | B30: 2014-05-14 | C30: 189.79 | D30: 189.88 | E30: 188.79 | F30: 189.06 | G30: 72367000 | H30: 189.06 | I30: 1 | J30: 1 | K30: 189.79 | L30: 189.88 | M30: 188.79 | N30: 189.06 | O30: 72367000 | U30: 2010-09-17 | V30: 0.602 | W30: 112.49 | X30: 2009-09-17 | Y30: 2009-09-18 | Z30: 5 | AA30: 1 | AB30: 2.203 | AC30: 0.01958396302
A31: 16 | B31: 2014-05-13 | C31: 190.04 | D31: 190.42 | E31: 189.77 | F31: 189.96 | G31: 66454000 | H31: 189.96 | I31: 1 | J31: 1 | K31: 190.04 | L31: 190.42 | M31: 189.77 | N31: 189.96 | O31: 66454000 | U31: 2010-06-18 | V31: 0.531 | W31: 111.73 | X31: 2009-06-18 | Y31: 2009-06-19 | Z31: 5 | AA31: 1 | AB31: 2.109 | AC31: 0.01887586145
A32: 17 | B32: 2014-05-12 | C32: 188.8 | D32: 189.88 | E32: 188 | F32: 189.79 | G32: 86940000 | H32: 189.79 | I32: 1 | J32: 1 | K32: 188.8 | L32: 189.88 | M32: 188 | N32: 189.79 | O32: 86940000 | U32: 2010-03-19 | V32: 0.48 | W32: 115.97 | X32: 2009-03-19 | Y32: 2009-03-20 | Z32: 5 | AA32: 1 | AB32: 2.096 | AC32: 0.01807363973
A33: 18 | B33: 2014-05-09 | C33: 187.71 | D33: 188.04 | E33: 186.83 | F33: 187.96 | G33: 83679000 | H33: 187.96 | I33: 1 | J33: 1 | K33: 187.71 | L33: 188.04 | M33: 186.83 | N33: 187.96 | O33: 83679000 | U33: 2009-12-18 | V33: 0.59 | W33: 110.21 | X33: 2008-12-18 | Y33: 2008-12-19 | Z33: 5 | AA33: 1 | AB33: 2.177 | AC33: 0.01975319844
A34: 19 | B34: 2014-05-08 | C34: 187.71 | D34: 189.05 | E34: 187.08 | F34: 187.68 | G34: 93618000 | H34: 187.68 | I34: 1 | J34: 1 | K34: 187.71 | L34: 189.05 | M34: 187.08 | N34: 187.68 | O34: 93618000 | U34: 2009-09-18 | V34: 0.508 | W34: 106.72 | X34: 2008-09-18 | Y34: 2008-09-19 | Z34: 5 | AA34: 1 | AB34: 2.306 | AC34: 0.02160794603
A35: 20 | B35: 2014-05-07 | C35: 187.41 | D35: 187.97 | E35: 186.01 | F35: 187.88 | G35: 106500000 | H35: 187.88 | I35: 1 | J35: 1 | K35: 187.41 | L35: 187.97 | M35: 186.01 | N35: 187.88 | O35: 106500000 | U35: 2009-06-19 | V35: 0.518 | W35: 92.04 | X35: 2008-06-19 | Y35: 2008-06-20 | Z35: 5 | AA35: 1 | AB35: 2.489 | AC35: 0.02704259018
A36: 21 | B36: 2014-05-06 | C36: 188 | D36: 188.13 | E36: 186.74 | F36: 186.78 | G36: 85454000 | H36: 186.78 | I36: 1 | J36: 1 | K36: 188 | L36: 188.13 | M36: 186.74 | N36: 186.78 | O36: 85454000 | U36: 2009-03-20 | V36: 0.561 | W36: 76.71 | X36: 2008-03-20 | Y36: 2008-03-20 | Z36: 5 | AA36: 1 | AB36: 2.64 | AC36: 0.03441533047
A37: 22 | B37: 2014-05-05 | C37: 187.14 | D37: 188.55 | E37: 186.62 | F37: 188.42 | G37: 75883000 | H37: 188.42 | I37: 1 | J37: 1 | K37: 187.14 | L37: 188.55 | M37: 186.62 | N37: 188.42 | O37: 75883000 | U37: 2008-12-19 | V37: 0.719 | W37: 88.19 | X37: 2007-12-19 | Y37: 2007-12-21 | Z37: 5 | AA37: 1 | AB37: 2.721 | AC37: 0.0308538383
A38: 23 | B38: 2014-05-02 | C38: 188.31 | D38: 189.14 | E38: 187.78 | F38: 188.06 | G38: 98122000 | H38: 188.06 | I38: 1 | J38: 1 | K38: 188.31 | L38: 189.14 | M38: 187.78 | N38: 188.06 | O38: 98122000 | U38: 2008-09-19 | V38: 0.691 | W38: 124.12 | X38: 2007-09-19 | Y38: 2007-09-21 | Z38: 5 | AA38: 1 | AB38: 2.777 | AC38: 0.02237350951
A39: 24 | B39: 2014-05-01 | C39: 188.22 | D39: 188.84 | E39: 187.73 | F39: 188.33 | G39: 93019000 | H39: 188.33 | I39: 1 | J39: 1 | K39: 188.22 | L39: 188.84 | M39: 187.73 | N39: 188.33 | O39: 93019000 | U39: 2008-06-20 | V39: 0.669 | W39: 131.58 | X39: 2007-06-20 | Y39: 2007-09-21 | Z39: 4 | AA39: 0 | AB39: 2.805 | AC39: 0.02131782946
A40: 25 | B40: 2014-04-30 | C40: 187.44 | D40: 188.5 | E40: 187.18 | F40: 188.31 | G40: 101508000 | H40: 188.31 | I40: 1 | J40: 1 | K40: 187.44 | L40: 188.5 | M40: 187.18 | N40: 188.31 | O40: 101508000 | U40: 2008-03-20 | V40: 0.642 | W40: 132.08 | X40: 2007-03-20 | Y40: 2007-06-15 | Z40: 4 | AA40: 0 | AB40: 2.792 | AC40: 0.02113870382
A41: 26 | B41: 2014-04-29 | C41: 187.48 | D41: 188.04 | E41: 187.08 | F41: 187.75 | G41: 84098000 | H41: 187.75 | I41: 1 | J41: 1 | K41: 187.48 | L41: 188.04 | M41: 187.08 | N41: 187.75 | O41: 84098000 | U41: 2007-12-21 | V41: 0.775 | W41: 148.13 | X41: 2006-12-21 | Y41: 2007-03-16 | Z41: 4 | AA41: 0 | AB41: 2.701 | AC41: 0.01823398366
A42: 27 | B42: 2014-04-28 | C42: 187.05 | D42: 187.69 | E42: 184.96 | F42: 186.88 | G42: 135121000 | H42: 186.88 | I42: 1 | J42: 1 | K42: 187.05 | L42: 187.69 | M42: 184.96 | N42: 186.88 | O42: 135121000 | U42: 2007-09-21 | V42: 0.719 | W42: 151.97 | X42: 2006-09-21 | Y42: 2006-12-15 | Z42: 4 | AA42: 0 | AB42: 2.719 | AC42: 0.01789168915
A43: 28 | B43: 2014-04-25 | C43: 187.22 | D43: 187.33 | E43: 185.87 | F43: 186.29 | G43: 100380000 | H43: 186.29 | I43: 1 | J43: 1 | K43: 187.22 | L43: 187.33 | M43: 185.87 | N43: 186.29 | O43: 100380000 | U43: 2007-06-15 | V43: 0.656 | W43: 153.07 | X43: 2006-06-15 | Y43: 2006-06-16 | Z43: 5 | AA43: 1 | AB43: 2.579 | AC43: 0.01684850069
A44: 29 | B44: 2014-04-24 | C44: 188.37 | D44: 188.39 | E44: 186.93 | F44: 187.83 | G44: 88170000 | H44: 187.83 | I44: 1 | J44: 1 | K44: 188.37 | L44: 188.39 | M44: 186.93 | N44: 187.83 | O44: 88170000 | U44: 2007-03-16 | V44: 0.551 | W44: 138.53 | X44: 2006-03-16 | Y44: 2006-03-17 | Z44: 5 | AA44: 1 | AB44: 2.478 | AC44: 0.01788782213
A45: 30 | B45: 2014-04-23 | C45: 187.82 | D45: 187.92 | E45: 187.3 | F45: 187.45 | G45: 73869000 | H45: 187.45 | I45: 1 | J45: 1 | K45: 187.82 | L45: 187.92 | M45: 187.3 | N45: 187.45 | O45: 73869000 | U45: 2006-12-15 | V45: 0.793 | W45: 142.34 | X45: 2005-12-15 | Y45: 2005-12-16 | Z45: 5 | AA45: 1 | AB45: 2.446 | AC45: 0.01718420683
A46: 31 | B46: 2014-04-22 | C46: 187.23 | D46: 188.4 | E46: 187.13 | F46: 187.89 | G46: 85790000 | H46: 187.89 | I46: 1 | J46: 1 | K46: 187.23 | L46: 188.4 | M46: 187.13 | N46: 187.89 | O46: 85790000 | U46: 2006-09-15 | V46: 0.579 | W46: 131.96 | X46: 2005-09-15 | Y46: 2005-09-16 | Z46: 5 | AA46: 1 | AB46: 2.325 | AC46: 0.01761897545
A47: 32 | B47: 2014-04-21 | C47: 186.44 | D47: 187.1 | E47: 186.21 | F47: 187.04 | G47: 68329000 | H47: 187.04 | I47: 1 | J47: 1 | K47: 186.44 | L47: 187.1 | M47: 186.21 | N47: 187.04 | O47: 68329000 | U47: 2006-06-16 | V47: 0.555 | W47: 124.65 | X47: 2005-06-16 | Y47: 2005-06-17 | Z47: 5 | AA47: 1 | AB47: 2.268 | AC47: 0.01819494585
A48: 33 | B48: 2014-04-17 | C48: 185.88 | D48: 186.91 | E48: 185.56 | F48: 186.39 | G48: 105255000 | H48: 186.39 | I48: 1 | J48: 1 | K48: 185.88 | L48: 186.91 | M48: 185.56 | N48: 186.39 | O48: 105255000 | U48: 2006-03-17 | V48: 0.519 | W48: 130.62 | X48: 2005-03-17 | Y48: 2005-03-18 | Z48: 5 | AA48: 1 | AB48: 2.201 | AC48: 0.01685040576
A49: 34 | B49: 2014-04-16 | C49: 185.47 | D49: 186.14 | E49: 184.65 | F49: 186.13 | G49: 105197000 | H49: 186.13 | I49: 1 | J49: 1 | K49: 185.47 | L49: 186.14 | M49: 184.65 | N49: 186.13 | O49: 105197000 | U49: 2005-12-16 | V49: 0.672 | W49: 126.36 | X49: 2004-12-16 | Y49: 2004-12-17 | Z49: 5 | AA49: 1 | AB49: 2.149 | AC49: 0.01700696423
A50: 35 | B50: 2014-04-15 | C50: 183.32 | D50: 184.33 | E50: 181.51 | F50: 184.2 | G50: 157093000 | H50: 184.2 | I50: 1 | J50: 1 | K50: 183.32 | L50: 184.33 | M50: 181.51 | N50: 184.2 | O50: 157093000 | U50: 2005-09-16 | V50: 0.522 | W50: 123.5 | X50: 2004-09-16 | Y50: 2004-09-17 | Z50: 6 | AA50: 1 | AB50: 2.396 | AC50: 0.01940080972
A51: 36 | B51: 2014-04-14 | C51: 182.93 | D51: 183.37 | E51: 181.44 | F51: 182.94 | G51: 132382000 | H51: 182.94 | I51: 1 | J51: 1 | K51: 182.93 | L51: 183.37 | M51: 181.44 | N51: 182.94 | O51: 132382000 | U51: 2005-06-17 | V51: 0.488 | W51: 121.36 | X51: 2004-06-17 | Y51: 2004-06-18 | Z51: 6 | AA51: 1 | AB51: 2.343 | AC51: 0.01930619644
A52: 37 | B52: 2014-04-11 | C52: 182.14 | D52: 183.42 | E52: 181.31 | F52: 181.51 | G52: 167251000 | H52: 181.51 | I52: 1 | J52: 1 | K52: 182.14 | L52: 183.42 | M52: 181.31 | N52: 181.51 | O52: 167251000 | U52: 2005-03-18 | V52: 0.467 | W52: 118.54 | X52: 2004-03-18 | Y52: 2004-03-19 | Z52: 6 | AA52: 1 | AB52: 2.269 | AC52: 0.01914121815
A53: 38 | B53: 2014-04-10 | C53: 187.08 | D53: 187.17 | E53: 182.93 | F53: 183.16 | G53: 172959000 | H53: 183.16 | I53: 1 | J53: 1 | K53: 187.08 | L53: 187.17 | M53: 182.93 | N53: 183.16 | O53: 172959000 | U53: 2004-12-17 | V53: 0.568 | W53: 119.44 | X53: 2003-12-17 | Y53: 2003-12-19 | Z53: 6 | AA53: 1 | AB53: 2.197 | AC53: 0.01839417281
A54: 39 | B54: 2014-04-09 | C54: 185.6 | D54: 187.15 | E54: 185.06 | F54: 187.09 | G54: 100254000 | H54: 187.09 | I54: 1 | J54: 1 | K54: 185.6 | L54: 187.15 | M54: 185.06 | N54: 187.09 | O54: 100254000 | U54: 2004-11-15 | V54: 0.351 | W54: 118.73 | X54: 2003-11-15 | Y54: 2003-12-19 | Z54: 5 | AA54: 0 | AB54: 2.145 | AC54: 0.01806620062
A55: 40 | B55: 2014-04-08 | C55: 184.26 | D55: 185.4 | E55: 183.59 | F55: 185.1 | G55: 112660000 | H55: 185.1 | I55: 1 | J55: 1 | K55: 184.26 | L55: 185.4 | M55: 183.59 | N55: 185.1 | O55: 112660000 | U55: 2004-09-17 | V55: 0.469 | W55: 113.15 | X55: 2003-09-17 | Y55: 2003-09-19 | Z55: 5 | AA55: 1 | AB55: 1.794 | AC55: 0.01585505966
A56: 41 | B56: 2014-04-07 | C56: 185.95 | D56: 186.26 | E56: 183.96 | F56: 184.34 | G56: 140803000 | H56: 184.34 | I56: 1 | J56: 1 | K56: 185.95 | L56: 186.26 | M56: 183.96 | N56: 184.34 | O56: 140803000 | U56: 2004-06-18 | V56: 0.414 | W56: 113.63 | X56: 2003-06-18 | Y56: 2003-06-20 | Z56: 5 | AA56: 1 | AB56: 1.725 | AC56: 0.01518085013
A57: 42 | B57: 2014-04-04 | C57: 189.66 | D57: 189.7 | E57: 186.1 | F57: 186.4 | G57: 169381000 | H57: 186.4 | I57: 1 | J57: 1 | K57: 189.66 | L57: 189.7 | M57: 186.1 | N57: 186.4 | O57: 169381000 | U57: 2004-03-19 | V57: 0.395 | W57: 111.06 | X57: 2003-03-19 | Y57: 2003-03-21 | Z57: 5 | AA57: 1 | AB57: 1.671 | AC57: 0.01504592112
A58: 43 | B58: 2014-04-03 | C58: 189.17 | D58: 189.22 | E58: 188.05 | F58: 188.63 | G58: 77435000 | H58: 188.63 | I58: 1 | J58: 1 | K58: 189.17 | L58: 189.22 | M58: 188.05 | N58: 188.63 | O58: 77435000 | U58: 2003-12-19 | V58: 0.516 | W58: 108.9 | X58: 2002-12-19 | Y58: 2002-12-20 | Z58: 5 | AA58: 1 | AB58: 1.63 | AC58: 0.01496786042
A59: 44 | B59: 2014-04-02 | C59: 188.49 | D59: 189.13 | E59: 188.14 | F59: 188.88 | G59: 78774000 | H59: 188.88 | I59: 1 | J59: 1 | K59: 188.49 | L59: 189.13 | M59: 188.14 | N59: 188.88 | O59: 78774000 | U59: 2003-09-19 | V59: 0.4 | W59: 103.67 | X59: 2002-09-19 | Y59: 2002-09-20 | Z59: 5 | AA59: 1 | AB59: 1.55 | AC59: 0.01495128774
A60: 45 | B60: 2014-04-01 | C60: 187.62 | D60: 188.36 | E60: 187 | F60: 188.25 | G60: 89193000 | H60: 188.25 | I60: 1 | J60: 1 | K60: 187.62 | L60: 188.36 | M60: 187 | N60: 188.25 | O60: 89193000 | U60: 2003-06-20 | V60: 0.36 | W60: 99.44 | X60: 2002-06-20 | Y60: 2002-06-21 | Z60: 5 | AA60: 1 | AB60: 1.528 | AC60: 0.01536604988
A61: 46 | B61: 2014-03-31 | C61: 186.67 | D61: 187.3 | E61: 185.52 | F61: 187.01 | G61: 99745000 | H61: 187.01 | I61: 1 | J61: 1 | K61: 186.67 | L61: 187.3 | M61: 185.52 | N61: 187.01 | O61: 99745000 | U61: 2003-03-21 | V61: 0.354 | W61: 89.67 | X61: 2002-03-21 | Y61: 2002-06-21 | Z61: 4 | AA61: 0 | AB61: 1.521 | AC61: 0.01696219471
A62: 47 | B62: 2014-03-28 | C62: 185.11 | D62: 186.42 | E62: 185 | F62: 185.49 | G62: 101642000 | H62: 185.49 | I62: 1 | J62: 1 | K62: 185.11 | L62: 186.42 | M62: 185 | N62: 185.49 | O62: 101642000 | U62: 2002-12-20 | V62: 0.436 | W62: 89.99 | X62: 2001-12-20 | Y62: 2001-12-21 | Z62: 5 | AA62: 1 | AB62: 1.498 | AC62: 0.01664629403
A63: 48 | B63: 2014-03-27 | C63: 184.75 | D63: 185.34 | E63: 183.9 | F63: 184.58 | G63: 142383000 | H63: 184.58 | I63: 1 | J63: 1 | K63: 184.75 | L63: 185.34 | M63: 183.9 | N63: 184.58 | O63: 142383000 | U63: 2002-09-20 | V63: 0.378 | W63: 84.35 | X63: 2001-09-20 | Y63: 2001-09-21 | Z63: 5 | AA63: 1 | AB63: 1.455 | AC63: 0.01724955542
A64: 49 | B64: 2014-03-26 | C64: 187.04 | D64: 187.34 | E64: 184.92 | F64: 184.97 | G64: 119843000 | H64: 184.97 | I64: 1 | J64: 1 | K64: 187.04 | L64: 187.34 | M64: 184.92 | N64: 184.97 | O64: 119843000 | U64: 2002-06-21 | V64: 0.353 | W64: 99.28 | X64: 2001-06-21 | Y64: 2001-09-21 | Z64: 4 | AA64: 0 | AB64: 1.446 | AC64: 0.01456486704
A65: 50 | B65: 2014-03-25 | C65: 186.37 | D65: 186.94 | E65: 185.27 | F65: 186.31 | G65: 103852000 | H65: 186.31 | I65: 1 | J65: 1 | K65: 186.37 | L65: 186.94 | M65: 185.27 | N65: 186.31 | O65: 103852000 | U65: 2002-03-15 | V65: 0.331 | W65: 116.65 | X65: 2001-03-15 | Y65: 2001-03-16 | Z65: 5 | AA65: 1 | AB65: 1.439 | AC65: 0.01233604801
A66: 51 | B66: 2014-03-24 | C66: 186.84 | D66: 187.07 | E66: 184.62 | F66: 185.43 | G66: 121411000 | H66: 185.43 | I66: 1 | J66: 1 | K66: 186.84 | L66: 187.07 | M66: 184.62 | N66: 185.43 | O66: 121411000 | U66: 2001-12-21 | V66: 0.393 | W66: 114.95 | X66: 2000-12-21 | Y66: 2000-12-27 | Z66: 5 | AA66: 1 | AB66: 1.424 | AC66: 0.01238799478
A67: 52 | B67: 2014-03-21 | C67: 187.71 | D67: 189.02 | E67: 186.03 | F67: 186.2 | G67: 163128000 | H67: 186.2 | I67: 1 | J67: 1 | K67: 187.71 | L67: 189.02 | M67: 186.03 | N67: 186.2 | O67: 163128000 | U67: 2001-09-21 | V67: 0.369 | W67: 97.28 | X67: 2000-09-21 | Y67: 2000-12-15 | Z67: 5 | AA67: 0 | AB67: 1.442 | AC67: 0.01482319079
A68: 53 | B68: 2014-03-20 | C68: 186.25 | D68: 187.89 | E68: 185.92 | F68: 187.75 | G68: 117241000 | H68: 186.93 | I68: 0.99563249 | J68: 1 | K68: 185.44 | L68: 187.07 | M68: 185.11 | N68: 186.93 | O68: 117241000 | U68: 2001-06-15 | V68: 0.346 | W68: 121.85 | X68: 2000-06-15 | Y68: 2000-06-16 | Z68: 7 | AA68: 1 | AB68: 1.448 | AC68: 0.01188346327
A69: 54 | B69: 2014-03-19 | C69: 187.68 | D69: 187.94 | E69: 185.47 | F69: 186.66 | G69: 176267300 | H69: 185.84 | I69: 0.995606986 | J69: 1 | K69: 186.86 | L69: 187.11 | M69: 184.66 | N69: 185.84 | O69: 176267300 | U69: 2001-03-16 | V69: 0.316 | W69: 115.01 | X69: 2000-03-16 | Y69: 2000-03-17 | Z69: 7 | AA69: 1 | AB69: 1.45 | AC69: 0.01260759934
A70: 55 | B70: 2014-03-18 | C70: 186.71 | D70: 187.91 | E70: 186.51 | F70: 187.66 | G70: 101804600 | H70: 186.84 | I70: 0.9956303954 | J70: 1 | K70: 185.89 | L70: 187.09 | M70: 185.7 | N70: 186.84 | O70: 101804600 | U70: 2000-12-27 | V70: 0 | W70: 133.31 | X70: 1999-12-27 | Y70: 2000-03-17 | Z70: 6 | AA70: 0 | AB70: 1.505 | AC70: 0.01128947566
A71: 56 | B71: 2014-03-17 | C71: 185.59 | D71: 186.77 | E71: 185.51 | F71: 186.33 | G71: 98359500 | H71: 185.51 | I71: 0.9955992057 | J71: 1 | K71: 184.77 | L71: 185.95 | M71: 184.69 | N71: 185.51 | O71: 98359500 | U71: 2000-12-15 | V71: 0.411 | W71: 130.97 | X71: 1999-12-15 | Y71: 1999-12-17 | Z71: 6 | AA71: 1 | AB71: 1.505 | AC71: 0.01149118119
A72: 57 | B72: 2014-03-14 | C72: 184.85 | D72: 185.8 | E72: 184.44 | F72: 184.66 | G72: 153919600 | H72: 183.85 | I72: 0.9956135601 | J72: 1 | K72: 184.04 | L72: 184.98 | M72: 183.63 | N72: 183.85 | O72: 153919600 | U72: 2000-09-15 | V72: 0.375 | W72: 146 | X72: 1999-09-15 | Y72: 1999-09-17 | Z72: 6 | AA72: 1 | AB72: 1.442 | AC72: 0.009876712329
A73: 58 | B73: 2014-03-13 | C73: 187.84 | D73: 187.99 | E73: 184.66 | F73: 185.18 | G73: 155014300 | H73: 184.37 | I73: 0.9956258775 | J73: 1 | K73: 187.02 | L73: 187.17 | M73: 183.85 | N73: 184.37 | O73: 155014300 | U73: 2000-09-14 | V73: 0 | W73: 149.64 | X73: 1999-09-14 | Y73: 1999-09-17 | Z73: 5 | AA73: 1 | AB73: 1.067 | AC73: 0.007130446405
A74: 59 | B74: 2014-03-12 | C74: 186.32 | D74: 187.35 | E74: 185.9 | F74: 187.28 | G74: 104824400 | H74: 186.46 | I74: 0.9956215293 | J74: 1 | K74: 185.5 | L74: 186.53 | M74: 185.09 | N74: 186.46 | O74: 104824400 | U74: 2000-06-16 | V74: 0.348 | W74: 146.59 | X74: 1999-06-16 | Y74: 1999-06-18 | Z74: 5 | AA74: 1 | AB74: 1.439 | AC74: 0.009816494986
A75: 60 | B75: 2014-03-11 | C75: 188.44 | D75: 188.71 | E75: 186.8 | F75: 187.23 | G75: 99009100 | H75: 186.41 | I75: 0.99562036 | J75: 1 | K75: 187.61 | L75: 187.88 | M75: 185.98 | N75: 186.41 | O75: 99009100 | U75: 2000-03-17 | V75: 0.371 | W75: 146.94 | X75: 1999-03-17 | Y75: 1999-03-19 | Z75: 5 | AA75: 1 | AB75: 1.496 | AC75: 0.01018102627
A76: 61 | B76: 2014-03-10 | C76: 187.97 | D76: 188.23 | E76: 187.08 | F76: 188.16 | G76: 74939200 | H76: 187.33 | I76: 0.9955888605 | J76: 1 | K76: 187.14 | L76: 187.4 | M76: 186.25 | N76: 187.33 | O76: 74939200 | U76: 1999-12-17 | V76: 0.348 | W76: 142.69 | X76: 1998-12-17 | Y76: 1998-12-18 | Z76: 5 | AA76: 1 | AB76: 1.445 | AC76: 0.01012684841
A77: 62 | B77: 2014-03-07 | C77: 188.96 | D77: 188.96 | E77: 187.43 | F77: 188.26 | G77: 114513500 | H77: 187.43 | I77: 0.9955912037 | J77: 1 | K77: 188.13 | L77: 188.13 | M77: 186.6 | N77: 187.43 | O77: 114513500 | U77: 1999-09-17 | V77: 0.372 | W77: 133.75 | X77: 1998-09-17 | Y77: 1998-09-18 | Z77: 5 | AA77: 1 | AB77: 1.489 | AC77: 0.01113271028
A78: 63 | B78: 2014-03-06 | C78: 188.21 | D78: 188.61 | E78: 187.78 | F78: 188.18 | G78: 82516500 | H78: 187.35 | I78: 0.9955893294 | J78: 1 | K78: 187.38 | L78: 187.78 | M78: 186.95 | N78: 187.35 | O78: 82516500 | U78: 1999-06-18 | V78: 0.405 | W78: 134.31 | X78: 1998-06-18 | Y78: 1998-06-19 | Z78: 5 | AA78: 1 | AB78: 1.476 | AC78: 0.0109895019
A79: 64 | B79: 2014-03-05 | C79: 187.74 | D79: 188.07 | E79: 187.45 | F79: 187.75 | G79: 88376900 | H79: 186.93 | I79: 0.99563249 | J79: 1 | K79: 186.92 | L79: 187.25 | M79: 186.63 | N79: 186.93 | O79: 88376900 | U79: 1999-03-19 | V79: 0.32 | W79: 129.69 | X79: 1998-03-19 | Y79: 1998-03-20 | Z79: 5 | AA79: 1 | AB79: 1.423 | AC79: 0.01097231861
A80: 65 | B80: 2014-03-04 | C80: 186.79 | D80: 187.98 | E80: 186.75 | F80: 187.58 | G80: 167545900 | H80: 186.76 | I80: 0.9956285318 | J80: 1 | K80: 185.97 | L80: 187.16 | M80: 185.93 | N80: 186.76 | O80: 167545900 | U80: 1998-12-18 | V80: 0.392 | W80: 118.5 | X80: 1997-12-18 | Y80: 1997-12-19 | Z80: 5 | AA80: 1 | AB80: 1.416 | AC80: 0.01194936709
A81: 66 | B81: 2014-03-03 | C81: 184.65 | D81: 185.45 | E81: 183.75 | F81: 184.98 | G81: 167748500 | H81: 184.17 | I81: =H81/F81 -> 0.9956211482 | J81: =INDEX(OFFSET($T$15,0,0,$S$13+1,1),MATCH(B81,OFFSET($Q$15,0,0,$S$13+1,1),-1)) -> 1 | K81: =ROUND($I81*C81,2) -> 183.84 | L81: =ROUND($I81*D81,2) -> 184.64 | M81: =ROUND($I81*E81,2) -> 182.95 | N81: =ROUND($I81*F81,2) -> 184.17 | O81: =G81*J81 -> 167748500 | U81: 1998-09-18 | V81: 0.359 | W81: =(INDEX(OFFSET($F$15,1,0,$B$10,1),MATCH(U81,OFFSET($B$15,1,0,$B$10,1),-1))) -> 102.09 | X81: =IF(MONTH(DATE(YEAR(U81)-1,MONTH(U81),DAY(U81)))<>MONTH(U81),DATE(YEAR(U81)-1,MONTH(U81),DAY(U81-1)),DATE(YEAR(U81)-1,MONTH(U81),DAY(U81))) -> 1997-09-18 | Y81: =OFFSET(U80,Z81,0,1,1) -> 1997-09-19 | Z81: =MATCH(X81,OFFSET($U$15,A81,0,$V$14+1-A81,1),-1) -> 5 | AA81: =IF(MONTH(U81)=MONTH(Y81),1,0) -> 1 | AB81: =(V81+IFERROR(SUM(OFFSET(V81,1,0,Z81-AA81-1,1)),0)) -> 1.404 | AC81: =(V81+IFERROR(SUM(OFFSET(V81,1,0,Z81-AA81-1,1)),0))/(INDEX(OFFSET($F$15,1,0,$B$10,1),MATCH(U81,OFFSET($B$15,1,0,$B$10,1),-1))) -> 0.01375257126
A82: 67 | B82: 2014-02-28 | C82: 185.79 | D82: 187.15 | E82: 185.05 | F82: 186.29 | G82: 150842000 | H82: 185.47 | I82: 0.9955982608 | J82: 1 | K82: 184.97 | L82: 186.33 | M82: 184.24 | N82: 185.47 | O82: 150842000 | U82: 1998-06-19 | V82: 0.352 | W82: 110.06 | X82: 1997-06-19 | Y82: 1997-06-20 | Z82: 5 | AA82: 1 | AB82: 1.393 | AC82: 0.01265673269
A83: 68 | B83: 2014-02-27 | C83: 184.58 | D83: 185.87 | E83: 184.37 | F83: 185.82 | G83: 93880800 | H83: 185 | I83: 0.9955871273 | J83: 1 | K83: 183.77 | L83: 185.05 | M83: 183.56 | N83: 185 | O83: 93880800 | U83: 1998-03-20 | V83: 0.313 | W83: 109.88 | X83: 1997-03-20 | Y83: 1997-03-21 | Z83: 5 | AA83: 1 | AB83: 1.391 | AC83: 0.01265926465
A84: 69 | B84: 2014-02-26 | C84: 185.11 | D84: 185.6 | E84: 184.33 | F84: 184.85 | G84: 98677200 | H84: 184.04 | I84: 0.9956180687 | J84: 1 | K84: 184.3 | L84: 184.79 | M84: 183.52 | N84: 184.04 | O84: 98677200 | U84: 1997-12-19 | V84: 0.38 | W84: 94.78 | X84: 1996-12-19 | Y84: 1996-12-20 | Z84: 5 | AA84: 1 | AB84: 1.377 | AC84: 0.01452838152
A85: 70 | B85: 2014-02-25 | C85: 185.06 | D85: 185.59 | E85: 184.23 | F85: 184.84 | G85: 117085000 | H85: 184.03 | I85: 0.9956178316 | J85: 1 | K85: 184.25 | L85: 184.78 | M85: 183.42 | N85: 184.03 | O85: 117085000 | U85: 1997-09-19 | V85: 0.348 | W85: 95.03 | X85: 1996-09-19 | Y85: 1996-09-20 | Z85: 5 | AA85: 1 | AB85: 1.364 | AC85: 0.0143533621
A86: 71 | B86: 2014-02-24 | C86: 184.28 | D86: 186.15 | E86: 184.2 | F86: 184.91 | G86: 114063900 | H86: 184.1 | I86: 0.9956194906 | J86: 1 | K86: 183.47 | L86: 185.33 | M86: 183.39 | N86: 184.1 | O86: 114063900 | U86: 1997-06-20 | V86: 0.35 | W86: 89.58 | X86: 1996-06-20 | Y86: 1996-06-21 | Z86: 5 | AA86: 1 | AB86: 1.368 | AC86: 0.01527126591
A87: 72 | B87: 2014-02-21 | C87: 184.45 | D87: 184.89 | E87: 183.8 | F87: 183.89 | G87: 118116400 | H87: 183.08 | I87: 0.9955951928 | J87: 1 | K87: 183.64 | L87: 184.08 | M87: 182.99 | N87: 183.08 | O87: 118116400 | U87: 1997-03-21 | V87: 0.299 | W87: 78.44 | X87: 1996-03-21 | Y87: 1996-06-21 | Z87: 4 | AA87: 0 | AB87: 1.369 | AC87: 0.01745283019
A88: 73 | B88: 2014-02-20 | C88: 183.27 | D88: 184.52 | E88: 182.6 | F88: 184.1 | G88: 104998100 | H88: 183.29 | I88: 0.9956002173 | J88: 1 | K88: 182.46 | L88: 183.71 | M88: 181.8 | N88: 183.29 | O88: 104998100 | U88: 1996-12-20 | V88: 0.367 | W88: 74.84 | X88: 1995-12-20 | Y88: 1996-03-15 | Z88: 4 | AA88: 0 | AB88: 1.355 | AC88: 0.01810529129
A89: 74 | B89: 2014-02-19 | C89: 183.76 | D89: 184.95 | E89: 182.87 | F89: 183.02 | G89: 126524300 | H89: 182.22 | I89: 0.995628893 | J89: 1 | K89: 182.96 | L89: 184.14 | M89: 182.07 | N89: 182.22 | O89: 126524300 | U89: 1996-09-20 | V89: 0.352 | W89: 68.64 | X89: 1995-09-20 | Y89: 1995-12-15 | Z89: 4 | AA89: 0 | AB89: 1.37 | AC89: 0.01995920746
A90: 75 | B90: 2014-02-18 | C90: 184.18 | D90: 184.49 | E90: 183.65 | F90: 184.24 | G90: 80460900 | H90: 183.43 | I90: 0.9956035606 | J90: 1 | K90: 183.37 | L90: 183.68 | M90: 182.84 | N90: 183.43 | O90: 80460900 | U90: 1996-06-21 | V90: 0.351 | W90: 66.81 | X90: 1995-06-21 | Y90: 1995-09-15 | Z90: 4 | AA90: 0 | AB90: 1.33 | AC90: 0.01990719952
A91: 76 | B91: 2014-02-14 | C91: 182.84 | D91: 184.36 | E91: 182.67 | F91: 184.02 | G91: 96498400 | H91: 183.21 | I91: 0.9955983045 | J91: 1 | K91: 182.04 | L91: 183.55 | M91: 181.87 | N91: 183.21 | O91: 96498400 | U91: 1996-03-15 | V91: 0.285 | W91: 64.12 | X91: 1995-03-15 | Y91: 1995-03-17 | Z91: 5 | AA91: 1 | AB91: 1.295 | AC91: 0.02019650655
A92: 77 | B92: 2014-02-13 | C92: 180.84 | D92: 183.2 | E92: 180.83 | F92: 183.01 | G92: 100542200 | H92: 182.21 | I92: 0.9956286542 | J92: 1 | K92: 180.05 | L92: 182.4 | M92: 180.04 | N92: 182.21 | O92: 100542200 | U92: 1995-12-15 | V92: 0.382 | W92: 61.81 | X92: 1994-12-15 | Y92: 1994-12-16 | Z92: 5 | AA92: 1 | AB92: 1.278 | AC92: 0.02067626598
A93: 78 | B93: 2014-02-12 | C93: 182.25 | D93: 182.83 | E93: 181.71 | F93: 182.07 | G93: 94717700 | H93: 181.27 | I93: 0.9956060856 | J93: 1 | K93: 181.45 | L93: 182.03 | M93: 180.91 | N93: 181.27 | O93: 94717700 | U93: 1995-09-15 | V93: 0.312 | W93: 58.44 | X93: 1994-09-15 | Y93: 1994-09-16 | Z93: 6 | AA93: 1 | AB93: 1.259 | AC93: 0.02154346338
A94: 79 | B94: 2014-02-11 | C94: 180.16 | D94: 182.44 | E94: 180.04 | F94: 181.98 | G94: 117814100 | H94: 181.18 | I94: 0.9956039125 | J94: 1 | K94: 179.37 | L94: 181.64 | M94: 179.25 | N94: 181.18 | O94: 117814100 | U94: 1995-06-16 | V94: 0.316 | W94: 53.97 | X94: 1994-06-16 | Y94: 1994-06-17 | Z94: 6 | AA94: 1 | AB94: 1.235 | AC94: 0.02288308319
A95: 80 | B95: 2014-02-10 | C95: 179.7 | D95: 180.07 | E95: 179.21 | F95: 180.01 | G95: 92218800 | H95: 179.22 | I95: 0.9956113549 | J95: 1 | K95: 178.91 | L95: 179.28 | M95: 178.42 | N95: 179.22 | O95: 92218800 | U95: 1995-03-17 | V95: 0.268 | W95: 49.56 | X95: 1994-03-17 | Y95: 1994-03-18 | Z95: 6 | AA95: 1 | AB95: 1.224 | AC95: 0.02469733656
A96: 81 | B96: 2014-02-07 | C96: 178.31 | D96: 179.87 | E96: 177.73 | F96: 179.68 | G96: 170787200 | H96: 178.89 | I96: 0.9956032947 | J96: 1 | K96: 177.53 | L96: 179.08 | M96: 176.95 | N96: 178.89 | O96: 170787200 | U96: 1994-12-16 | V96: 0.363 | W96: 45.75 | X96: 1993-12-16 | Y96: 1993-12-17 | Z96: 6 | AA96: 1 | AB96: 1.227 | AC96: 0.02681967213
A97: 82 | B97: 2014-02-06 | C97: 175.58 | D97: 177.48 | E97: 175.22 | F97: 177.48 | G97: 132877600 | H97: 176.7 | I97: 0.9956051386 | J97: 1 | K97: 174.81 | L97: 176.7 | M97: 174.45 | N97: 176.7 | O97: 132877600 | U97: 1994-09-19 | V97: 0 | W97: 47.06 | X97: 1993-09-19 | Y97: 1993-12-17 | Z97: 5 | AA97: 0 | AB97: 1.181 | AC97: 0.02509562261
A98: 83 | B98: 2014-02-05 | C98: 174.78 | D98: 175.56 | E98: 173.71 | F98: 175.17 | G98: 164230500 | H98: 174.4 | I98: 0.9956042701 | J98: 1 | K98: 174.01 | L98: 174.79 | M98: 172.95 | N98: 174.4 | O98: 164230500 | U98: 1994-09-16 | V98: 0.288 | W98: 47.02 | X98: 1993-09-16 | Y98: 1993-09-17 | Z98: 5 | AA98: 1 | AB98: 1.181 | AC98: 0.0251169715
A99: 84 | B99: 2014-02-04 | C99: 174.95 | D99: 175.84 | E99: 174.11 | F99: 175.39 | G99: 165012400 | H99: 174.62 | I99: 0.9956097839 | J99: 1 | K99: 174.18 | L99: 175.07 | M99: 173.35 | N99: 174.62 | O99: 165012400 | U99: 1994-06-17 | V99: 0.305 | W99: 45.88 | X99: 1993-06-17 | Y99: 1993-06-18 | Z99: 5 | AA99: 1 | AB99: 1.179 | AC99: 0.02569747167
A100: 85 | B100: 2014-02-03 | C100: 177.97 | D100: 178.37 | E100: 173.83 | F100: 174.17 | G100: 254837100 | H100: 173.4 | I100: 0.995579032 | J100: 1 | K100: 177.18 | L100: 177.58 | M100: 173.06 | N100: 173.4 | O100: 254837100 | U100: 1994-03-18 | V100: 0.271 | W100: 46.97 | X100: 1993-03-18 | Y100: 1993-03-19 | Z100: 5 | AA100: 1 | AB100: 1.192 | AC100: 0.02537790079
A101: 86 | B101: 2014-01-31 | C101: 177.01 | D101: 179.29 | E101: 176.92 | F101: 178.18 | G101: 194677900 | H101: 177.4 | I101: 0.9956224043 | J101: 1 | K101: 176.24 | L101: 178.51 | M101: 176.15 | N101: 177.4 | O101: 194677900 | U101: 1993-12-17 | V101: 0.317 | W101: 46.56 | X101: 1992-12-17 | Y101: 1993-03-19 | Z101: 4 | AA101: 0 | AB101: 1.134 | AC101: 0.0243556701
A102: 87 | B102: 2014-01-30 | C102: 178.83 | D102: 179.81 | E102: 178.26 | F102: 179.23 | G102: 118938100 | H102: 178.44 | I102: 0.9955922558 | J102: 1 | K102: 178.04 | L102: 179.02 | M102: 177.47 | N102: 178.44 | O102: 118938100 | U102: 1993-09-17 | V102: 0.286 | W102: 45.81 | X102: 1992-09-17 | Y102: 1993-03-19 | Z102: 3 | AA102: 0 | AB102: 0.817 | AC102: 0.01783453394
A103: 88 | B103: 2014-01-29 | C103: 177.58 | D103: 178.55 | E103: 176.88 | F103: 177.35 | G103: 216597300 | H103: 176.57 | I103: 0.9956019171 | J103: 1 | K103: 176.8 | L103: 177.76 | M103: 176.1 | N103: 176.57 | O103: 216597300 | U103: 1993-06-18 | V103: 0.318 | W103: 44.5 | X103: 1992-06-18 | Y103: 1993-03-19 | Z103: 2 | AA103: 0 | AB103: 0.531 | AC103: 0.01193258427
A104: 89 | B104: 2014-01-28 | C104: 178.14 | D104: 179.3 | E104: 178.12 | F104: 179.07 | G104: 110463200 | H104: 178.28 | I104: 0.9955883174 | J104: 1 | K104: 177.35 | L104: 178.51 | M104: 177.33 | N104: 178.28 | O104: 110463200 | U104: 1993-03-19 | V104: 0.213 | W104: 45.03 | X104: 1992-03-19 | Y104: 1993-03-19 | Z104: 1 | AA104: 1 | AB104: 0.213 | AC104: 0.00473017988
A105: 90 | B105: 2014-01-27 | C105: 179.06 | D105: 179.52 | E105: 177.12 | F105: 178.01 | G105: 180843100 | H105: 177.23 | I105: 0.9956182237 | J105: 1 | K105: 178.28 | L105: 178.73 | M105: 176.34 | N105: 177.23 | O105: 180843100
A106: 91 | B106: 2014-01-24 | C106: 181.6 | D106: 181.66 | E106: 178.83 | F106: 178.89 | G106: 208677100 | H106: 178.1 | I106: 0.9955838784 | J106: 1 | K106: 180.8 | L106: 180.86 | M106: 178.04 | N106: 178.1 | O106: 208677100
A107: 92 | B107: 2014-01-23 | C107: 183.37 | D107: 183.4 | E107: 181.82 | F107: 182.79 | G107: 132496900 | H107: 181.99 | I107: 0.995623393 | J107: 1 | K107: 182.57 | L107: 182.6 | M107: 181.02 | N107: 181.99 | O107: 132496900
A108: 93 | B108: 2014-01-22 | C108: 184.49 | D108: 184.57 | E108: 183.91 | F108: 184.3 | G108: 61270900 | H108: 183.49 | I108: 0.9956049919 | J108: 1 | K108: 183.68 | L108: 183.76 | M108: 183.1 | N108: 183.49 | O108: 61270900
A109: 94 | B109: 2014-01-21 | C109: 184.7 | D109: 184.77 | E109: 183.05 | F109: 184.18 | G109: 88621200 | H109: 183.37 | I109: 0.9956021284 | J109: 1 | K109: 183.89 | L109: 183.96 | M109: 182.24 | N109: 183.37 | O109: 88621200
A110: 95 | B110: 2014-01-17 | C110: 184.1 | D110: 184.45 | E110: 183.32 | F110: 183.64 | G110: 107848700 | H110: 182.83 | I110: 0.9955891963 | J110: 1 | K110: 183.29 | L110: 183.64 | M110: 182.51 | N110: 182.83 | O110: 107848700
A111: 96 | B111: 2014-01-16 | C111: 184.28 | D111: 184.66 | E111: 183.83 | F111: 184.42 | G111: 72290600 | H111: 183.61 | I111: 0.9956078516 | J111: 1 | K111: 183.47 | L111: 183.85 | M111: 183.02 | N111: 183.61 | O111: 72290600
A112: 97 | B112: 2014-01-15 | C112: 184.1 | D112: 184.94 | E112: 183.71 | F112: 184.66 | G112: 98525800 | H112: 183.85 | I112: 0.9956135601 | J112: 1 | K112: 183.29 | L112: 184.13 | M112: 182.9 | N112: 183.85 | O112: 98525800
A113: 98 | B113: 2014-01-14 | C113: 182.29 | D113: 183.77 | E113: 181.95 | F113: 183.67 | G113: 105016100 | H113: 182.86 | I113: 0.9955899167 | J113: 1 | K113: 181.49 | L113: 182.96 | M113: 181.15 | N113: 182.86 | O113: 105016100
A114: 99 | B114: 2014-01-13 | C114: 183.67 | D114: 184.18 | E114: 181.34 | F114: 181.69 | G114: 149892000 | H114: 180.89 | I114: 0.9955968958 | J114: 1 | K114: 182.86 | L114: 183.37 | M114: 180.54 | N114: 180.89 | O114: 149892000
A115: 100 | B115: 2014-01-10 | C115: 183.95 | D115: 184.22 | E115: 183.01 | F115: 184.14 | G115: 102026400 | H115: 183.33 | I115: 0.995601173 | J115: 1 | K115: 183.14 | L115: 183.41 | M115: 182.2 | N115: 183.33 | O115: 102026400
A116: 101 | B116: 2014-01-09 | C116: 184.11 | D116: 184.13 | E116: 182.8 | F116: 183.64 | G116: 90683400 | H116: 182.83 | I116: 0.9955891963 | J116: 1 | K116: 183.3 | L116: 183.32 | M116: 181.99 | N116: 182.83 | O116: 90683400
A117: 102 | B117: 2014-01-08 | C117: 183.45 | D117: 183.83 | E117: 182.89 | F117: 183.52 | G117: 96582300 | H117: 182.71 | I117: 0.9955863121 | J117: 1 | K117: 182.64 | L117: 183.02 | M117: 182.08 | N117: 182.71 | O117: 96582300
A118: 103 | B118: 2014-01-07 | C118: 183.09 | D118: 183.79 | E118: 182.95 | F118: 183.48 | G118: 86144200 | H118: 182.67 | I118: 0.9955853499 | J118: 1 | K118: 182.28 | L118: 182.98 | M118: 182.14 | N118: 182.67 | O118: 86144200
A119: 104 | B119: 2014-01-06 | C119: 183.49 | D119: 183.56 | E119: 182.08 | F119: 182.36 | G119: 108028200 | H119: 181.56 | I119: 0.995613073 | J119: 1 | K119: 182.69 | L119: 182.75 | M119: 181.28 | N119: 181.56 | O119: 108028200
A120: 105 | B120: 2014-01-03 | C120: 183.23 | D120: 183.6 | E120: 182.63 | F120: 182.89 | G120: 81390600 | H120: 182.09 | I120: 0.995625786 | J120: 1 | K120: 182.43 | L120: 182.8 | M120: 181.83 | N120: 182.09 | O120: 81390600
A121: 106 | B121: 2014-01-02 | C121: 183.98 | D121: 184.07 | E121: 182.48 | F121: 182.92 | G121: 119636900 | H121: 182.12 | I121: 0.9956265034 | J121: 1 | K121: 183.18 | L121: 183.26 | M121: 181.68 | N121: 182.12 | O121: 119636900
A122: 107 | B122: 2013-12-31 | C122: 184.07 | D122: 184.69 | E122: 183.93 | F122: 184.69 | G122: 86119900 | H122: 183.88 | I122: 0.9956142726 | J122: 1 | K122: 183.26 | L122: 183.88 | M122: 183.12 | N122: 183.88 | O122: 86119900
A123: 108 | B123: 2013-12-30 | C123: 183.87 | D123: 184.02 | E123: 183.58 | F123: 183.82 | G123: 56857000 | H123: 183.01 | I123: 0.9955935154 | J123: 1 | K123: 183.06 | L123: 183.21 | M123: 182.77 | N123: 183.01 | O123: 56857000
A124: 109 | B124: 2013-12-27 | C124: 184.1 | D124: 184.18 | E124: 183.66 | F124: 183.85 | G124: 61814000 | H124: 183.04 | I124: 0.9955942344 | J124: 1 | K124: 183.29 | L124: 183.37 | M124: 182.85 | N124: 183.04 | O124: 61814000
A125: 110 | B125: 2013-12-26 | C125: 183.34 | D125: 183.96 | E125: 183.32 | F125: 183.86 | G125: 63365000 | H125: 183.05 | I125: 0.9955944741 | J125: 1 | K125: 182.53 | L125: 183.15 | M125: 182.51 | N125: 183.05 | O125: 63365000
A126: 111 | B126: 2013-12-24 | C126: 182.54 | D126: 183.01 | E126: 182.53 | F126: 182.93 | G126: 45368800 | H126: 182.13 | I126: 0.9956267425 | J126: 1 | K126: 181.74 | L126: 182.21 | M126: 181.73 | N126: 182.13 | O126: 45368800
A127: 112 | B127: 2013-12-23 | C127: 182.45 | D127: 182.64 | E127: 182.07 | F127: 182.53 | G127: 85598000 | H127: 181.73 | I127: 0.9956171588 | J127: 1 | K127: 181.65 | L127: 181.84 | M127: 181.27 | N127: 181.73 | O127: 85598000
A128: 113 | B128: 2013-12-20 | C128: 180.69 | D128: 181.99 | E128: 180.57 | F128: 181.56 | G128: 197087000 | H128: 180.76 | I128: 0.9955937431 | J128: 1 | K128: 179.89 | L128: 181.19 | M128: 179.77 | N128: 180.76 | O128: 197087000
A129: 114 | B129: 2013-12-19 | C129: 181.18 | D129: 181.7 | E129: 180.71 | F129: 181.49 | G129: 136531200 | H129: 179.72 | I129: 0.9902473966 | J129: 1 | K129: 179.41 | L129: 179.93 | M129: 178.95 | N129: 179.72 | O129: 136531200
A130: 115 | B130: 2013-12-18 | C130: 178.92 | D130: 181.73 | E130: 177.32 | F130: 181.7 | G130: 234906000 | H130: 179.92 | I130: 0.9902036324 | J130: 1 | K130: 177.17 | L130: 179.95 | M130: 175.58 | N130: 179.92 | O130: 234906000
A131: 116 | B131: 2013-12-17 | C131: 179.38 | D131: 179.41 | E131: 178.25 | F131: 178.65 | G131: 89886000 | H131: 176.9 | I131: 0.9902043101 | J131: 1 | K131: 177.62 | L131: 177.65 | M131: 176.5 | N131: 176.9 | O131: 89886000
A132: 117 | B132: 2013-12-16 | C132: 178.95 | D132: 179.81 | E132: 178.9 | F132: 179.22 | G132: 96195000 | H132: 177.47 | I132: 0.9902354648 | J132: 1 | K132: 177.2 | L132: 178.05 | M132: 177.15 | N132: 177.47 | O132: 96195000
A133: 118 | B133: 2013-12-13 | C133: 178.5 | D133: 178.66 | E133: 177.77 | F133: 178.11 | G133: 107808000 | H133: 176.37 | I133: 0.9902307563 | J133: 1 | K133: 176.76 | L133: 176.91 | M133: 176.03 | N133: 176.37 | O133: 107808000
A134: 119 | B134: 2013-12-12 | C134: 178.64 | D134: 178.86 | E134: 177.76 | F134: 178.13 | G134: 115565000 | H134: 176.39 | I134: 0.9902318531 | J134: 1 | K134: 176.9 | L134: 177.11 | M134: 176.02 | N134: 176.39 | O134: 115565000
A135: 120 | B135: 2013-12-11 | C135: 180.82 | D135: 180.85 | E135: 178.5 | F135: 178.72 | G135: 130591000 | H135: 176.97 | I135: 0.9902081468 | J135: 1 | K135: 179.05 | L135: 179.08 | M135: 176.75 | N135: 176.97 | O135: 130591000
A136: 121 | B136: 2013-12-10 | C136: 180.98 | D136: 181.36 | E136: 180.64 | F136: 180.75 | G136: 80976000 | H136: 178.98 | I136: 0.9902074689 | J136: 1 | K136: 179.21 | L136: 179.58 | M136: 178.87 | N136: 178.98 | O136: 80976000
A137: 122 | B137: 2013-12-09 | C137: 181.47 | D137: 181.67 | E137: 181.16 | F137: 181.4 | G137: 70124000 | H137: 179.63 | I137: 0.9902425579 | J137: 1 | K137: 179.7 | L137: 179.9 | M137: 179.39 | N137: 179.63 | O137: 70124000
A138: 123 | B138: 2013-12-06 | C138: 180.67 | D138: 181.11 | E138: 180.15 | F138: 180.94 | G138: 127728000 | H138: 179.17 | I138: 0.9902177517 | J138: 1 | K138: 178.9 | L138: 179.34 | M138: 178.39 | N138: 179.17 | O138: 127728000
A139: 124 | B139: 2013-12-05 | C139: 179.41 | D139: 179.74 | E139: 178.77 | F139: 178.94 | G139: 106934000 | H139: 177.19 | I139: 0.9902201855 | J139: 1 | K139: 177.66 | L139: 177.98 | M139: 177.02 | N139: 177.19 | O139: 106934000
A140: 125 | B140: 2013-12-04 | C140: 179.1 | D140: 180.48 | E140: 178.35 | F140: 179.73 | G140: 123033000 | H140: 177.97 | I140: 0.9902075335 | J140: 1 | K140: 177.35 | L140: 178.71 | M140: 176.6 | N140: 177.97 | O140: 123033000
A141: 126 | B141: 2013-12-03 | C141: 179.94 | D141: 180.39 | E141: 179.17 | F141: 179.75 | G141: 116563000 | H141: 177.99 | I141: 0.9902086231 | J141: 1 | K141: 178.18 | L141: 178.62 | M141: 177.42 | N141: 177.99 | O141: 116563000
A142: 127 | B142: 2013-12-02 | C142: 181.09 | D142: 181.43 | E142: 180.25 | F142: 180.53 | G142: 99726000 | H142: 178.77 | I142: 0.9902509278 | J142: 1 | K142: 179.32 | L142: 179.66 | M142: 178.49 | N142: 178.77 | O142: 99726000
A143: 128 | B143: 2013-11-29 | C143: 181.32 | D143: 181.75 | E143: 180.8 | F143: 181 | G143: 55870900 | H143: 179.23 | I143: 0.9902209945 | J143: 1 | K143: 179.55 | L143: 179.97 | M143: 179.03 | N143: 179.23 | O143: 55870900
A144: 129 | B144: 2013-11-27 | C144: 180.87 | D144: 181.24 | E144: 180.65 | F144: 181.12 | G144: 58800000 | H144: 179.35 | I144: 0.9902274735 | J144: 1 | K144: 179.1 | L144: 179.47 | M144: 178.88 | N144: 179.35 | O144: 58800000
A145: 130 | B145: 2013-11-26 | C145: 180.72 | D145: 181.22 | E145: 180.41 | F145: 180.68 | G145: 86994000 | H145: 178.91 | I145: =H145/F145 -> 0.990203675 | J145: =INDEX(OFFSET($T$15,0,0,$S$13+1,1),MATCH(B145,OFFSET($Q$15,0,0,$S$13+1,1),-1)) -> 1 | K145: =ROUND($I145*C145,2) -> 178.95 | L145: =ROUND($I145*D145,2) -> 179.44 | M145: =ROUND($I145*E145,2) -> 178.64 | N145: =ROUND($I145*F145,2) -> 178.91 | O145: =G145*J145 -> 86994000
A146: 131 | B146: 2013-11-25 | C146: 181.13 | D146: 181.17 | E146: 180.37 | F146: 180.63 | G146: 79486000 | H146: 178.87 | I146: 0.9902563251 | J146: 1 | K146: 179.37 | L146: 179.4 | M146: 178.61 | N146: 178.87 | O146: 79486000
A147: 132 | B147: 2013-11-22 | C147: 179.98 | D147: 180.83 | E147: 179.77 | F147: 180.81 | G147: 81296000 | H147: 179.04 | I147: 0.9902107184 | J147: 1 | K147: 178.22 | L147: 179.06 | M147: 178.01 | N147: 179.04 | O147: 81296000
A148: 133 | B148: 2013-11-21 | C148: 178.97 | D148: 180.05 | E148: 178.86 | F148: 179.91 | G148: 92841000 | H148: 178.15 | I148: 0.9902173309 | J148: 1 | K148: 177.22 | L148: 178.29 | M148: 177.11 | N148: 178.15 | O148: 92841000
A149: 134 | B149: 2013-11-20 | C149: 179.39 | D149: 179.93 | E149: 177.98 | F149: 178.47 | G149: 124909000 | H149: 176.73 | I149: 0.9902504623 | J149: 1 | K149: 177.64 | L149: 178.18 | M149: 176.24 | N149: 176.73 | O149: 124909000
A150: 135 | B150: 2013-11-19 | C150: 179.33 | D150: 179.87 | E150: 178.72 | F150: 179.03 | G150: 93891000 | H150: 177.28 | I150: 0.9902251019 | J150: 1 | K150: 177.58 | L150: 178.11 | M150: 176.97 | N150: 177.28 | O150: 93891000
A151: 136 | B151: 2013-11-18 | C151: 180.35 | D151: 180.5 | E151: 179.02 | F151: 179.42 | G151: 104796000 | H151: 177.67 | I151: 0.9902463493 | J151: 1 | K151: 178.59 | L151: 178.74 | M151: 177.27 | N151: 177.67 | O151: 104796000
A152: 137 | B152: 2013-11-15 | C152: 179.56 | D152: 180.12 | E152: 179.33 | F152: 180.05 | G152: 102818000 | H152: 178.29 | I152: 0.9902249375 | J152: 1 | K152: 177.8 | L152: 178.36 | M152: 177.58 | N152: 178.29 | O152: 102818000
A153: 138 | B153: 2013-11-14 | C153: 178.54 | D153: 179.42 | E153: 178.25 | F153: 179.27 | G153: 103435000 | H153: 177.52 | I153: 0.9902381882 | J153: 1 | K153: 176.8 | L153: 177.67 | M153: 176.51 | N153: 177.52 | O153: 103435000
A154: 139 | B154: 2013-11-13 | C154: 176.09 | D154: 178.43 | E154: 176.09 | F154: 178.38 | G154: 103844000 | H154: 176.64 | I154: 0.9902455432 | J154: 1 | K154: 174.37 | L154: 176.69 | M154: 174.37 | N154: 176.64 | O154: 103844000
A155: 140 | B155: 2013-11-12 | C155: 176.94 | D155: 177.36 | E155: 176.37 | F155: 176.96 | G155: 83990000 | H155: 175.23 | I155: 0.9902237794 | J155: 1 | K155: 175.21 | L155: 175.63 | M155: 174.65 | N155: 175.23 | O155: 83990000
A156: 141 | B156: 2013-11-11 | C156: 177.12 | D156: 177.53 | E156: 176.91 | F156: 177.32 | G156: 62614000 | H156: 175.59 | I156: 0.9902436273 | J156: 1 | K156: 175.39 | L156: 175.8 | M156: 175.18 | N156: 175.59 | O156: 62614000
A157: 142 | B157: 2013-11-08 | C157: 174.87 | D157: 177.31 | E157: 174.85 | F157: 177.29 | G157: 136713000 | H157: 175.56 | I157: 0.9902419764 | J157: 1 | K157: 173.16 | L157: 175.58 | M157: 173.14 | N157: 175.56 | O157: 136713000
A158: 143 | B158: 2013-11-07 | C158: 177.5 | D158: 177.64 | E158: 174.76 | F158: 174.93 | G158: 157000000 | H158: 173.22 | I158: 0.9902246613 | J158: 1 | K158: 175.76 | L158: 175.9 | M158: 173.05 | N158: 173.22 | O158: 157000000
A159: 144 | B159: 2013-11-06 | C159: 177.03 | D159: 177.5 | E159: 176.54 | F159: 177.17 | G159: 87348000 | H159: 175.44 | I159: 0.9902353672 | J159: 1 | K159: 175.3 | L159: 175.77 | M159: 174.82 | N159: 175.44 | O159: 87348000
A160: 145 | B160: 2013-11-05 | C160: 176.14 | D160: 176.75 | E160: 175.57 | F160: 176.27 | G160: 85825000 | H160: 174.55 | I160: 0.990242242 | J160: 1 | K160: 174.42 | L160: 175.03 | M160: 173.86 | N160: 174.55 | O160: 85825000
A161: 146 | B161: 2013-11-04 | C161: 176.69 | D161: 176.9 | E161: 175.98 | F161: 176.83 | G161: 85677000 | H161: 175.1 | I161: 0.9902165922 | J161: 1 | K161: 174.96 | L161: 175.17 | M161: 174.26 | N161: 175.1 | O161: 85677000
A162: 147 | B162: 2013-11-01 | C162: 176.02 | D162: 176.61 | E162: 175.22 | F162: 176.21 | G162: 142805000 | H162: 174.49 | I162: 0.9902389195 | J162: 1 | K162: 174.3 | L162: 174.89 | M162: 173.51 | N162: 174.49 | O162: 142805000
A163: 148 | B163: 2013-10-31 | C163: 176.15 | D163: 176.89 | E163: 175.53 | F163: 175.79 | G163: 133795000 | H163: 174.07 | I163: 0.9902155982 | J163: 1 | K163: 174.43 | L163: 175.16 | M163: 173.81 | N163: 174.07 | O163: 133795000
A164: 149 | B164: 2013-10-30 | C164: 177.38 | D164: 177.51 | E164: 175.66 | F164: 176.29 | G164: 140002000 | H164: 174.57 | I164: 0.990243349 | J164: 1 | K164: 175.65 | L164: 175.78 | M164: 173.95 | N164: 174.57 | O164: 140002000
A165: 150 | B165: 2013-10-29 | C165: 176.63 | D165: 177.24 | E165: 176.38 | F165: 177.17 | G165: 87401000 | H165: 175.44 | I165: 0.9902353672 | J165: 1 | K165: 174.91 | L165: 175.51 | M165: 174.66 | N165: 175.44 | O165: 87401000
A166: 151 | B166: 2013-10-28 | C166: 175.89 | D166: 176.47 | E166: 175.7 | F166: 176.23 | G166: 84979000 | H166: 174.51 | I166: 0.9902400272 | J166: 1 | K166: 174.17 | L166: 174.75 | M166: 173.99 | N166: 174.51 | O166: 84979000
A167: 152 | B167: 2013-10-25 | C167: 175.51 | D167: 176 | E167: 175.17 | F167: 175.95 | G167: 93625000 | H167: 174.23 | I167: 0.9902244956 | J167: 1 | K167: 173.79 | L167: 174.28 | M167: 173.46 | N167: 174.23 | O167: 93625000
A168: 153 | B168: 2013-10-24 | C168: 174.92 | D168: 175.37 | E168: 174.51 | F168: 175.15 | G168: 70350000 | H168: 173.44 | I168: 0.9902369398 | J168: 1 | K168: 173.21 | L168: 173.66 | M168: 172.81 | N168: 173.44 | O168: 70350000
A169: 154 | B169: 2013-10-23 | C169: 174.81 | D169: 174.89 | E169: 173.96 | F169: 174.57 | G169: 105484000 | H169: 172.86 | I169: 0.9902045025 | J169: 1 | K169: 173.1 | L169: 173.18 | M169: 172.26 | N169: 172.86 | O169: 105484000
A170: 155 | B170: 2013-10-22 | C170: 174.91 | D170: 175.93 | E170: 174.43 | F170: 175.41 | G170: 126663000 | H170: 173.7 | I170: 0.990251411 | J170: 1 | K170: 173.2 | L170: 174.21 | M170: 172.73 | N170: 173.7 | O170: 126663000
A171: 156 | B171: 2013-10-21 | C171: 174.45 | D171: 174.75 | E171: 174.01 | F171: 174.4 | G171: 104104000 | H171: 172.7 | I171: 0.9902522936 | J171: 1 | K171: 172.75 | L171: 173.05 | M171: 172.31 | N171: 172.7 | O171: 104104000
A172: 157 | B172: 2013-10-18 | C172: 173.86 | D172: 174.51 | E172: 173.51 | F172: 174.39 | G172: 138316000 | H172: 172.69 | I172: 0.9902517346 | J172: 1 | K172: 172.17 | L172: 172.81 | M172: 171.82 | N172: 172.69 | O172: 138316000
A173: 158 | B173: 2013-10-17 | C173: 171.37 | D173: 173.32 | E173: 171.34 | F173: 173.22 | G173: 129389000 | H173: 171.53 | I173: 0.9902436208 | J173: 1 | K173: 169.7 | L173: 171.63 | M173: 169.67 | N173: 171.53 | O173: 129389000
A174: 159 | B174: 2013-10-16 | C174: 170.72 | D174: 172.16 | E174: 170.64 | F174: 172.07 | G174: 161676000 | H174: 170.39 | I174: 0.9902365316 | J174: 1 | K174: 169.05 | L174: 170.48 | M174: 168.97 | N174: 170.39 | O174: 161676000
A175: 160 | B175: 2013-10-15 | C175: 170.51 | D175: 171.15 | E175: 169.47 | F175: 169.7 | G175: 155485000 | H175: 168.04 | I175: 0.9902180318 | J175: 1 | K175: 168.84 | L175: 169.48 | M175: 167.81 | N175: 168.04 | O175: 155485000
A176: 161 | B176: 2013-10-14 | C176: 169.21 | D176: 171.08 | E176: 169.08 | F176: 170.94 | G176: 112106000 | H176: 169.27 | I176: 0.9902304902 | J176: 1 | K176: 167.56 | L176: 169.41 | M176: 167.43 | N176: 169.27 | O176: 112106000
A177: 162 | B177: 2013-10-11 | C177: 168.91 | D177: 170.32 | E177: 168.77 | F177: 170.26 | G177: 105040000 | H177: 168.6 | I177: 0.9902502056 | J177: 1 | K177: 167.26 | L177: 168.66 | M177: 167.12 | N177: 168.6 | O177: 105040000
A178: 163 | B178: 2013-10-10 | C178: 167.29 | D178: 169.26 | E178: 167.23 | F178: 169.17 | G178: 195955000 | H178: 167.52 | I178: 0.9902464976 | J178: 1 | K178: 165.66 | L178: 167.61 | M178: 165.6 | N178: 167.52 | O178: 195955000
A179: 164 | B179: 2013-10-09 | C179: 165.8 | D179: 166.2 | E179: 164.53 | F179: 165.6 | G179: 168973000 | H179: 163.98 | I179: 0.9902173913 | J179: 1 | K179: 164.18 | L179: 164.57 | M179: 162.92 | N179: 163.98 | O179: 168973000
A180: 165 | B180: 2013-10-08 | C180: 167.4 | D180: 167.62 | E180: 165.36 | F180: 165.48 | G180: 178015000 | H180: 163.86 | I180: 0.9902102973 | J180: 1 | K180: 165.76 | L180: 165.98 | M180: 163.74 | N180: 163.86 | O180: 178015000
A181: 166 | B181: 2013-10-07 | C181: 167.42 | D181: 168.45 | E181: 167.25 | F181: 167.43 | G181: 96295000 | H181: 165.79 | I181: 0.9902048617 | J181: 1 | K181: 165.78 | L181: 166.8 | M181: 165.61 | N181: 165.79 | O181: 96295000
A182: 167 | B182: 2013-10-04 | C182: 167.75 | D182: 169.06 | E182: 167.53 | F182: 168.89 | G182: 96878000 | H182: 167.24 | I182: 0.9902303274 | J182: 1 | K182: 166.11 | L182: 167.41 | M182: 165.89 | N182: 167.24 | O182: 96878000
A183: 168 | B183: 2013-10-03 | C183: 168.79 | D183: 168.94 | E183: 166.84 | F183: 167.62 | G183: 176698000 | H183: 165.98 | I183: 0.9902159647 | J183: 1 | K183: 167.14 | L183: 167.29 | M183: 165.21 | N183: 165.98 | O183: 176698000
A184: 169 | B184: 2013-10-02 | C184: 168.35 | D184: 169.34 | E184: 167.83 | F184: 169.18 | G184: 113350000 | H184: 167.53 | I184: 0.9902470741 | J184: 1 | K184: 166.71 | L184: 167.69 | M184: 166.19 | N184: 167.53 | O184: 113350000
A185: 170 | B185: 2013-10-01 | C185: 168.14 | D185: 169.5 | E185: 167.97 | F185: 169.34 | G185: 127160000 | H185: 167.69 | I185: 0.9902562891 | J185: 1 | K185: 166.5 | L185: 167.85 | M185: 166.33 | N185: 167.69 | O185: 127160000
A186: 171 | B186: 2013-09-30 | C186: 167.48 | D186: 168.54 | E186: 167.15 | F186: 168.01 | G186: 143937000 | H186: 166.37 | I186: 0.9902386763 | J186: 1 | K186: 165.85 | L186: 166.89 | M186: 165.52 | N186: 166.37 | O186: 143937000
A187: 172 | B187: 2013-09-27 | C187: 168.84 | D187: 169.14 | E187: 168.47 | F187: 168.91 | G187: 99141800 | H187: 167.26 | I187: 0.9902314842 | J187: 1 | K187: 167.19 | L187: 167.49 | M187: 166.82 | N187: 167.26 | O187: 99141800
A188: 173 | B188: 2013-09-26 | C188: 169.32 | D188: 170.17 | E188: 169.05 | F188: 169.69 | G188: 77146900 | H188: 168.03 | I188: 0.9902174554 | J188: 1 | K188: 167.66 | L188: 168.51 | M188: 167.4 | N188: 168.03 | O188: 77146900
A189: 174 | B189: 2013-09-25 | C189: 169.64 | D189: 169.98 | E189: 168.89 | F189: 169.04 | G189: 117306500 | H189: 167.39 | I189: 0.9902389967 | J189: 1 | K189: 167.98 | L189: 168.32 | M189: 167.24 | N189: 167.39 | O189: 117306500
A190: 175 | B190: 2013-09-24 | C190: 169.9 | D190: 170.53 | E190: 169.21 | F190: 169.53 | G190: 106333100 | H190: 167.87 | I190: 0.9902082227 | J190: 1 | K190: 168.24 | L190: 168.86 | M190: 167.55 | N190: 167.87 | O190: 106333100
A191: 176 | B191: 2013-09-23 | C191: 170.49 | D191: 170.65 | E191: 169.39 | F191: 169.93 | G191: 104616500 | H191: 168.27 | I191: 0.9902312717 | J191: 1 | K191: 168.82 | L191: 168.98 | M191: 167.74 | N191: 168.27 | O191: 104616500
A192: 177 | B192: 2013-09-20 | C192: 172.33 | D192: 172.33 | E192: 170.58 | F192: 170.72 | G192: 132867100 | H192: 169.05 | I192: 0.9902179007 | J192: 1 | K192: 170.64 | L192: 170.64 | M192: 168.91 | N192: 169.05 | O192: 132867100
A193: 178 | B193: 2013-09-19 | C193: 173.52 | D193: 173.6 | E193: 172.59 | F193: 172.76 | G193: 146616900 | H193: 170.24 | I193: 0.9854132901 | J193: 1 | K193: 170.99 | L193: 171.07 | M193: 170.07 | N193: 170.24 | O193: 146616900
A194: 179 | B194: 2013-09-18 | C194: 171.01 | D194: 173.52 | E194: 170.58 | F194: 173.05 | G194: 203460600 | H194: 170.53 | I194: 0.9854377348 | J194: 1 | K194: 168.52 | L194: 170.99 | M194: 168.1 | N194: 170.53 | O194: 203460600
A195: 180 | B195: 2013-09-17 | C195: 170.46 | D195: 171.11 | E195: 170.46 | F195: 171.07 | G195: 82523300 | H195: 168.58 | I195: 0.9854445549 | J195: 1 | K195: 167.98 | L195: 168.62 | M195: 167.98 | N195: 168.58 | O195: 82523300
A196: 181 | B196: 2013-09-16 | C196: 171.16 | D196: 171.24 | E196: 170.04 | F196: 170.31 | G196: 106299200 | H196: 167.83 | I196: 0.9854383184 | J196: 1 | K196: 168.67 | L196: 168.75 | M196: 167.56 | N196: 167.83 | O196: 106299200
A197: 182 | B197: 2013-09-13 | C197: 169.13 | D197: 169.46 | E197: 168.74 | F197: 169.33 | G197: 72727800 | H197: 166.86 | I197: 0.9854130987 | J197: 1 | K197: 166.66 | L197: 166.99 | M197: 166.28 | N197: 166.86 | O197: 72727800
A198: 183 | B198: 2013-09-12 | C198: 169.34 | D198: 169.56 | E198: 168.72 | F198: 168.95 | G198: 83209000 | H198: 166.49 | I198: 0.9854394791 | J198: 1 | K198: 166.87 | L198: 167.09 | M198: 166.26 | N198: 166.49 | O198: 83209000
A199: 184 | B199: 2013-09-11 | C199: 168.64 | D199: 169.4 | E199: 168.35 | F199: 169.4 | G199: 94545900 | H199: 166.93 | I199: 0.9854191263 | J199: 1 | K199: 166.18 | L199: 166.93 | M199: 165.9 | N199: 166.93 | O199: 94545900
A200: 185 | B200: 2013-09-10 | C200: 168.64 | D200: 168.9 | E200: 168.26 | F200: 168.87 | G200: 105847200 | H200: 166.41 | I200: 0.9854325813 | J200: 1 | K200: 166.18 | L200: 166.44 | M200: 165.81 | N200: 166.41 | O200: 105847200
... 5191 more rows

Sheet Follow
A1: Stocks and Indexes I wish to follow
A3: To ease following a stock, enter a Yahoo Finance acceptable symbol in column "A" anywhere below cell "A9".
A4: Thereafter you may doubleclick the cell containing a symbol of interest to initiate data retrieval and charting for that symbol.
A7: Symbol
A8: To | B8: Description | C8: Last Trade as of most recent check
A9: Follow | C9: Date | D9: Time | E9: Open | F9: High | G9: Low | H9: Close | I9: Volume
A10: F | B10: Ford Motor Compan (F) -NYSE (Daily) | C10: 2014-05-09 | D10: 16:00:00 | E10: 15.73 | F10: 15.9 | G10: 15.73 | H10: 15.77 | I10: 25172568
A11: MCD | B11: McDonald's Corpor (MCD) -NYSE (Daily) | C11: 2014-06-04 | D11: 16:01:00 | E11: 101.36 | F11: 102.47 | G11: 101.27 | H11: 102.44 | I11: 3595798
A12: JNJ | B12: Johnson & Johnson (JNJ) -NYSE | C12: 2014-02-03 | D12: 16:01:00 | E12: 88.75 | F12: 88.78 | G12: 86.61 | H12: 86.78 | I12: 13953268
A13: AAL | B13: American Airlines (AAL) -NasdaqNM | C13: 2014-02-03 | D13: 16:00:00 | E13: 34.04 | F13: 34.48 | G13: 33.05 | H13: 33.96 | I13: 21748284
A14: CIEN | B14: Ciena Corporation (CIEN) -NYSE | C14: 2014-02-03 | D14: 16:02:00 | E14: 23.31 | F14: 23.38 | G14: 21.9 | H14: 22.09 | I14: 4433923
A15: SONC | B15: Sonic Corp. (SONC) -NasdaqNM | C15: 2014-02-03 | D15: 16:00:00 | E15: 17.7 | F15: 18 | G15: 16.92 | H15: 17.28 | I15: 918579
A16: HTLD | B16: Heartland Express (HTLD) -NasdaqNM | C16: 2014-02-03 | D16: 16:00:00 | E16: 21.05 | F16: 21.23 | G16: 20.17 | H16: 20.21 | I16: 589750
A17: ADM | B17: Archer-Daniels-Mi (ADM) -NYSE (Daily) | C17: 2014-04-04 | D17: 16:01:00 | E17: 43.59 | F17: 43.66 | G17: 43.03 | H17: 43.05 | I17: 4416020
A18: A | B18: Agilent Technolog (A) -NYSE | C18: 2014-02-03 | D18: 16:02:00 | E18: 58.15 | F18: 58.48 | G18: 56.075 | H18: 56.15 | I18: 2929252
A22: SPY | B22: SPDR S&P 500 (SPY) -PCX (Daily) | C22: 2014-06-04 | D22: 16:00:00 | E22: 192.47 | F22: 193.3 | G22: 192.265 | H22: 193.19 | I22: 55529372
A23: ^GSPC | B23: S&P 500 (^GSPC) -SNP (Daily) | C23: 2014-06-04 | D23: 16:29:00 | E23: 1923.06 | F23: 1928.63 | G23: 1918.6 | H23: 1927.88 | I23: 403725664
A24: QQQ | B24: PowerShares QQQ T (QQQ) -NGM (Daily) | C24: 2014-04-07 | D24: 11:33:00 | E24: 85.83 | F24: 86.63 | G24: 85.55 | H24: 86.07 | I24: 40146792

Sheet CalculationsAndCharts
A1: The Quotient Transform
B2: =InputPriceData!A1 -> SPDR S&P 500 (SPY) -PCX (Daily)
A4: User Charting Controls
A5: Data Control
A6: =InputPriceData!$B$10 -> 5376 | B6: Available Input Data Rows | E6: Earliest: | F6: =OFFSET(InputPriceData!B15,CalculationsAndCharts!A6,0,1,1) -> 1993-01-29
B7: Use Close Adjusted: | C7: TRUE | E7: Latest: | F7: =OFFSET(InputPriceData!B15,1,0,1,1) -> 2014-06-04
A8: =MIN(A6-A11,COUNTA(B33:B9983)) -> 2800 | B8: Logically Available for Calc / Plot
A10: Price Chart Windowing Controls | F10: Y-axis Range
A11: 163 | B11: Input Data Offset (Pan) | E11: Max High+ | F11: =CEILING(MAX(OFFSET($E$33,0,0,$A$12,1))+2*F14,0.1) -> 175.3
A12: 279 | B12: Data Points to Plot (Zoom) | E12: Min Low- | F12: =FLOOR(MIN(OFFSET($F$33,0,0,$A$12,1))-2*F14,0.1) -> 126.3
B13: First: | C13: =OFFSET(B32,A12,0,1,1) -> 2012-08-29 | E13: White space %: | F13: 0.05
B14: ="Last: "&OFFSET(InputPriceData!P15,1+A11,0,1,1) -> Last: | C14: =B33 -> 2013-10-09 | E14: Allowance: | F14: =FLOOR((CEILING(MAX(OFFSET($E$33,0,0,$A$12,1)),1)-FLOOR(MIN(OFFSET($F$33,0,0,$A$12,1)),1))*$F$13,0.01) -> 2.1
A15: Help! I would like to plot data
A16: From | B16: 2012-08-29 | C16: =OFFSET(InputPriceData!$A$15,MATCH(B16,OFFSET(InputPriceData!B15,1,0,InputPriceData!$B$10,1),0),0,1,1)-C17 -> 279 | E16: 255
A17: To | B17: 2013-10-09 | C17: =OFFSET(InputPriceData!$A$15,MATCH(B17,OFFSET(InputPriceData!$B$15,1,0,InputPriceData!$B$10,1),0),0,1,1)-1 -> 163 | E17: =$A$12-$E$16+1 -> 25
A19: User Controls for pair of Quotient Transforms
A20: Quotient 1
A21: 0.9 | B21: K, Linearity Control
A22: 20 | B22: Low Pass Period
A23: 100 | B23: High Pass Period
A25: Quotient 2
A26: 0.4 | B26: K, Linearity Control
A27: 20 | B27: Low Pass Period
A28: 100 | B28: High Pass Period | H28: @ Cursor => | I28: =OFFSET(A32,$E$17,0,1,1)&"(RR)" -> 25(RR) | J28: =OFFSET($B$32,E17,0,1,1) -> 2013-09-05 | K28: =TEXT(OFFSET(D32,$E$17,0,1,1),"#,##0.00")&"(o)" -> 163.43(o) | L28: =TEXT(OFFSET(E32,$E$17,0,1,1),"#,##0.00")&"(h)" -> 163.97(h) | M28: =TEXT(OFFSET(F32,$E$17,0,1,1),"#,##0.00")&"(l)" -> 163.31(l) | N28: =TEXT(OFFSET(G32,$E$17,0,1,1),"#,##0.00")&"(c)" -> 163.54(c)
A31: Rel Row | B31: Stock Prices | H31: P Cursor | I31: P Cursor Min | J31: Q Cursor | K31: Q Cursor Min | L31: ="Quotient 1 ("&TEXT(A22,"0")&", "&TEXT(A21,"#.0")&")" -> Quotient 1 (20, .9) | O31: High Pass | P31: Supr Smth | Q31: Fast Attack | T31: ="Quotient 2 ("&TEXT(A27,"0")&", "&TEXT(A26,"#.0")&")" -> Quotient 2 (20, .4) | W31: High Pass | X31: Supr Smth | Y31: Fast Attack
B32: Date | C32: Volume | D32: Open | E32: High | F32: Low | G32: Close | H32: =$F$11 -> 175.3 | I32: =F12 -> 126.3 | J32: 1 | K32: -1 | L32: Pre-Calculated Intermediate Values | O32: HP | P32: Filt | Q32: Peak | R32: X | S32: Quotient 1 | T32: Pre-Calculated Intermediate Values | W32: HP | X32: Filt | Y32: Peak | Z32: X | AA32: Quotient 2
A33: 1 | B33: =OFFSET(InputPriceData!$B$15,CalculationsAndCharts!$A33+$A$11,0,1,1) -> 2013-10-09 | C33: =OFFSET(InputPriceData!G$15,CalculationsAndCharts!$A33+$A$11,IF($C$7,8,0),1,1) -> 168973000 | D33: =OFFSET(InputPriceData!$C$15,CalculationsAndCharts!$A33+$A$11,IF($C$7,8,0),1,1) -> 164.18 | E33: =OFFSET(InputPriceData!$D$15,CalculationsAndCharts!$A33+$A$11,IF($C$7,8,0),1,1) -> 164.57 | F33: =OFFSET(InputPriceData!$E$15,CalculationsAndCharts!$A33+$A$11,IF($C$7,8,0),1,1) -> 162.92 | G33: =OFFSET(InputPriceData!$F$15,CalculationsAndCharts!$A33+$A$11,IF($C$7,8,0),1,1) -> 163.98 | H33: =$E$17 -> 25 | I33: =H32 -> 175.3 | J33: =$E$17 -> 25 | K33: =J32 -> 1 | L33: Description | N33: Value | O33: =$N$38*(G33-2*G34+G35)+2*$N$36*O34-$N$37*O35 -> -3.436006181 | P33: =$N$41*(O33+O34)/2+$N$42*P34+$N$43*P35 -> -1.404965182 | Q33: =IF(ABS(P33)>(Q34*0.991),ABS(P33),(Q34*0.991)) -> 3.073262147 | R33: =IF(Q33>0,P33/Q33,R34) -> -0.4571576112 | S33: =(R33+$A$21)/($A$21*R33+1) -> 0.7524190921 | T33: Description | V33: Value | W33: =$V$38*(G33-2*G34+G35)+2*$V$36*W34-$V$37*W35 -> -3.436006181 | X33: =$V$41*(W33+W34)/2+$V$42*X34+$V$43*X35 -> -1.404965182 | Y33: =IF(ABS(X33)>(Y34*0.991),ABS(X33),(Y34*0.991)) -> 3.073262147 | Z33: =IF(Y33>0,X33/Y33,Z34) -> -0.4571576112 | AA33: =(Z33+$A$26)/($A$26*Z33+1) -> -0.0699486308
A34: 2 | B34: =OFFSET(InputPriceData!B$15,CalculationsAndCharts!$A34+$A$11,0,1,1) -> 2013-10-08 | C34: =OFFSET(InputPriceData!G$15,CalculationsAndCharts!$A34+$A$11,IF($C$7,8,0),1,1) -> 178015000 | D34: =OFFSET(InputPriceData!C$15,CalculationsAndCharts!$A34+$A$11,IF($C$7,8,0),1,1) -> 165.76 | E34: =OFFSET(InputPriceData!D$15,CalculationsAndCharts!$A34+$A$11,IF($C$7,8,0),1,1) -> 165.98 | F34: =OFFSET(InputPriceData!E$15,CalculationsAndCharts!$A34+$A$11,IF($C$7,8,0),1,1) -> 163.74 | G34: =OFFSET(InputPriceData!F$15,CalculationsAndCharts!$A34+$A$11,IF($C$7,8,0),1,1) -> 163.86 | H34: =$E$17 -> 25 | I34: =I32 -> 126.3 | J34: =$E$17 -> 25 | K34: =K32 -> -1 | M34: alpha1 | N34: =(COS(RADIANS(0.707*360/$A$23))+SIN(RADIANS(0.707*360/$A$23)) - 1) / COS(RADIANS(0.707*360/$A$23)) -> 0.04346388868 | O34: -3.800290979 | P34: -0.95636848 | Q34: =IF(ABS(P34)>(Q35*0.991),ABS(P34),(Q35*0.991)) -> 3.101172702 | R34: =IF(Q34>0,P34/Q34,R35) -> -0.3083893004 | S34: 0.8188954293 | U34: alpha1 | V34: =(COS(RADIANS(0.707*360/$A$28))+SIN(RADIANS(0.707*360/$A$28)) - 1) / COS(RADIANS(0.707*360/$A$28)) -> 0.04346388868 | W34: =$V$38*(G34-2*G35+G36)+2*$V$36*W35-$V$37*W36 -> -3.800290979 | X34: =$V$41*(W34+W35)/2+$V$42*X35+$V$43*X36 -> -0.95636848 | Y34: =IF(ABS(X34)>(Y35*0.991),ABS(X34),(Y35*0.991)) -> 3.101172702 | Z34: =IF(Y34>0,X34/Y34,Z35) -> -0.3083893004 | AA34: =(Z34+$A$26)/($A$26*Z34+1) -> 0.1045015654
A35: 3 | B35: =OFFSET(InputPriceData!B$15,CalculationsAndCharts!$A35+$A$11,0,1,1) -> 2013-10-07 | C35: =OFFSET(InputPriceData!G$15,CalculationsAndCharts!$A35+$A$11,IF($C$7,8,0),1,1) -> 96295000 | D35: =OFFSET(InputPriceData!C$15,CalculationsAndCharts!$A35+$A$11,IF($C$7,8,0),1,1) -> 165.78 | E35: =OFFSET(InputPriceData!D$15,CalculationsAndCharts!$A35+$A$11,IF($C$7,8,0),1,1) -> 166.8 | F35: =OFFSET(InputPriceData!E$15,CalculationsAndCharts!$A35+$A$11,IF($C$7,8,0),1,1) -> 165.61 | G35: =OFFSET(InputPriceData!F$15,CalculationsAndCharts!$A35+$A$11,IF($C$7,8,0),1,1) -> 165.79 | M35: alpha1/2 | N35: =N34/2 -> 0.02173194434 | O35: -2.046379083 | P35: -0.5848306927 | Q35: 3.129336732 | R35: -0.1868864692 | S35: 0.8573114497 | U35: alpha1/2 | V35: =V34/2 -> 0.02173194434 | W35: -2.046379083 | X35: -0.5848306927 | Y35: 3.129336732 | Z35: -0.1868864692 | AA35: 0.2303318968
A36: 4 | B36: =OFFSET(InputPriceData!B$15,CalculationsAndCharts!$A36+$A$11,0,1,1) -> 2013-10-04 | C36: =OFFSET(InputPriceData!G$15,CalculationsAndCharts!$A36+$A$11,IF($C$7,8,0),1,1) -> 96878000 | D36: =OFFSET(InputPriceData!C$15,CalculationsAndCharts!$A36+$A$11,IF($C$7,8,0),1,1) -> 166.11 | E36: =OFFSET(InputPriceData!D$15,CalculationsAndCharts!$A36+$A$11,IF($C$7,8,0),1,1) -> 167.41 | F36: =OFFSET(InputPriceData!E$15,CalculationsAndCharts!$A36+$A$11,IF($C$7,8,0),1,1) -> 165.89 | G36: =OFFSET(InputPriceData!F$15,CalculationsAndCharts!$A36+$A$11,IF($C$7,8,0),1,1) -> 167.24 | M36: 1-alpha1 | N36: =1-N34 -> 0.9565361113 | O36: -0.6272877426 | P36: -0.2936193587 | Q36: 3.157756541 | R36: -0.09298353271 | S36: 0.8807196492 | U36: 1-alpha1 | V36: =1-V34 -> 0.9565361113 | W36: -0.6272877426 | X36: -0.2936193587 | Y36: 3.157756541 | Z36: -0.09298353271 | AA36: 0.3188765755
A37: 5 | B37: =OFFSET(InputPriceData!B$15,CalculationsAndCharts!$A37+$A$11,0,1,1) -> 2013-10-03 | C37: =OFFSET(InputPriceData!G$15,CalculationsAndCharts!$A37+$A$11,IF($C$7,8,0),1,1) -> 176698000 | D37: =OFFSET(InputPriceData!C$15,CalculationsAndCharts!$A37+$A$11,IF($C$7,8,0),1,1) -> 167.14 | E37: =OFFSET(InputPriceData!D$15,CalculationsAndCharts!$A37+$A$11,IF($C$7,8,0),1,1) -> 167.29 | F37: =OFFSET(InputPriceData!E$15,CalculationsAndCharts!$A37+$A$11,IF($C$7,8,0),1,1) -> 165.21 | G37: =OFFSET(InputPriceData!F$15,CalculationsAndCharts!$A37+$A$11,IF($C$7,8,0),1,1) -> 165.98 | M37: (1-alpha1)^2 (Squared) | N37: =N36^2 -> 0.9149613323 | O37: -1.909545622 | P37: 0.03192871971 | Q37: 3.186434451 | R37: 0.01002020289 | S37: 0.9018868228 | U37: (1-alpha1)^2 (Squared) | V37: =V36^2 -> 0.9149613323 | W37: -1.909545622 | X37: 0.03192871971 | Y37: 3.186434451 | Z37: 0.01002020289 | AA37: 0.4083833692
A38: 6 | B38: =OFFSET(InputPriceData!B$15,CalculationsAndCharts!$A38+$A$11,0,1,1) -> 2013-10-02 | C38: =OFFSET(InputPriceData!G$15,CalculationsAndCharts!$A38+$A$11,IF($C$7,8,0),1,1) -> 113350000 | D38: =OFFSET(InputPriceData!C$15,CalculationsAndCharts!$A38+$A$11,IF($C$7,8,0),1,1) -> 166.71 | E38: =OFFSET(InputPriceData!D$15,CalculationsAndCharts!$A38+$A$11,IF($C$7,8,0),1,1) -> 167.69 | F38: =OFFSET(InputPriceData!E$15,CalculationsAndCharts!$A38+$A$11,IF($C$7,8,0),1,1) -> 166.19 | G38: =OFFSET(InputPriceData!F$15,CalculationsAndCharts!$A38+$A$11,IF($C$7,8,0),1,1) -> 167.53 | M38: (1 - alpha1/2)^2 (Sq.) | N38: =(1-N35)^2 -> 0.9570083887 | O38: -0.367903386 | P38: 0.3793370485 | Q38: 3.215372807 | R38: 0.1179760704 | S38: 0.9202638671 | U38: (1 - alpha1/2)^2 (Sq.) | V38: =(1-V35)^2 -> 0.9570083887 | W38: -0.367903386 | X38: 0.3793370485 | Y38: 3.215372807 | Z38: 0.1179760704 | AA38: 0.4946340765
A39: 7 | B39: =OFFSET(InputPriceData!B$15,CalculationsAndCharts!$A39+$A$11,0,1,1) -> 2013-10-01 | C39: =OFFSET(InputPriceData!G$15,CalculationsAndCharts!$A39+$A$11,IF($C$7,8,0),1,1) -> 127160000 | D39: =OFFSET(InputPriceData!C$15,CalculationsAndCharts!$A39+$A$11,IF($C$7,8,0),1,1) -> 166.5 | E39: =OFFSET(InputPriceData!D$15,CalculationsAndCharts!$A39+$A$11,IF($C$7,8,0),1,1) -> 167.85 | F39: =OFFSET(InputPriceData!E$15,CalculationsAndCharts!$A39+$A$11,IF($C$7,8,0),1,1) -> 166.33 | G39: =OFFSET(InputPriceData!F$15,CalculationsAndCharts!$A39+$A$11,IF($C$7,8,0),1,1) -> 167.69 | M39: a1 | N39: =EXP(-1.414*3.14159/$A$22) -> 0.8008269377 | O39: -0.1360951358 | P39: 0.7340075409 | Q39: 3.244573972 | R39: 0.2262261693 | S39: 0.9357119021 | U39: a1 | V39: =EXP(-1.414*3.14159/$A$27) -> 0.8008269377 | W39: -0.1360951358 | X39: 0.7340075409 | Y39: 3.244573972 | Z39: 0.2262261693 | AA39: 0.574261021
A40: 8 | B40: =OFFSET(InputPriceData!B$15,CalculationsAndCharts!$A40+$A$11,0,1,1) -> 2013-09-30 | C40: =OFFSET(InputPriceData!G$15,CalculationsAndCharts!$A40+$A$11,IF($C$7,8,0),1,1) -> 143937000 | D40: =OFFSET(InputPriceData!C$15,CalculationsAndCharts!$A40+$A$11,IF($C$7,8,0),1,1) -> 165.85 | E40: =OFFSET(InputPriceData!D$15,CalculationsAndCharts!$A40+$A$11,IF($C$7,8,0),1,1) -> 166.89 | F40: =OFFSET(InputPriceData!E$15,CalculationsAndCharts!$A40+$A$11,IF($C$7,8,0),1,1) -> 165.52 | G40: =OFFSET(InputPriceData!F$15,CalculationsAndCharts!$A40+$A$11,IF($C$7,8,0),1,1) -> 166.37 | M40: b1 | N40: =2*N39*COS(RADIANS(1.414*180/$A$22)) -> 1.562308736 | O40: -1.430474499 | P40: 1.165554171 | Q40: 3.274040335 | R40: 0.3559987207 | S40: 0.9512267615 | U40: b1 | V40: =2*V39*COS(RADIANS(1.414*180/$A$27)) -> 1.562308736 | W40: -1.430474499 | X40: 1.165554171 | Y40: 3.274040335 | Z40: 0.3559987207 | AA40: 0.6617638824
A41: 9 | B41: =OFFSET(InputPriceData!B$15,CalculationsAndCharts!$A41+$A$11,0,1,1) -> 2013-09-27 | C41: =OFFSET(InputPriceData!G$15,CalculationsAndCharts!$A41+$A$11,IF($C$7,8,0),1,1) -> 99141800 | D41: =OFFSET(InputPriceData!C$15,CalculationsAndCharts!$A41+$A$11,IF($C$7,8,0),1,1) -> 167.19 | E41: =OFFSET(InputPriceData!D$15,CalculationsAndCharts!$A41+$A$11,IF($C$7,8,0),1,1) -> 167.49 | F41: =OFFSET(InputPriceData!E$15,CalculationsAndCharts!$A41+$A$11,IF($C$7,8,0),1,1) -> 166.82 | G41: =OFFSET(InputPriceData!F$15,CalculationsAndCharts!$A41+$A$11,IF($C$7,8,0),1,1) -> 167.26 | M41: c1 | N41: =1-N42-N43 -> 0.07901504796 | O41: -0.530642484 | P41: 1.598344955 | Q41: 3.303774304 | R41: 0.4837936276 | S41: 0.9640378123 | U41: c1 | V41: =1-V42-V43 -> 0.07901504796 | W41: -0.530642484 | X41: 1.598344955 | Y41: 3.303774304 | Z41: 0.4837936276 | AA41: 0.7404949352
A42: 10 | B42: =OFFSET(InputPriceData!B$15,CalculationsAndCharts!$A42+$A$11,0,1,1) -> 2013-09-26 | C42: =OFFSET(InputPriceData!G$15,CalculationsAndCharts!$A42+$A$11,IF($C$7,8,0),1,1) -> 77146900 | D42: =OFFSET(InputPriceData!C$15,CalculationsAndCharts!$A42+$A$11,IF($C$7,8,0),1,1) -> 167.66 | E42: =OFFSET(InputPriceData!D$15,CalculationsAndCharts!$A42+$A$11,IF($C$7,8,0),1,1) -> 168.51 | F42: =OFFSET(InputPriceData!E$15,CalculationsAndCharts!$A42+$A$11,IF($C$7,8,0),1,1) -> 167.4 | G42: =OFFSET(InputPriceData!F$15,CalculationsAndCharts!$A42+$A$11,IF($C$7,8,0),1,1) -> 168.03 | M42: c2 | N42: =N40 -> 1.562308736 | O42: 0.3284030541 | P42: 1.955447889 | Q42: 3.333778309 | R42: 0.5865560659 | S42: 0.9729403881 | U42: c2 | V42: =V40 -> 1.562308736 | W42: 0.3284030541 | X42: 1.955447889 | Y42: 3.333778309 | Z42: 0.5865560659 | AA42: 0.7990751219
A43: 11 | B43: =OFFSET(InputPriceData!B$15,CalculationsAndCharts!$A43+$A$11,0,1,1) -> 2013-09-25 | C43: =OFFSET(InputPriceData!G$15,CalculationsAndCharts!$A43+$A$11,IF($C$7,8,0),1,1) -> 117306500 | D43: =OFFSET(InputPriceData!C$15,CalculationsAndCharts!$A43+$A$11,IF($C$7,8,0),1,1) -> 167.98 | E43: =OFFSET(InputPriceData!D$15,CalculationsAndCharts!$A43+$A$11,IF($C$7,8,0),1,1) -> 168.32 | F43: =OFFSET(InputPriceData!E$15,CalculationsAndCharts!$A43+$A$11,IF($C$7,8,0),1,1) -> 167.24 | G43: =OFFSET(InputPriceData!F$15,CalculationsAndCharts!$A43+$A$11,IF($C$7,8,0),1,1) -> 167.39 | M43: c3 | N43: =-N39*N39 -> -0.6413237842 | O43: -0.2081842989 | P43: 2.258887666 | Q43: 3.364054802 | R43: 0.6714776659 | S43: 0.9795227693 | U43: c3 | V43: =-V39*V39 -> -0.6413237842 | W43: -0.2081842989 | X43: 2.258887666 | Y43: 3.364054802 | Z43: 0.6714776659 | AA43: 0.8446202203
A44: 12 | B44: =OFFSET(InputPriceData!B$15,CalculationsAndCharts!$A44+$A$11,0,1,1) -> 2013-09-24 | C44: =OFFSET(InputPriceData!G$15,CalculationsAndCharts!$A44+$A$11,IF($C$7,8,0),1,1) -> 106333100 | D44: =OFFSET(InputPriceData!C$15,CalculationsAndCharts!$A44+$A$11,IF($C$7,8,0),1,1) -> 168.24 | E44: =OFFSET(InputPriceData!D$15,CalculationsAndCharts!$A44+$A$11,IF($C$7,8,0),1,1) -> 168.86 | F44: =OFFSET(InputPriceData!E$15,CalculationsAndCharts!$A44+$A$11,IF($C$7,8,0),1,1) -> 167.55 | G44: =OFFSET(InputPriceData!F$15,CalculationsAndCharts!$A44+$A$11,IF($C$7,8,0),1,1) -> 167.87 | O44: 0.3772560979 | P44: 2.461130603 | Q44: 3.394606258 | R44: 0.7250120972 | S44: 0.9833593893 | W44: 0.3772560979 | X44: 2.461130603 | Y44: 3.394606258 | Z44: 0.7250120972 | AA44: 0.8720991296
A45: 13 | B45: =OFFSET(InputPriceData!B$15,CalculationsAndCharts!$A45+$A$11,0,1,1) -> 2013-09-23 | C45: =OFFSET(InputPriceData!G$15,CalculationsAndCharts!$A45+$A$11,IF($C$7,8,0),1,1) -> 104616500 | D45: =OFFSET(InputPriceData!C$15,CalculationsAndCharts!$A45+$A$11,IF($C$7,8,0),1,1) -> 168.82 | E45: =OFFSET(InputPriceData!D$15,CalculationsAndCharts!$A45+$A$11,IF($C$7,8,0),1,1) -> 168.98 | F45: =OFFSET(InputPriceData!E$15,CalculationsAndCharts!$A45+$A$11,IF($C$7,8,0),1,1) -> 167.74 | G45: =OFFSET(InputPriceData!F$15,CalculationsAndCharts!$A45+$A$11,IF($C$7,8,0),1,1) -> 168.27 | O45: 0.9326533913 | P45: 2.483671778 | Q45: 3.425435175 | R45: 0.7250675172 | S45: 0.9833632452 | W45: 0.9326533913 | X45: 2.483671778 | Y45: 3.425435175 | Z45: 0.7250675172 | AA45: 0.8721271037
A46: 14 | B46: =OFFSET(InputPriceData!B$15,CalculationsAndCharts!$A46+$A$11,0,1,1) -> 2013-09-20 | C46: =OFFSET(InputPriceData!G$15,CalculationsAndCharts!$A46+$A$11,IF($C$7,8,0),1,1) -> 132867100 | D46: =OFFSET(InputPriceData!C$15,CalculationsAndCharts!$A46+$A$11,IF($C$7,8,0),1,1) -> 170.64 | E46: =OFFSET(InputPriceData!D$15,CalculationsAndCharts!$A46+$A$11,IF($C$7,8,0),1,1) -> 170.64 | F46: =OFFSET(InputPriceData!E$15,CalculationsAndCharts!$A46+$A$11,IF($C$7,8,0),1,1) -> 168.91 | G46: =OFFSET(InputPriceData!F$15,CalculationsAndCharts!$A46+$A$11,IF($C$7,8,0),1,1) -> 169.05 | O46: 1.935207887 | P46: 2.293510439 | Q46: 3.456544072 | R46: 0.6635270351 | S46: 0.9789332349 | W46: 1.935207887 | X46: 2.293510439 | Y46: 3.456544072 | Z46: 0.6635270351 | AA46: 0.8404598912
A47: 15 | B47: =OFFSET(InputPriceData!B$15,CalculationsAndCharts!$A47+$A$11,0,1,1) -> 2013-09-19 | C47: =OFFSET(InputPriceData!G$15,CalculationsAndCharts!$A47+$A$11,IF($C$7,8,0),1,1) -> 146616900 | D47: =OFFSET(InputPriceData!C$15,CalculationsAndCharts!$A47+$A$11,IF($C$7,8,0),1,1) -> 170.99 | E47: =OFFSET(InputPriceData!D$15,CalculationsAndCharts!$A47+$A$11,IF($C$7,8,0),1,1) -> 171.07 | F47: =OFFSET(InputPriceData!E$15,CalculationsAndCharts!$A47+$A$11,IF($C$7,8,0),1,1) -> 170.07 | G47: =OFFSET(InputPriceData!F$15,CalculationsAndCharts!$A47+$A$11,IF($C$7,8,0),1,1) -> 170.24 | O47: 3.455788118 | P47: 1.891091125 | Q47: 3.487935491 | R47: 0.5421806482 | S47: 0.9692317968 | W47: 3.455788118 | X47: 1.891091125 | Y47: 3.487935491 | Z47: 0.5421806482 | AA47: 0.774264218
A48: 16 | B48: =OFFSET(InputPriceData!B$15,CalculationsAndCharts!$A48+$A$11,0,1,1) -> 2013-09-18 | C48: =OFFSET(InputPriceData!G$15,CalculationsAndCharts!$A48+$A$11,IF($C$7,8,0),1,1) -> 203460600 | D48: =OFFSET(InputPriceData!C$15,CalculationsAndCharts!$A48+$A$11,IF($C$7,8,0),1,1) -> 168.52 | E48: =OFFSET(InputPriceData!D$15,CalculationsAndCharts!$A48+$A$11,IF($C$7,8,0),1,1) -> 170.99 | F48: =OFFSET(InputPriceData!E$15,CalculationsAndCharts!$A48+$A$11,IF($C$7,8,0),1,1) -> 168.1 | G48: =OFFSET(InputPriceData!F$15,CalculationsAndCharts!$A48+$A$11,IF($C$7,8,0),1,1) -> 170.53 | O48: 4.169200037 | P48: 1.362716731 | Q48: 3.519611999 | R48: 0.3871781126 | S48: 0.9545539541 | W48: 4.169200037 | X48: 1.362716731 | Y48: 3.519611999 | Z48: 0.3871781126 | AA48: 0.6816154753
A49: 17 | B49: =OFFSET(InputPriceData!B$15,CalculationsAndCharts!$A49+$A$11,0,1,1) -> 2013-09-17 | C49: =OFFSET(InputPriceData!G$15,CalculationsAndCharts!$A49+$A$11,IF($C$7,8,0),1,1) -> 82523300 | D49: =OFFSET(InputPriceData!C$15,CalculationsAndCharts!$A49+$A$11,IF($C$7,8,0),1,1) -> 167.98 | E49: =OFFSET(InputPriceData!D$15,CalculationsAndCharts!$A49+$A$11,IF($C$7,8,0),1,1) -> 168.62 | F49: =OFFSET(InputPriceData!E$15,CalculationsAndCharts!$A49+$A$11,IF($C$7,8,0),1,1) -> 167.98 | G49: =OFFSET(InputPriceData!F$15,CalculationsAndCharts!$A49+$A$11,IF($C$7,8,0),1,1) -> 168.58 | O49: 2.597370827 | P49: 0.8406635528 | Q49: 3.551576185 | R49: 0.2367015401 | S49: 0.9370751269 | W49: 2.597370827 | X49: 0.8406635528 | Y49: 3.551576185 | Z49: 0.2367015401 | AA49: 0.5816322412
A50: 18 | B50: =OFFSET(InputPriceData!B$15,CalculationsAndCharts!$A50+$A$11,0,1,1) -> 2013-09-16 | C50: =OFFSET(InputPriceData!G$15,CalculationsAndCharts!$A50+$A$11,IF($C$7,8,0),1,1) -> 106299200 | D50: =OFFSET(InputPriceData!C$15,CalculationsAndCharts!$A50+$A$11,IF($C$7,8,0),1,1) -> 168.67 | E50: =OFFSET(InputPriceData!D$15,CalculationsAndCharts!$A50+$A$11,IF($C$7,8,0),1,1) -> 168.75 | F50: =OFFSET(InputPriceData!E$15,CalculationsAndCharts!$A50+$A$11,IF($C$7,8,0),1,1) -> 167.56 | G50: =OFFSET(InputPriceData!F$15,CalculationsAndCharts!$A50+$A$11,IF($C$7,8,0),1,1) -> 167.83 | O50: 2.129235348 | P50: 0.3399059068 | Q50: 3.583830661 | R50: 0.09484429902 | S50: 0.9166031722 | W50: 2.129235348 | X50: 0.3399059068 | Y50: 3.583830661 | Z50: 0.09484429902 | AA50: 0.4767572174
A51: 19 | B51: =OFFSET(InputPriceData!B$15,CalculationsAndCharts!$A51+$A$11,0,1,1) -> 2013-09-13 | C51: =OFFSET(InputPriceData!G$15,CalculationsAndCharts!$A51+$A$11,IF($C$7,8,0),1,1) -> 72727800 | D51: =OFFSET(InputPriceData!C$15,CalculationsAndCharts!$A51+$A$11,IF($C$7,8,0),1,1) -> 166.66 | E51: =OFFSET(InputPriceData!D$15,CalculationsAndCharts!$A51+$A$11,IF($C$7,8,0),1,1) -> 166.99 | F51: =OFFSET(InputPriceData!E$15,CalculationsAndCharts!$A51+$A$11,IF($C$7,8,0),1,1) -> 166.28 | G51: =OFFSET(InputPriceData!F$15,CalculationsAndCharts!$A51+$A$11,IF($C$7,8,0),1,1) -> 166.86 | O51: 1.383083943 | P51: -0.1916178399 | Q51: 3.616378063 | R51: -0.05298611942 | S51: 0.8894285093 | W51: 1.383083943 | X51: -0.1916178399 | Y51: 3.616378063 | Z51: -0.05298611942 | AA51: 0.3545279037
A52: 20 | B52: =OFFSET(InputPriceData!B$15,CalculationsAndCharts!$A52+$A$11,0,1,1) -> 2013-09-12 | C52: =OFFSET(InputPriceData!G$15,CalculationsAndCharts!$A52+$A$11,IF($C$7,8,0),1,1) -> 83209000 | D52: =OFFSET(InputPriceData!C$15,CalculationsAndCharts!$A52+$A$11,IF($C$7,8,0),1,1) -> 166.87 | E52: =OFFSET(InputPriceData!D$15,CalculationsAndCharts!$A52+$A$11,IF($C$7,8,0),1,1) -> 167.09 | F52: =OFFSET(InputPriceData!E$15,CalculationsAndCharts!$A52+$A$11,IF($C$7,8,0),1,1) -> 166.26 | G52: =OFFSET(InputPriceData!F$15,CalculationsAndCharts!$A52+$A$11,IF($C$7,8,0),1,1) -> 166.49 | O52: 1.192300832 | P52: -0.7804312047 | Q52: 3.649221053 | R52: -0.2138624088 | S52: 0.8496809183 | W52: 1.192300832 | X52: -0.7804312047 | Y52: 3.649221053 | Z52: -0.2138624088 | AA52: 0.2035502936
A53: 21 | B53: =OFFSET(InputPriceData!B$15,CalculationsAndCharts!$A53+$A$11,0,1,1) -> 2013-09-11 | C53: =OFFSET(InputPriceData!G$15,CalculationsAndCharts!$A53+$A$11,IF($C$7,8,0),1,1) -> 94545900 | D53: =OFFSET(InputPriceData!C$15,CalculationsAndCharts!$A53+$A$11,IF($C$7,8,0),1,1) -> 166.18 | E53: =OFFSET(InputPriceData!D$15,CalculationsAndCharts!$A53+$A$11,IF($C$7,8,0),1,1) -> 166.93 | F53: =OFFSET(InputPriceData!E$15,CalculationsAndCharts!$A53+$A$11,IF($C$7,8,0),1,1) -> 165.9 | G53: =OFFSET(InputPriceData!F$15,CalculationsAndCharts!$A53+$A$11,IF($C$7,8,0),1,1) -> 166.93 | O53: 1.828547717 | P53: -1.443747443 | Q53: 3.682362313 | R53: -0.3920709914 | S53: 0.7848874488 | W53: 1.828547717 | X53: -1.443747443 | Y53: 3.682362313 | Z53: -0.3920709914 | AA53: 0.009403789903
A54: 22 | B54: =OFFSET(InputPriceData!B$15,CalculationsAndCharts!$A54+$A$11,0,1,1) -> 2013-09-10 | C54: =OFFSET(InputPriceData!G$15,CalculationsAndCharts!$A54+$A$11,IF($C$7,8,0),1,1) -> 105847200 | D54: =OFFSET(InputPriceData!C$15,CalculationsAndCharts!$A54+$A$11,IF($C$7,8,0),1,1) -> 166.18 | E54: =OFFSET(InputPriceData!D$15,CalculationsAndCharts!$A54+$A$11,IF($C$7,8,0),1,1) -> 166.44 | F54: =OFFSET(InputPriceData!E$15,CalculationsAndCharts!$A54+$A$11,IF($C$7,8,0),1,1) -> 165.81 | G54: =OFFSET(InputPriceData!F$15,CalculationsAndCharts!$A54+$A$11,IF($C$7,8,0),1,1) -> 166.41 | O54: 1.516036701 | P54: -2.114067535 | Q54: 3.715804554 | R54: -0.5689393789 | S54: 0.6784660887 | W54: 1.516036701 | X54: -2.114067535 | Y54: 3.715804554 | Z54: -0.5689393789 | AA54: -0.2187131996
A55: 23 | B55: =OFFSET(InputPriceData!B$15,CalculationsAndCharts!$A55+$A$11,0,1,1) -> 2013-09-09 | C55: =OFFSET(InputPriceData!G$15,CalculationsAndCharts!$A55+$A$11,IF($C$7,8,0),1,1) -> 87559300 | D55: =OFFSET(InputPriceData!C$15,CalculationsAndCharts!$A55+$A$11,IF($C$7,8,0),1,1) -> 164.03 | E55: =OFFSET(InputPriceData!D$15,CalculationsAndCharts!$A55+$A$11,IF($C$7,8,0),1,1) -> 165.29 | F55: =OFFSET(InputPriceData!E$15,CalculationsAndCharts!$A55+$A$11,IF($C$7,8,0),1,1) -> 164.03 | G55: =OFFSET(InputPriceData!F$15,CalculationsAndCharts!$A55+$A$11,IF($C$7,8,0),1,1) -> 165.19 | O55: 0.4391815235 | P55: -2.69277786 | Q55: 3.749550509 | R55: -0.7181601777 | S55: 0.5141716937 | W55: 0.4391815235 | X55: -2.69277786 | Y55: 3.749550509 | Z55: -0.7181601777 | AA55: -0.4463927871
A56: 24 | B56: =OFFSET(InputPriceData!B$15,CalculationsAndCharts!$A56+$A$11,0,1,1) -> 2013-09-06 | C56: =OFFSET(InputPriceData!G$15,CalculationsAndCharts!$A56+$A$11,IF($C$7,8,0),1,1) -> 159756500 | D56: =OFFSET(InputPriceData!C$15,CalculationsAndCharts!$A56+$A$11,IF($C$7,8,0),1,1) -> 164.08 | E56: =OFFSET(InputPriceData!D$15,CalculationsAndCharts!$A56+$A$11,IF($C$7,8,0),1,1) -> 164.55 | F56: =OFFSET(InputPriceData!E$15,CalculationsAndCharts!$A56+$A$11,IF($C$7,8,0),1,1) -> 162.08 | G56: =OFFSET(InputPriceData!F$15,CalculationsAndCharts!$A56+$A$11,IF($C$7,8,0),1,1) -> 163.62 | O56: -1.104750144 | P56: -3.142931946 | Q56: 3.783602935 | R56: -0.8306717169 | S56: 0.2746811869 | W56: -1.104750144 | X56: -3.142931946 | Y56: 3.783602935 | Z56: -0.8306717169 | AA56: -0.6449775656
A57: 25 | B57: =OFFSET(InputPriceData!B$15,CalculationsAndCharts!$A57+$A$11,0,1,1) -> 2013-09-05 | C57: =OFFSET(InputPriceData!G$15,CalculationsAndCharts!$A57+$A$11,IF($C$7,8,0),1,1) -> 63090500 | D57: =OFFSET(InputPriceData!C$15,CalculationsAndCharts!$A57+$A$11,IF($C$7,8,0),1,1) -> 163.43 | E57: =OFFSET(InputPriceData!D$15,CalculationsAndCharts!$A57+$A$11,IF($C$7,8,0),1,1) -> 163.97 | F57: =OFFSET(InputPriceData!E$15,CalculationsAndCharts!$A57+$A$11,IF($C$7,8,0),1,1) -> 163.31 | G57: =OFFSET(InputPriceData!F$15,CalculationsAndCharts!$A57+$A$11,IF($C$7,8,0),1,1) -> 163.54 | O57: -1.23142454 | P57: -3.498618328 | Q57: 3.817964617 | R57: -0.9163569281 | S57: -0.09331950799 | W57: -1.23142454 | X57: -3.498618328 | Y57: 3.817964617 | Z57: -0.9163569281 | AA57: -0.8151409513
A58: 26 | B58: =OFFSET(InputPriceData!B$15,CalculationsAndCharts!$A58+$A$11,0,1,1) -> 2013-09-04 | C58: =OFFSET(InputPriceData!G$15,CalculationsAndCharts!$A58+$A$11,IF($C$7,8,0),1,1) -> 97389400 | D58: =OFFSET(InputPriceData!C$15,CalculationsAndCharts!$A58+$A$11,IF($C$7,8,0),1,1) -> 162.03 | E58: =OFFSET(InputPriceData!D$15,CalculationsAndCharts!$A58+$A$11,IF($C$7,8,0),1,1) -> 163.61 | F58: =OFFSET(InputPriceData!E$15,CalculationsAndCharts!$A58+$A$11,IF($C$7,8,0),1,1) -> 161.73 | G58: =OFFSET(InputPriceData!F$15,CalculationsAndCharts!$A58+$A$11,IF($C$7,8,0),1,1) -> 163.33 | O58: -1.503303997 | P58: -3.766095331 | Q58: 3.852638362 | R58: -0.9775366845 | S58: -0.6449727976 | W58: -1.503303997 | X58: -3.766095331 | Y58: 3.852638362 | Z58: -0.9775366845 | AA58: -0.9483589499
A59: 27 | B59: =OFFSET(InputPriceData!B$15,CalculationsAndCharts!$A59+$A$11,0,1,1) -> 2013-09-03 | C59: =OFFSET(InputPriceData!G$15,CalculationsAndCharts!$A59+$A$11,IF($C$7,8,0),1,1) -> 142375100 | D59: =OFFSET(InputPriceData!C$15,CalculationsAndCharts!$A59+$A$11,IF($C$7,8,0),1,1) -> 162.82 | E59: =OFFSET(InputPriceData!D$15,CalculationsAndCharts!$A59+$A$11,IF($C$7,8,0),1,1) -> 163.16 | F59: =OFFSET(InputPriceData!E$15,CalculationsAndCharts!$A59+$A$11,IF($C$7,8,0),1,1) -> 161.31 | G59: =OFFSET(InputPriceData!F$15,CalculationsAndCharts!$A59+$A$11,IF($C$7,8,0),1,1) -> 161.99 | O59: -2.979277881 | P59: -3.887627005 | Q59: 3.887627005 | R59: -1 | S59: -1 | W59: -2.979277881 | X59: -3.887627005 | Y59: 3.887627005 | Z59: -1 | AA59: -1
A60: 28 | B60: =OFFSET(InputPriceData!B$15,CalculationsAndCharts!$A60+$A$11,0,1,1) -> 2013-08-30 | C60: =OFFSET(InputPriceData!G$15,CalculationsAndCharts!$A60+$A$11,IF($C$7,8,0),1,1) -> 134928900 | D60: =OFFSET(InputPriceData!C$15,CalculationsAndCharts!$A60+$A$11,IF($C$7,8,0),1,1) -> 162.12 | E60: =OFFSET(InputPriceData!D$15,CalculationsAndCharts!$A60+$A$11,IF($C$7,8,0),1,1) -> 162.14 | F60: =OFFSET(InputPriceData!E$15,CalculationsAndCharts!$A60+$A$11,IF($C$7,8,0),1,1) -> 160.8 | G60: =OFFSET(InputPriceData!F$15,CalculationsAndCharts!$A60+$A$11,IF($C$7,8,0),1,1) -> 161.27 | O60: -3.937788879 | P60: -3.874289516 | Q60: 3.874289516 | R60: -1 | S60: -1 | W60: -3.937788879 | X60: -3.874289516 | Y60: 3.874289516 | Z60: -1 | AA60: -1
A61: 29 | B61: =OFFSET(InputPriceData!B$15,CalculationsAndCharts!$A61+$A$11,0,1,1) -> 2013-08-29 | C61: =OFFSET(InputPriceData!G$15,CalculationsAndCharts!$A61+$A$11,IF($C$7,8,0),1,1) -> 119200500 | D61: =OFFSET(InputPriceData!C$15,CalculationsAndCharts!$A61+$A$11,IF($C$7,8,0),1,1) -> 161.17 | E61: =OFFSET(InputPriceData!D$15,CalculationsAndCharts!$A61+$A$11,IF($C$7,8,0),1,1) -> 162.64 | F61: =OFFSET(InputPriceData!E$15,CalculationsAndCharts!$A61+$A$11,IF($C$7,8,0),1,1) -> 161.02 | G61: =OFFSET(InputPriceData!F$15,CalculationsAndCharts!$A61+$A$11,IF($C$7,8,0),1,1) -> 161.78 | O61: -3.690731187 | P61: -3.802268984 | Q61: 3.802268984 | R61: -1 | S61: -1 | W61: -3.690731187 | X61: -3.802268984 | Y61: 3.802268984 | Z61: -1 | AA61: -1
A62: 30 | B62: =OFFSET(InputPriceData!B$15,CalculationsAndCharts!$A62+$A$11,0,1,1) -> 2013-08-28 | C62: =OFFSET(InputPriceData!G$15,CalculationsAndCharts!$A62+$A$11,IF($C$7,8,0),1,1) -> 108113000 | D62: =OFFSET(InputPriceData!C$15,CalculationsAndCharts!$A62+$A$11,IF($C$7,8,0),1,1) -> 160.88 | E62: =OFFSET(InputPriceData!D$15,CalculationsAndCharts!$A62+$A$11,IF($C$7,8,0),1,1) -> 162.09 | F62: =OFFSET(InputPriceData!E$15,CalculationsAndCharts!$A62+$A$11,IF($C$7,8,0),1,1) -> 160.67 | G62: =OFFSET(InputPriceData!F$15,CalculationsAndCharts!$A62+$A$11,IF($C$7,8,0),1,1) -> 161.52 | O62: -4.218476518 | P62: -3.691446556 | Q62: 3.691446556 | R62: -1 | S62: -1 | W62: -4.218476518 | X62: -3.691446556 | Y62: 3.691446556 | Z62: -1 | AA62: -1
A63: 31 | B63: =OFFSET(InputPriceData!B$15,CalculationsAndCharts!$A63+$A$11,0,1,1) -> 2013-08-27 | C63: =OFFSET(InputPriceData!G$15,CalculationsAndCharts!$A63+$A$11,IF($C$7,8,0),1,1) -> 158619400 | D63: =OFFSET(InputPriceData!C$15,CalculationsAndCharts!$A63+$A$11,IF($C$7,8,0),1,1) -> 161.96 | E63: =OFFSET(InputPriceData!D$15,CalculationsAndCharts!$A63+$A$11,IF($C$7,8,0),1,1) -> 163.58 | F63: =OFFSET(InputPriceData!E$15,CalculationsAndCharts!$A63+$A$11,IF($C$7,8,0),1,1) -> 160.83 | G63: =OFFSET(InputPriceData!F$15,CalculationsAndCharts!$A63+$A$11,IF($C$7,8,0),1,1) -> 160.95 | O63: -5.110807963 | P63: -3.551066542 | Q63: 3.551066542 | R63: -1 | S63: -1 | W63: -5.110807963 | X63: -3.551066542 | Y63: 3.551066542 | Z63: -1 | AA63: -1
A64: 32 | B64: =OFFSET(InputPriceData!B$15,CalculationsAndCharts!$A64+$A$11,0,1,1) -> 2013-08-26 | C64: =OFFSET(InputPriceData!G$15,CalculationsAndCharts!$A64+$A$11,IF($C$7,8,0),1,1) -> 89702100 | D64: =OFFSET(InputPriceData!C$15,CalculationsAndCharts!$A64+$A$11,IF($C$7,8,0),1,1) -> 164.36 | E64: =OFFSET(InputPriceData!D$15,CalculationsAndCharts!$A64+$A$11,IF($C$7,8,0),1,1) -> 164.86 | F64: =OFFSET(InputPriceData!E$15,CalculationsAndCharts!$A64+$A$11,IF($C$7,8,0),1,1) -> 163.47 | G64: =OFFSET(InputPriceData!F$15,CalculationsAndCharts!$A64+$A$11,IF($C$7,8,0),1,1) -> 163.58 | O64: -2.728466547 | P64: -3.469374925 | Q64: 3.469374925 | R64: -1 | S64: -1 | W64: -2.728466547 | X64: -3.469374925 | Y64: 3.469374925 | Z64: -1 | AA64: -1
A65: 33 | B65: =OFFSET(InputPriceData!B$15,CalculationsAndCharts!$A65+$A$11,0,1,1) -> 2013-08-23 | C65: =OFFSET(InputPriceData!G$15,CalculationsAndCharts!$A65+$A$11,IF($C$7,8,0),1,1) -> 90888900 | D65: =OFFSET(InputPriceData!C$15,CalculationsAndCharts!$A65+$A$11,IF($C$7,8,0),1,1) -> 164.12 | E65: =OFFSET(InputPriceData!D$15,CalculationsAndCharts!$A65+$A$11,IF($C$7,8,0),1,1) -> 164.4 | F65: =OFFSET(InputPriceData!E$15,CalculationsAndCharts!$A65+$A$11,IF($C$7,8,0),1,1) -> 163.35 | G65: =OFFSET(InputPriceData!F$15,CalculationsAndCharts!$A65+$A$11,IF($C$7,8,0),1,1) -> 164.19 | O65: -2.231900379 | P65: -3.397470346 | Q65: 3.397470346 | R65: -1 | S65: -1 | W65: -2.231900379 | X65: -3.397470346 | Y65: 3.397470346 | Z65: -1 | AA65: -1
A66: 34 | B66: =OFFSET(InputPriceData!B$15,CalculationsAndCharts!$A66+$A$11,0,1,1) -> 2013-08-22 | C66: =OFFSET(InputPriceData!G$15,CalculationsAndCharts!$A66+$A$11,IF($C$7,8,0),1,1) -> 101471400 | D66: =OFFSET(InputPriceData!C$15,CalculationsAndCharts!$A66+$A$11,IF($C$7,8,0),1,1) -> 162.5 | E66: =OFFSET(InputPriceData!D$15,CalculationsAndCharts!$A66+$A$11,IF($C$7,8,0),1,1) -> 163.88 | F66: =OFFSET(InputPriceData!E$15,CalculationsAndCharts!$A66+$A$11,IF($C$7,8,0),1,1) -> 162.49 | G66: =OFFSET(InputPriceData!F$15,CalculationsAndCharts!$A66+$A$11,IF($C$7,8,0),1,1) -> 163.64 | O66: -2.89788181 | P66: -3.172335945 | Q66: 3.172335945 | R66: -1 | S66: -1 | W66: -2.89788181 | X66: -3.172335945 | Y66: 3.172335945 | Z66: -1 | AA66: -1
A67: 35 | B67: =OFFSET(InputPriceData!B$15,CalculationsAndCharts!$A67+$A$11,0,1,1) -> 2013-08-21 | C67: =OFFSET(InputPriceData!G$15,CalculationsAndCharts!$A67+$A$11,IF($C$7,8,0),1,1) -> 159530500 | D67: =OFFSET(InputPriceData!C$15,CalculationsAndCharts!$A67+$A$11,IF($C$7,8,0),1,1) -> 162.71 | E67: =OFFSET(InputPriceData!D$15,CalculationsAndCharts!$A67+$A$11,IF($C$7,8,0),1,1) -> 163.61 | F67: =OFFSET(InputPriceData!E$15,CalculationsAndCharts!$A67+$A$11,IF($C$7,8,0),1,1) -> 161.8 | G67: =OFFSET(InputPriceData!F$15,CalculationsAndCharts!$A67+$A$11,IF($C$7,8,0),1,1) -> 162.16 | O67: -4.592516067 | P67: -2.746448597 | Q67: 2.907938078 | R67: -0.9444659837 | S67: -0.2964782067 | W67: -4.592516067 | X67: -2.746448597 | Y67: 2.907938078 | Z67: -0.9444659837 | AA67: -0.8750467331
A68: 36 | B68: =OFFSET(InputPriceData!B$15,CalculationsAndCharts!$A68+$A$11,0,1,1) -> 2013-08-20 | C68: =OFFSET(InputPriceData!G$15,CalculationsAndCharts!$A68+$A$11,IF($C$7,8,0),1,1) -> 89294400 | D68: =OFFSET(InputPriceData!C$15,CalculationsAndCharts!$A68+$A$11,IF($C$7,8,0),1,1) -> 162.64 | E68: =OFFSET(InputPriceData!D$15,CalculationsAndCharts!$A68+$A$11,IF($C$7,8,0),1,1) -> 163.78 | F68: =OFFSET(InputPriceData!E$15,CalculationsAndCharts!$A68+$A$11,IF($C$7,8,0),1,1) -> 162.46 | G68: =OFFSET(InputPriceData!F$15,CalculationsAndCharts!$A68+$A$11,IF($C$7,8,0),1,1) -> 163.17 | O68: -3.830743549 | P68: -2.205425404 | Q68: 2.934347202 | R68: -0.7515897921 | S68: 0.4586660714 | W68: -3.830743549 | X68: -2.205425404 | Y68: 2.934347202 | Z68: -0.7515897921 | AA68: -0.502727836
A69: 37 | B69: =OFFSET(InputPriceData!B$15,CalculationsAndCharts!$A69+$A$11,0,1,1) -> 2013-08-19 | C69: =OFFSET(InputPriceData!G$15,CalculationsAndCharts!$A69+$A$11,IF($C$7,8,0),1,1) -> 96437600 | D69: =OFFSET(InputPriceData!C$15,CalculationsAndCharts!$A69+$A$11,IF($C$7,8,0),1,1) -> 163.23 | E69: =OFFSET(InputPriceData!D$15,CalculationsAndCharts!$A69+$A$11,IF($C$7,8,0),1,1) -> 163.79 | F69: =OFFSET(InputPriceData!E$15,CalculationsAndCharts!$A69+$A$11,IF($C$7,8,0),1,1) -> 162.36 | G69: =OFFSET(InputPriceData!F$15,CalculationsAndCharts!$A69+$A$11,IF($C$7,8,0),1,1) -> 162.37 | O69: -4.88343937 | P69: -1.608998349 | Q69: 2.960996168 | R69: -0.5433976465 | S69: 0.6979310196 | W69: -4.88343937 | X69: -1.608998349 | Y69: 2.960996168 | Z69: -0.5433976465 | AA69: -0.1832227768
A70: 38 | B70: =OFFSET(InputPriceData!B$15,CalculationsAndCharts!$A70+$A$11,0,1,1) -> 2013-08-16 | C70: =OFFSET(InputPriceData!G$15,CalculationsAndCharts!$A70+$A$11,IF($C$7,8,0),1,1) -> 130868200 | D70: =OFFSET(InputPriceData!C$15,CalculationsAndCharts!$A70+$A$11,IF($C$7,8,0),1,1) -> 163.64 | E70: =OFFSET(InputPriceData!D$15,CalculationsAndCharts!$A70+$A$11,IF($C$7,8,0),1,1) -> 164.2 | F70: =OFFSET(InputPriceData!E$15,CalculationsAndCharts!$A70+$A$11,IF($C$7,8,0),1,1) -> 163.08 | G70: =OFFSET(InputPriceData!F$15,CalculationsAndCharts!$A70+$A$11,IF($C$7,8,0),1,1) -> 163.41 | O70: -4.099335233 | P70: -1.017586717 | Q70: 2.987887152 | R70: -0.3405706658 | S70: 0.8066911385 | W70: -4.099335233 | X70: -1.017586717 | Y70: 2.987887152 | Z70: -0.3405706658 | AA70: 0.06880212896
A71: 39 | B71: =OFFSET(InputPriceData!B$15,CalculationsAndCharts!$A71+$A$11,0,1,1) -> 2013-08-15 | C71: =OFFSET(InputPriceData!G$15,CalculationsAndCharts!$A71+$A$11,IF($C$7,8,0),1,1) -> 152931800 | D71: =OFFSET(InputPriceData!C$15,CalculationsAndCharts!$A71+$A$11,IF($C$7,8,0),1,1) -> 164.98 | E71: =OFFSET(InputPriceData!D$15,CalculationsAndCharts!$A71+$A$11,IF($C$7,8,0),1,1) -> 164.99 | F71: =OFFSET(InputPriceData!E$15,CalculationsAndCharts!$A71+$A$11,IF($C$7,8,0),1,1) -> 163.67 | G71: =OFFSET(InputPriceData!F$15,CalculationsAndCharts!$A71+$A$11,IF($C$7,8,0),1,1) -> 163.96 | O71: -3.746408711 | P71: -0.523407146 | Q71: 3.015022354 | R71: -0.1735997564 | S71: 0.8609083802 | W71: -3.746408711 | X71: -0.523407146 | Y71: 3.015022354 | Z71: -0.1735997564 | AA71: 0.2432945967
A72: 40 | B72: =OFFSET(InputPriceData!B$15,CalculationsAndCharts!$A72+$A$11,0,1,1) -> 2013-08-14 | C72: =OFFSET(InputPriceData!G$15,CalculationsAndCharts!$A72+$A$11,IF($C$7,8,0),1,1) -> 79829200 | D72: =OFFSET(InputPriceData!C$15,CalculationsAndCharts!$A72+$A$11,IF($C$7,8,0),1,1) -> 167.06 | E72: =OFFSET(InputPriceData!D$15,CalculationsAndCharts!$A72+$A$11,IF($C$7,8,0),1,1) -> 167.32 | F72: =OFFSET(InputPriceData!E$15,CalculationsAndCharts!$A72+$A$11,IF($C$7,8,0),1,1) -> 166.24 | G72: =OFFSET(InputPriceData!F$15,CalculationsAndCharts!$A72+$A$11,IF($C$7,8,0),1,1) -> 166.28 | O72: -1.501604833 | P72: -0.171680452 | Q72: 3.042403989 | R72: -0.05642920946 | S72: 0.8887048094 | W72: -1.501604833 | X72: -0.171680452 | Y72: 3.042403989 | Z72: -0.05642920946 | AA72: 0.3515048468
A73: 41 | B73: =OFFSET(InputPriceData!B$15,CalculationsAndCharts!$A73+$A$11,0,1,1) -> 2013-08-13 | C73: =OFFSET(InputPriceData!G$15,CalculationsAndCharts!$A73+$A$11,IF($C$7,8,0),1,1) -> 80806000 | D73: =OFFSET(InputPriceData!C$15,CalculationsAndCharts!$A73+$A$11,IF($C$7,8,0),1,1) -> 166.94 | E73: =OFFSET(InputPriceData!D$15,CalculationsAndCharts!$A73+$A$11,IF($C$7,8,0),1,1) -> 167.43 | F73: =OFFSET(InputPriceData!E$15,CalculationsAndCharts!$A73+$A$11,IF($C$7,8,0),1,1) -> 165.96 | G73: =OFFSET(InputPriceData!F$15,CalculationsAndCharts!$A73+$A$11,IF($C$7,8,0),1,1) -> 167.14 | O73: -0.5721575484 | P73: 0.07461637365 | Q73: 3.070034298 | R73: 0.02430473617 | S73: 0.904519049 | W73: -0.5721575484 | X73: 0.07461637365 | Y73: 3.070034298 | Z73: 0.02430473617 | AA73: 0.4202194074
A74: 42 | B74: =OFFSET(InputPriceData!B$15,CalculationsAndCharts!$A74+$A$11,0,1,1) -> 2013-08-12 | C74: =OFFSET(InputPriceData!G$15,CalculationsAndCharts!$A74+$A$11,IF($C$7,8,0),1,1) -> 68593300 | D74: =OFFSET(InputPriceData!C$15,CalculationsAndCharts!$A74+$A$11,IF($C$7,8,0),1,1) -> 166.01 | E74: =OFFSET(InputPriceData!D$15,CalculationsAndCharts!$A74+$A$11,IF($C$7,8,0),1,1) -> 166.85 | F74: =OFFSET(InputPriceData!E$15,CalculationsAndCharts!$A74+$A$11,IF($C$7,8,0),1,1) -> 165.93 | G74: =OFFSET(InputPriceData!F$15,CalculationsAndCharts!$A74+$A$11,IF($C$7,8,0),1,1) -> 166.65 | O74: -0.9671831726 | P74: 0.321717442 | Q74: 3.097915538 | R74: 0.1038496492 | S74: 0.9180448748 | W74: -0.9671831726 | X74: 0.321717442 | Y74: 3.097915538 | Z74: 0.1038496492 | AA74: 0.483754553
A75: 43 | B75: =OFFSET(InputPriceData!B$15,CalculationsAndCharts!$A75+$A$11,0,1,1) -> 2013-08-09 | C75: =OFFSET(InputPriceData!G$15,CalculationsAndCharts!$A75+$A$11,IF($C$7,8,0),1,1) -> 91757700 | D75: =OFFSET(InputPriceData!C$15,CalculationsAndCharts!$A75+$A$11,IF($C$7,8,0),1,1) -> 167.11 | E75: =OFFSET(InputPriceData!D$15,CalculationsAndCharts!$A75+$A$11,IF($C$7,8,0),1,1) -> 167.62 | F75: =OFFSET(InputPriceData!E$15,CalculationsAndCharts!$A75+$A$11,IF($C$7,8,0),1,1) -> 166.26 | G75: =OFFSET(InputPriceData!F$15,CalculationsAndCharts!$A75+$A$11,IF($C$7,8,0),1,1) -> 166.84 | O75: -0.6856770738 | P75: 0.5725501926 | Q75: 3.126049988 | R75: 0.1831545224 | S75: 0.9298748215 | W75: -0.6856770738 | X75: 0.5725501926 | Y75: 3.126049988 | Z75: 0.1831545224 | AA75: 0.5433478743
A76: 44 | B76: =OFFSET(InputPriceData!B$15,CalculationsAndCharts!$A76+$A$11,0,1,1) -> 2013-08-08 | C76: =OFFSET(InputPriceData!G$15,CalculationsAndCharts!$A76+$A$11,IF($C$7,8,0),1,1) -> 102181300 | D76: =OFFSET(InputPriceData!C$15,CalculationsAndCharts!$A76+$A$11,IF($C$7,8,0),1,1) -> 167.51 | E76: =OFFSET(InputPriceData!D$15,CalculationsAndCharts!$A76+$A$11,IF($C$7,8,0),1,1) -> 167.7 | F76: =OFFSET(InputPriceData!E$15,CalculationsAndCharts!$A76+$A$11,IF($C$7,8,0),1,1) -> 166.47 | G76: =OFFSET(InputPriceData!F$15,CalculationsAndCharts!$A76+$A$11,IF($C$7,8,0),1,1) -> 167.33 | O76: -0.06280492125 | P76: 0.7913043652 | Q76: 3.154439947 | R76: 0.2508541543 | S76: 0.9388835902 | W76: -0.06280492125 | X76: 0.7913043652 | Y76: 3.154439947 | Z76: 0.2508541543 | AA76: 0.5915018734
A77: 45 | B77: =OFFSET(InputPriceData!B$15,CalculationsAndCharts!$A77+$A$11,0,1,1) -> 2013-08-07 | C77: =OFFSET(InputPriceData!G$15,CalculationsAndCharts!$A77+$A$11,IF($C$7,8,0),1,1) -> 84854700 | D77: =OFFSET(InputPriceData!C$15,CalculationsAndCharts!$A77+$A$11,IF($C$7,8,0),1,1) -> 166.72 | E77: =OFFSET(InputPriceData!D$15,CalculationsAndCharts!$A77+$A$11,IF($C$7,8,0),1,1) -> 166.96 | F77: =OFFSET(InputPriceData!E$15,CalculationsAndCharts!$A77+$A$11,IF($C$7,8,0),1,1) -> 166.09 | G77: =OFFSET(InputPriceData!F$15,CalculationsAndCharts!$A77+$A$11,IF($C$7,8,0),1,1) -> 166.71 | O77: -0.542921947 | P77: 0.9887998473 | Q77: 3.183087737 | R77: 0.3106417193 | S77: 0.9461261037 | W77: -0.542921947 | X77: 0.9887998473 | Y77: 3.183087737 | Z77: 0.3106417193 | AA77: 0.6320991701
A78: 46 | B78: =OFFSET(InputPriceData!B$15,CalculationsAndCharts!$A78+$A$11,0,1,1) -> 2013-08-06 | C78: =OFFSET(InputPriceData!G$15,CalculationsAndCharts!$A78+$A$11,IF($C$7,8,0),1,1) -> 87495000 | D78: =OFFSET(InputPriceData!C$15,CalculationsAndCharts!$A78+$A$11,IF($C$7,8,0),1,1) -> 167.89 | E78: =OFFSET(InputPriceData!D$15,CalculationsAndCharts!$A78+$A$11,IF($C$7,8,0),1,1) -> 168.26 | F78: =OFFSET(InputPriceData!E$15,CalculationsAndCharts!$A78+$A$11,IF($C$7,8,0),1,1) -> 166.89 | G78: =OFFSET(InputPriceData!F$15,CalculationsAndCharts!$A78+$A$11,IF($C$7,8,0),1,1) -> 167.26 | O78: 0.1572261418 | P78: 1.137608683 | Q78: 3.211995698 | R78: 0.3541750333 | S78: 0.9510277703 | W78: 0.1572261418 | X78: 1.137608683 | Y78: 3.211995698 | Z78: 0.3541750333 | AA78: 0.6605893336
A79: 47 | B79: =OFFSET(InputPriceData!B$15,CalculationsAndCharts!$A79+$A$11,0,1,1) -> 2013-08-05 | C79: =OFFSET(InputPriceData!G$15,CalculationsAndCharts!$A79+$A$11,IF($C$7,8,0),1,1) -> 54072700 | D79: =OFFSET(InputPriceData!C$15,CalculationsAndCharts!$A79+$A$11,IF($C$7,8,0),1,1) -> 168.08 | E79: =OFFSET(InputPriceData!D$15,CalculationsAndCharts!$A79+$A$11,IF($C$7,8,0),1,1) -> 168.47 | F79: =OFFSET(InputPriceData!E$15,CalculationsAndCharts!$A79+$A$11,IF($C$7,8,0),1,1) -> 167.87 | G79: =OFFSET(InputPriceData!F$15,CalculationsAndCharts!$A79+$A$11,IF($C$7,8,0),1,1) -> 168.21 | O79: 1.340505029 | P79: 1.205722086 | Q79: 3.241166194 | R79: 0.372002549 | S79: 0.9529520249 | W79: 1.340505029 | X79: 1.205722086 | Y79: 3.241166194 | Z79: 0.372002549 | AA79: 0.6720071935
A80: 48 | B80: =OFFSET(InputPriceData!B$15,CalculationsAndCharts!$A80+$A$11,0,1,1) -> 2013-08-02 | C80: =OFFSET(InputPriceData!G$15,CalculationsAndCharts!$A80+$A$11,IF($C$7,8,0),1,1) -> 91116700 | D80: =OFFSET(InputPriceData!C$15,CalculationsAndCharts!$A80+$A$11,IF($C$7,8,0),1,1) -> 167.8 | E80: =OFFSET(InputPriceData!D$15,CalculationsAndCharts!$A80+$A$11,IF($C$7,8,0),1,1) -> 168.48 | F80: =OFFSET(InputPriceData!E$15,CalculationsAndCharts!$A80+$A$11,IF($C$7,8,0),1,1) -> 167.57 | G80: =OFFSET(InputPriceData!F$15,CalculationsAndCharts!$A80+$A$11,IF($C$7,8,0),1,1) -> 168.46 | O80: 1.89882442 | P80: 1.255642056 | Q80: 3.270601609 | R80: 0.383917764 | S80: 0.9542125353 | W80: 1.89882442 | X80: 1.255642056 | Y80: 3.270601609 | Z80: 0.383917764 | AA80: 0.6795597414
A81: 49 | B81: =OFFSET(InputPriceData!B$15,CalculationsAndCharts!$A81+$A$11,0,1,1) -> 2013-08-01 | C81: =OFFSET(InputPriceData!G$15,CalculationsAndCharts!$A81+$A$11,IF($C$7,8,0),1,1) -> 110438400 | D81: =OFFSET(InputPriceData!C$15,CalculationsAndCharts!$A81+$A$11,IF($C$7,8,0),1,1) -> 167.51 | E81: =OFFSET(InputPriceData!D$15,CalculationsAndCharts!$A81+$A$11,IF($C$7,8,0),1,1) -> 168.32 | F81: =OFFSET(InputPriceData!E$15,CalculationsAndCharts!$A81+$A$11,IF($C$7,8,0),1,1) -> 167.42 | G81: =OFFSET(InputPriceData!F$15,CalculationsAndCharts!$A81+$A$11,IF($C$7,8,0),1,1) -> 168.17 | O81: 1.940299149 | P81: 1.378330846 | Q81: 3.300304348 | R81: 0.4176374968 | S81: 0.95767326 | W81: 1.940299149 | X81: 1.378330846 | Y81: 3.300304348 | Z81: 0.4176374968 | AA81: 0.7005989415
A82: 50 | B82: =OFFSET(InputPriceData!B$15,CalculationsAndCharts!$A82+$A$11,0,1,1) -> 2013-07-31 | C82: =OFFSET(InputPriceData!G$15,CalculationsAndCharts!$A82+$A$11,IF($C$7,8,0),1,1) -> 142388700 | D82: =OFFSET(InputPriceData!C$15,CalculationsAndCharts!$A82+$A$11,IF($C$7,8,0),1,1) -> 166.48 | E82: =OFFSET(InputPriceData!D$15,CalculationsAndCharts!$A82+$A$11,IF($C$7,8,0),1,1) -> 167.37 | F82: =OFFSET(InputPriceData!E$15,CalculationsAndCharts!$A82+$A$11,IF($C$7,8,0),1,1) -> 166.03 | G82: =OFFSET(InputPriceData!F$15,CalculationsAndCharts!$A82+$A$11,IF($C$7,8,0),1,1) -> 166.25 | O82: 0.276715861 | P82: 1.636319373 | Q82: 3.330276839 | R82: 0.4913463512 | S82: 0.9647310001 | W82: 0.276715861 | X82: 1.636319373 | Y82: 3.330276839 | Z82: 0.4913463512 | AA82: 0.744937435
A83: 51 | B83: =OFFSET(InputPriceData!B$15,CalculationsAndCharts!$A83+$A$11,0,1,1) -> 2013-07-30 | C83: =OFFSET(InputPriceData!G$15,CalculationsAndCharts!$A83+$A$11,IF($C$7,8,0),1,1) -> 85209600 | D83: =OFFSET(InputPriceData!C$15,CalculationsAndCharts!$A83+$A$11,IF($C$7,8,0),1,1) -> 166.63 | E83: =OFFSET(InputPriceData!D$15,CalculationsAndCharts!$A83+$A$11,IF($C$7,8,0),1,1) -> 166.81 | F83: =OFFSET(InputPriceData!E$15,CalculationsAndCharts!$A83+$A$11,IF($C$7,8,0),1,1) -> 165.74 | G83: =OFFSET(InputPriceData!F$15,CalculationsAndCharts!$A83+$A$11,IF($C$7,8,0),1,1) -> 166.13 | O83: 0.3406628964 | P83: 1.973564697 | Q83: 3.360521533 | R83: 0.587279289 | S83: 0.9729992252 | W83: 0.3406628964 | X83: 1.973564697 | Y83: 3.360521533 | Z83: 0.587279289 | AA83: 0.799473579
A84: 52 | B84: =OFFSET(InputPriceData!B$15,CalculationsAndCharts!$A84+$A$11,0,1,1) -> 2013-07-29 | C84: =OFFSET(InputPriceData!G$15,CalculationsAndCharts!$A84+$A$11,IF($C$7,8,0),1,1) -> 79695000 | D84: =OFFSET(InputPriceData!C$15,CalculationsAndCharts!$A84+$A$11,IF($C$7,8,0),1,1) -> 166.22 | E84: =OFFSET(InputPriceData!D$15,CalculationsAndCharts!$A84+$A$11,IF($C$7,8,0),1,1) -> 166.59 | F84: =OFFSET(InputPriceData!E$15,CalculationsAndCharts!$A84+$A$11,IF($C$7,8,0),1,1) -> 165.66 | G84: =OFFSET(InputPriceData!F$15,CalculationsAndCharts!$A84+$A$11,IF($C$7,8,0),1,1) -> 166.13 | O84: 0.5353645589 | P84: 2.294299909 | Q84: 3.391040901 | R84: 0.6765768907 | S84: 0.9798981137 | W84: 0.5353645589 | X84: 2.294299909 | Y84: 3.391040901 | Z84: 0.6765768907 | AA84: 0.8472775316
A85: 53 | B85: =OFFSET(InputPriceData!B$15,CalculationsAndCharts!$A85+$A$11,0,1,1) -> 2013-07-26 | C85: =OFFSET(InputPriceData!G$15,CalculationsAndCharts!$A85+$A$11,IF($C$7,8,0),1,1) -> 107814600 | D85: =OFFSET(InputPriceData!C$15,CalculationsAndCharts!$A85+$A$11,IF($C$7,8,0),1,1) -> 165.77 | E85: =OFFSET(InputPriceData!D$15,CalculationsAndCharts!$A85+$A$11,IF($C$7,8,0),1,1) -> 166.7 | F85: =OFFSET(InputPriceData!E$15,CalculationsAndCharts!$A85+$A$11,IF($C$7,8,0),1,1) -> 165.08 | G85: =OFFSET(InputPriceData!F$15,CalculationsAndCharts!$A85+$A$11,IF($C$7,8,0),1,1) -> 166.65 | O85: 1.290953498 | P85: 2.565708323 | Q85: 3.421837438 | R85: 0.7498042701 | S85: 0.9850613704 | W85: 1.290953498 | X85: 2.565708323 | Y85: 3.421837438 | Z85: 0.7498042701 | AA85: 0.8845180929
A86: 54 | B86: =OFFSET(InputPriceData!B$15,CalculationsAndCharts!$A86+$A$11,0,1,1) -> 2013-07-25 | C86: =OFFSET(InputPriceData!G$15,CalculationsAndCharts!$A86+$A$11,IF($C$7,8,0),1,1) -> 111088600 | D86: =OFFSET(InputPriceData!C$15,CalculationsAndCharts!$A86+$A$11,IF($C$7,8,0),1,1) -> 165.77 | E86: =OFFSET(InputPriceData!D$15,CalculationsAndCharts!$A86+$A$11,IF($C$7,8,0),1,1) -> 166.62 | F86: =OFFSET(InputPriceData!E$15,CalculationsAndCharts!$A86+$A$11,IF($C$7,8,0),1,1) -> 165.49 | G86: =OFFSET(InputPriceData!F$15,CalculationsAndCharts!$A86+$A$11,IF($C$7,8,0),1,1) -> 166.47 | O86: 1.381934735 | P86: 2.785304344 | Q86: 3.452913661 | R86: 0.806653342 | S86: 0.9887979142 | W86: 1.381934735 | X86: 2.785304344 | Y86: 3.452913661 | Z86: 0.806653342 | AA86: 0.9122919892
A87: 55 | B87: =OFFSET(InputPriceData!B$15,CalculationsAndCharts!$A87+$A$11,0,1,1) -> 2013-07-24 | C87: =OFFSET(InputPriceData!G$15,CalculationsAndCharts!$A87+$A$11,IF($C$7,8,0),1,1) -> 112914000 | D87: =OFFSET(InputPriceData!C$15,CalculationsAndCharts!$A87+$A$11,IF($C$7,8,0),1,1) -> 167.31 | E87: =OFFSET(InputPriceData!D$15,CalculationsAndCharts!$A87+$A$11,IF($C$7,8,0),1,1) -> 167.38 | F87: =OFFSET(InputPriceData!E$15,CalculationsAndCharts!$A87+$A$11,IF($C$7,8,0),1,1) -> 165.72 | G87: =OFFSET(InputPriceData!F$15,CalculationsAndCharts!$A87+$A$11,IF($C$7,8,0),1,1) -> 166.06 | O87: 1.237949068 | P87: 2.949206361 | Q87: 3.48427211 | R87: 0.8464339948 | S87: 0.9912835268 | W87: 1.237949068 | X87: 2.949206361 | Y87: 3.48427211 | Z87: 0.8464339948 | AA87: 0.9311658296
A88: 56 | B88: =OFFSET(InputPriceData!B$15,CalculationsAndCharts!$A88+$A$11,0,1,1) -> 2013-07-23 | C88: =OFFSET(InputPriceData!G$15,CalculationsAndCharts!$A88+$A$11,IF($C$7,8,0),1,1) -> 80829700 | D88: =OFFSET(InputPriceData!C$15,CalculationsAndCharts!$A88+$A$11,IF($C$7,8,0),1,1) -> 167.33 | E88: =OFFSET(InputPriceData!D$15,CalculationsAndCharts!$A88+$A$11,IF($C$7,8,0),1,1) -> 167.36 | F88: =OFFSET(InputPriceData!E$15,CalculationsAndCharts!$A88+$A$11,IF($C$7,8,0),1,1) -> 166.59 | G88: =OFFSET(InputPriceData!F$15,CalculationsAndCharts!$A88+$A$11,IF($C$7,8,0),1,1) -> 166.68 | O88: 2.155358713 | P88: 3.002807143 | Q88: 3.515915348 | R88: 0.8540612745 | S88: 0.9917486048 | W88: 2.155358713 | X88: 3.002807143 | Y88: 3.515915348 | Z88: 0.8540612745 | AA88: 0.934733426
A89: 57 | B89: =OFFSET(InputPriceData!B$15,CalculationsAndCharts!$A89+$A$11,0,1,1) -> 2013-07-22 | C89: =OFFSET(InputPriceData!G$15,CalculationsAndCharts!$A89+$A$11,IF($C$7,8,0),1,1) -> 79428600 | D89: =OFFSET(InputPriceData!C$15,CalculationsAndCharts!$A89+$A$11,IF($C$7,8,0),1,1) -> 166.94 | E89: =OFFSET(InputPriceData!D$15,CalculationsAndCharts!$A89+$A$11,IF($C$7,8,0),1,1) -> 167.27 | F89: =OFFSET(InputPriceData!E$15,CalculationsAndCharts!$A89+$A$11,IF($C$7,8,0),1,1) -> 166.55 | G89: =OFFSET(InputPriceData!F$15,CalculationsAndCharts!$A89+$A$11,IF($C$7,8,0),1,1) -> 167.03 | O89: 2.871176583 | P89: 2.92545935 | Q89: 3.547845962 | R89: 0.8245733838 | S89: 0.9899302566 | W89: 2.871176583 | X89: 2.92545935 | Y89: 3.547845962 | Z89: 0.8245733838 | AA89: 0.9208500177
A90: 58 | B90: =OFFSET(InputPriceData!B$15,CalculationsAndCharts!$A90+$A$11,0,1,1) -> 2013-07-19 | C90: =OFFSET(InputPriceData!G$15,CalculationsAndCharts!$A90+$A$11,IF($C$7,8,0),1,1) -> 103831700 | D90: =OFFSET(InputPriceData!C$15,CalculationsAndCharts!$A90+$A$11,IF($C$7,8,0),1,1) -> 166.06 | E90: =OFFSET(InputPriceData!D$15,CalculationsAndCharts!$A90+$A$11,IF($C$7,8,0),1,1) -> 166.76 | F90: =OFFSET(InputPriceData!E$15,CalculationsAndCharts!$A90+$A$11,IF($C$7,8,0),1,1) -> 165.85 | G90: =OFFSET(InputPriceData!F$15,CalculationsAndCharts!$A90+$A$11,IF($C$7,8,0),1,1) -> 166.7 | O90: 2.936346766 | P90: 2.754068325 | Q90: 3.580066561 | R90: 0.7692785255 | S90: 0.9863668046 | W90: 2.936346766 | X90: 2.754068325 | Y90: 3.580066561 | Z90: 0.7692785255 | AA90: 0.8941411051
A91: 59 | B91: =OFFSET(InputPriceData!B$15,CalculationsAndCharts!$A91+$A$11,0,1,1) -> 2013-07-18 | C91: =OFFSET(InputPriceData!G$15,CalculationsAndCharts!$A91+$A$11,IF($C$7,8,0),1,1) -> 103620100 | D91: =OFFSET(InputPriceData!C$15,CalculationsAndCharts!$A91+$A$11,IF($C$7,8,0),1,1) -> 165.86 | E91: =OFFSET(InputPriceData!D$15,CalculationsAndCharts!$A91+$A$11,IF($C$7,8,0),1,1) -> 166.8 | F91: =OFFSET(InputPriceData!E$15,CalculationsAndCharts!$A91+$A$11,IF($C$7,8,0),1,1) -> 165.75 | G91: =OFFSET(InputPriceData!F$15,CalculationsAndCharts!$A91+$A$11,IF($C$7,8,0),1,1) -> 166.41 | O91: 3.043349581 | P91: 2.505265768 | Q91: 3.612579779 | R91: 0.6934838596 | S91: 0.9811274278 | W91: 3.043349581 | X91: 2.505265768 | Y91: 3.612579779 | Z91: 0.6934838596 | AA91: 0.8560273886
A92: 60 | B92: =OFFSET(InputPriceData!B$15,CalculationsAndCharts!$A92+$A$11,0,1,1) -> 2013-07-17 | C92: =OFFSET(InputPriceData!G$15,CalculationsAndCharts!$A92+$A$11,IF($C$7,8,0),1,1) -> 92873900 | D92: =OFFSET(InputPriceData!C$15,CalculationsAndCharts!$A92+$A$11,IF($C$7,8,0),1,1) -> 165.71 | E92: =OFFSET(InputPriceData!D$15,CalculationsAndCharts!$A92+$A$11,IF($C$7,8,0),1,1) -> 166.02 | F92: =OFFSET(InputPriceData!E$15,CalculationsAndCharts!$A92+$A$11,IF($C$7,8,0),1,1) -> 165.28 | G92: =OFFSET(InputPriceData!F$15,CalculationsAndCharts!$A92+$A$11,IF($C$7,8,0),1,1) -> 165.5 | O92: 2.505521817 | P92: 2.177017759 | Q92: 3.645388273 | R92: 0.5971977732 | S92: 0.9738011062 | W92: 2.505521817 | X92: 2.177017759 | Y92: 3.645388273 | Z92: 0.5971977732 | AA92: 0.8049193547
A93: 61 | B93: =OFFSET(InputPriceData!B$15,CalculationsAndCharts!$A93+$A$11,0,1,1) -> 2013-07-16 | C93: =OFFSET(InputPriceData!G$15,CalculationsAndCharts!$A93+$A$11,IF($C$7,8,0),1,1) -> 88702100 | D93: =OFFSET(InputPriceData!C$15,CalculationsAndCharts!$A93+$A$11,IF($C$7,8,0),1,1) -> 165.81 | E93: =OFFSET(InputPriceData!D$15,CalculationsAndCharts!$A93+$A$11,IF($C$7,8,0),1,1) -> 165.91 | F93: =OFFSET(InputPriceData!E$15,CalculationsAndCharts!$A93+$A$11,IF($C$7,8,0),1,1) -> 164.64 | G93: =OFFSET(InputPriceData!F$15,CalculationsAndCharts!$A93+$A$11,IF($C$7,8,0),1,1) -> 165.08 | O93: 2.425051905 | P93: 1.738794496 | Q93: 3.678494726 | R93: 0.4726918552 | S93: 0.9630068922 | W93: 2.425051905 | X93: 1.738794496 | Y93: 3.678494726 | Z93: 0.4726918552 | AA93: 0.7339239128
A94: 62 | B94: =OFFSET(InputPriceData!B$15,CalculationsAndCharts!$A94+$A$11,0,1,1) -> 2013-07-15 | C94: =OFFSET(InputPriceData!G$15,CalculationsAndCharts!$A94+$A$11,IF($C$7,8,0),1,1) -> 69450600 | D94: =OFFSET(InputPriceData!C$15,CalculationsAndCharts!$A94+$A$11,IF($C$7,8,0),1,1) -> 165.52 | E94: =OFFSET(InputPriceData!D$15,CalculationsAndCharts!$A94+$A$11,IF($C$7,8,0),1,1) -> 165.94 | F94: =OFFSET(InputPriceData!E$15,CalculationsAndCharts!$A94+$A$11,IF($C$7,8,0),1,1) -> 165.24 | G94: =OFFSET(InputPriceData!F$15,CalculationsAndCharts!$A94+$A$11,IF($C$7,8,0),1,1) -> 165.7 | O94: 3.419889163 | P94: 1.144992358 | Q94: 3.711901842 | R94: 0.3084651499 | S94: 0.94587314 | W94: 3.419889163 | X94: 1.144992358 | Y94: 3.711901842 | Z94: 0.3084651499 | AA94: 0.630651541
A95: 63 | B95: =OFFSET(InputPriceData!B$15,CalculationsAndCharts!$A95+$A$11,0,1,1) -> 2013-07-12 | C95: =OFFSET(InputPriceData!G$15,CalculationsAndCharts!$A95+$A$11,IF($C$7,8,0),1,1) -> 104212700 | D95: =OFFSET(InputPriceData!C$15,CalculationsAndCharts!$A95+$A$11,IF($C$7,8,0),1,1) -> 164.95 | E95: =OFFSET(InputPriceData!D$15,CalculationsAndCharts!$A95+$A$11,IF($C$7,8,0),1,1) -> 165.48 | F95: =OFFSET(InputPriceData!E$15,CalculationsAndCharts!$A95+$A$11,IF($C$7,8,0),1,1) -> 164.7 | G95: =OFFSET(InputPriceData!F$15,CalculationsAndCharts!$A95+$A$11,IF($C$7,8,0),1,1) -> 165.07 | O95: 3.19268418 | P95: 0.438087943 | Q95: 3.745612354 | R95: 0.1169602996 | S95: 0.9201060122 | W95: 3.19268418 | X95: 0.438087943 | Y95: 3.745612354 | Z95: 0.1169602996 | AA95: 0.4938556955
A96: 64 | B96: =OFFSET(InputPriceData!B$15,CalculationsAndCharts!$A96+$A$11,0,1,1) -> 2013-07-11 | C96: =OFFSET(InputPriceData!G$15,CalculationsAndCharts!$A96+$A$11,IF($C$7,8,0),1,1) -> 135592200 | D96: =OFFSET(InputPriceData!C$15,CalculationsAndCharts!$A96+$A$11,IF($C$7,8,0),1,1) -> 164.67 | E96: =OFFSET(InputPriceData!D$15,CalculationsAndCharts!$A96+$A$11,IF($C$7,8,0),1,1) -> 165.17 | F96: =OFFSET(InputPriceData!E$15,CalculationsAndCharts!$A96+$A$11,IF($C$7,8,0),1,1) -> 162.77 | G96: =OFFSET(InputPriceData!F$15,CalculationsAndCharts!$A96+$A$11,IF($C$7,8,0),1,1) -> 165 | O96: 3.523505138 | P96: -0.3107904971 | Q96: 3.779629015 | R96: -0.08222777842 | S96: 0.8831281185 | W96: 3.523505138 | X96: -0.3107904971 | Y96: 3.779629015 | Z96: -0.08222777842 | AA96: 0.3285795688
A97: 65 | B97: =OFFSET(InputPriceData!B$15,CalculationsAndCharts!$A97+$A$11,0,1,1) -> 2013-07-10 | C97: =OFFSET(InputPriceData!G$15,CalculationsAndCharts!$A97+$A$11,IF($C$7,8,0),1,1) -> 121410100 | D97: =OFFSET(InputPriceData!C$15,CalculationsAndCharts!$A97+$A$11,IF($C$7,8,0),1,1) -> 162.56 | E97: =OFFSET(InputPriceData!D$15,CalculationsAndCharts!$A97+$A$11,IF($C$7,8,0),1,1) -> 163.33 | F97: =OFFSET(InputPriceData!E$15,CalculationsAndCharts!$A97+$A$11,IF($C$7,8,0),1,1) -> 162.23 | G97: =OFFSET(InputPriceData!F$15,CalculationsAndCharts!$A97+$A$11,IF($C$7,8,0),1,1) -> 162.78 | O97: =$N$38*(G97-2*G98+G99)+2*$N$36*O98-$N$37*O99 -> 1.628995169 | P97: =$N$41*(O97+O98)/2+$N$42*P98+$N$43*P99 -> -1.026468466 | Q97: 3.813954606 | R97: -0.2691349458 | S97: =(R97+$A$21)/($A$21*R97+1) -> 0.8325190192 | W97: 1.628995169 | X97: -1.026468466 | Y97: 3.813954606 | Z97: -0.2691349458 | AA97: 0.1466528129
A98: 66 | B98: =OFFSET(InputPriceData!B$15,CalculationsAndCharts!$A98+$A$11,0,1,1) -> 2013-07-09 | C98: =OFFSET(InputPriceData!G$15,CalculationsAndCharts!$A98+$A$11,IF($C$7,8,0),1,1) -> 119298000 | D98: =OFFSET(InputPriceData!C$15,CalculationsAndCharts!$A98+$A$11,IF($C$7,8,0),1,1) -> 162.57 | E98: =OFFSET(InputPriceData!D$15,CalculationsAndCharts!$A98+$A$11,IF($C$7,8,0),1,1) -> 162.92 | F98: =OFFSET(InputPriceData!E$15,CalculationsAndCharts!$A98+$A$11,IF($C$7,8,0),1,1) -> 161.87 | G98: =OFFSET(InputPriceData!F$15,CalculationsAndCharts!$A98+$A$11,IF($C$7,8,0),1,1) -> 162.72 | O98: 1.814304422 | P98: -1.698529904 | Q98: =IF(ABS(P98)>(Q99*0.991),ABS(P98),(Q99*0.991)) -> 3.848591934 | R98: =IF(Q98>0,P98/Q98,R99) -> -0.4413380098 | S98: 0.7608911623 | W98: =$V$38*(G98-2*G99+G100)+2*$V$36*W99-$V$37*W100 -> 1.814304422 | X98: =$V$41*(W98+W99)/2+$V$42*X99+$V$43*X100 -> -1.698529904 | Y98: =IF(ABS(X98)>(Y99*0.991),ABS(X98),(Y99*0.991)) -> 3.848591934 | Z98: =IF(Y98>0,X98/Y98,Z99) -> -0.4413380098 | AA98: =(Z98+$A$26)/($A$26*Z98+1) -> -0.05020009352
A99: 67 | B99: =OFFSET(InputPriceData!B$15,CalculationsAndCharts!$A99+$A$11,0,1,1) -> 2013-07-08 | C99: =OFFSET(InputPriceData!G$15,CalculationsAndCharts!$A99+$A$11,IF($C$7,8,0),1,1) -> 108092500 | D99: =OFFSET(InputPriceData!C$15,CalculationsAndCharts!$A99+$A$11,IF($C$7,8,0),1,1) -> 161.47 | E99: =OFFSET(InputPriceData!D$15,CalculationsAndCharts!$A99+$A$11,IF($C$7,8,0),1,1) -> 161.99 | F99: =OFFSET(InputPriceData!E$15,CalculationsAndCharts!$A99+$A$11,IF($C$7,8,0),1,1) -> 160.7 | G99: =OFFSET(InputPriceData!F$15,CalculationsAndCharts!$A99+$A$11,IF($C$7,8,0),1,1) -> 161.56 | O99: 0.8625402713 | P99: -2.325071107 | Q99: 3.883543828 | R99: -0.5986983049 | S99: 0.6533397627 | W99: 0.8625402713 | X99: -2.325071107 | Y99: 3.883543828 | Z99: -0.5986983049 | AA99: -0.2612661439
A100: 68 | B100: =OFFSET(InputPriceData!B$15,CalculationsAndCharts!$A100+$A$11,0,1,1) -> 2013-07-05 | C100: =OFFSET(InputPriceData!G$15,CalculationsAndCharts!$A100+$A$11,IF($C$7,8,0),1,1) -> 122416900 | D100: =OFFSET(InputPriceData!C$15,CalculationsAndCharts!$A100+$A$11,IF($C$7,8,0),1,1) -> 160.1 | E100: =OFFSET(InputPriceData!D$15,CalculationsAndCharts!$A100+$A$11,IF($C$7,8,0),1,1) -> 160.7 | F100: =OFFSET(InputPriceData!E$15,CalculationsAndCharts!$A100+$A$11,IF($C$7,8,0),1,1) -> 158.95 | G100: =OFFSET(InputPriceData!F$15,CalculationsAndCharts!$A100+$A$11,IF($C$7,8,0),1,1) -> 160.64 | O100: 0.07156523793 | P100: -2.850655999 | Q100: 3.918813146 | R100: -0.7274284055 | S100: 0.4997520433 | W100: 0.07156523793 | X100: -2.850655999 | Y100: 3.918813146 | Z100: -0.7274284055 | AA100: -0.4617985622
A101: 69 | B101: =OFFSET(InputPriceData!B$15,CalculationsAndCharts!$A101+$A$11,0,1,1) -> 2013-07-03 | C101: =OFFSET(InputPriceData!G$15,CalculationsAndCharts!$A101+$A$11,IF($C$7,8,0),1,1) -> 75216400 | D101: =OFFSET(InputPriceData!C$15,CalculationsAndCharts!$A101+$A$11,IF($C$7,8,0),1,1) -> 158.14 | E101: =OFFSET(InputPriceData!D$15,CalculationsAndCharts!$A101+$A$11,IF($C$7,8,0),1,1) -> 159.41 | F101: =OFFSET(InputPriceData!E$15,CalculationsAndCharts!$A101+$A$11,IF($C$7,8,0),1,1) -> 157.89 | G101: =OFFSET(InputPriceData!F$15,CalculationsAndCharts!$A101+$A$11,IF($C$7,8,0),1,1) -> 158.93 | O101: -1.619377101 | P101: -3.26142507 | Q101: 3.954402771 | R101: -0.8247579365 | S101: 0.2919551804 | W101: -1.619377101 | X101: -3.26142507 | Y101: 3.954402771 | Z101: -0.8247579365 | AA101: -0.6338754646
A102: 70 | B102: =OFFSET(InputPriceData!B$15,CalculationsAndCharts!$A102+$A$11,0,1,1) -> 2013-07-02 | C102: =OFFSET(InputPriceData!G$15,CalculationsAndCharts!$A102+$A$11,IF($C$7,8,0),1,1) -> 154863700 | D102: =OFFSET(InputPriceData!C$15,CalculationsAndCharts!$A102+$A$11,IF($C$7,8,0),1,1) -> 158.77 | E102: =OFFSET(InputPriceData!D$15,CalculationsAndCharts!$A102+$A$11,IF($C$7,8,0),1,1) -> 159.93 | F102: =OFFSET(InputPriceData!E$15,CalculationsAndCharts!$A102+$A$11,IF($C$7,8,0),1,1) -> 158.16 | G102: =OFFSET(InputPriceData!F$15,CalculationsAndCharts!$A102+$A$11,IF($C$7,8,0),1,1) -> 158.86 | O102: -1.748769892 | P102: -3.595449213 | Q102: 3.990315612 | R102: -0.9010438177 | S102: -0.005521076023 | W102: -1.748769892 | X102: -3.595449213 | Y102: 3.990315612 | Z102: -0.9010438177 | AA102: -0.7833920393
A103: 71 | B103: =OFFSET(InputPriceData!B$15,CalculationsAndCharts!$A103+$A$11,0,1,1) -> 2013-07-01 | C103: =OFFSET(InputPriceData!G$15,CalculationsAndCharts!$A103+$A$11,IF($C$7,8,0),1,1) -> 131954800 | D103: =OFFSET(InputPriceData!C$15,CalculationsAndCharts!$A103+$A$11,IF($C$7,8,0),1,1) -> 158.91 | E103: =OFFSET(InputPriceData!D$15,CalculationsAndCharts!$A103+$A$11,IF($C$7,8,0),1,1) -> 160.11 | F103: =OFFSET(InputPriceData!E$15,CalculationsAndCharts!$A103+$A$11,IF($C$7,8,0),1,1) -> 158.73 | G103: =OFFSET(InputPriceData!F$15,CalculationsAndCharts!$A103+$A$11,IF($C$7,8,0),1,1) -> 159.01 | O103: -1.656467988 | P103: -3.88079135 | Q103: 4.026554603 | R103: -0.9637995091 | S103: -0.4812135799 | W103: -1.656467988 | X103: -3.88079135 | Y103: 4.026554603 | Z103: -0.9637995091 | AA103: -0.9175226677
A104: 72 | B104: =OFFSET(InputPriceData!B$15,CalculationsAndCharts!$A104+$A$11,0,1,1) -> 2013-06-28 | C104: =OFFSET(InputPriceData!G$15,CalculationsAndCharts!$A104+$A$11,IF($C$7,8,0),1,1) -> 160402900 | D104: =OFFSET(InputPriceData!C$15,CalculationsAndCharts!$A104+$A$11,IF($C$7,8,0),1,1) -> 158.29 | E104: =OFFSET(InputPriceData!D$15,CalculationsAndCharts!$A104+$A$11,IF($C$7,8,0),1,1) -> 159.05 | F104: =OFFSET(InputPriceData!E$15,CalculationsAndCharts!$A104+$A$11,IF($C$7,8,0),1,1) -> 157.53 | G104: =OFFSET(InputPriceData!F$15,CalculationsAndCharts!$A104+$A$11,IF($C$7,8,0),1,1) -> 158.08 | O104: -2.681798648 | P104: -4.057353864 | Q104: 4.063122708 | R104: -0.9985801945 | S104: -0.9733640557 | W104: -2.681798648 | X104: -4.057353864 | Y104: 4.063122708 | Z104: -0.9985801945 | AA104: -0.9966902532
A105: 73 | B105: =OFFSET(InputPriceData!B$15,CalculationsAndCharts!$A105+$A$11,0,1,1) -> 2013-06-27 | C105: =OFFSET(InputPriceData!G$15,CalculationsAndCharts!$A105+$A$11,IF($C$7,8,0),1,1) -> 129483700 | D105: =OFFSET(InputPriceData!C$15,CalculationsAndCharts!$A105+$A$11,IF($C$7,8,0),1,1) -> 158.75 | E105: =OFFSET(InputPriceData!D$15,CalculationsAndCharts!$A105+$A$11,IF($C$7,8,0),1,1) -> 159.46 | F105: =OFFSET(InputPriceData!E$15,CalculationsAndCharts!$A105+$A$11,IF($C$7,8,0),1,1) -> 158.6 | G105: =OFFSET(InputPriceData!F$15,CalculationsAndCharts!$A105+$A$11,IF($C$7,8,0),1,1) -> 158.73 | O105: -2.14427997 | P105: -4.100022914 | Q105: 4.100022914 | R105: -1 | S105: -1 | W105: -2.14427997 | X105: -4.100022914 | Y105: 4.100022914 | Z105: -1 | AA105: -1
A106: 74 | B106: =OFFSET(InputPriceData!B$15,CalculationsAndCharts!$A106+$A$11,0,1,1) -> 2013-06-26 | C106: =OFFSET(InputPriceData!G$15,CalculationsAndCharts!$A106+$A$11,IF($C$7,8,0),1,1) -> 134848000 | D106: =OFFSET(InputPriceData!C$15,CalculationsAndCharts!$A106+$A$11,IF($C$7,8,0),1,1) -> 157.54 | E106: =OFFSET(InputPriceData!D$15,CalculationsAndCharts!$A106+$A$11,IF($C$7,8,0),1,1) -> 158.16 | F106: =OFFSET(InputPriceData!E$15,CalculationsAndCharts!$A106+$A$11,IF($C$7,8,0),1,1) -> 156.93 | G106: =OFFSET(InputPriceData!F$15,CalculationsAndCharts!$A106+$A$11,IF($C$7,8,0),1,1) -> 157.81 | O106: -3.194525132 | P106: -3.958708897 | Q106: 3.958708897 | R106: -1 | S106: -1 | W106: -3.194525132 | X106: -3.958708897 | Y106: 3.958708897 | Z106: -1 | AA106: -1
A107: 75 | B107: =OFFSET(InputPriceData!B$15,CalculationsAndCharts!$A107+$A$11,0,1,1) -> 2013-06-25 | C107: =OFFSET(InputPriceData!G$15,CalculationsAndCharts!$A107+$A$11,IF($C$7,8,0),1,1) -> 162262200 | D107: =OFFSET(InputPriceData!C$15,CalculationsAndCharts!$A107+$A$11,IF($C$7,8,0),1,1) -> 156.17 | E107: =OFFSET(InputPriceData!D$15,CalculationsAndCharts!$A107+$A$11,IF($C$7,8,0),1,1) -> 157.77 | F107: =OFFSET(InputPriceData!E$15,CalculationsAndCharts!$A107+$A$11,IF($C$7,8,0),1,1) -> 155.13 | G107: =OFFSET(InputPriceData!F$15,CalculationsAndCharts!$A107+$A$11,IF($C$7,8,0),1,1) -> 156.26 | O107: -4.994738519 | P107: -3.579511016 | Q107: 3.579511016 | R107: -1 | S107: -1 | W107: -4.994738519 | X107: -3.579511016 | Y107: 3.579511016 | Z107: -1 | AA107: -1
A108: 76 | B108: =OFFSET(InputPriceData!B$15,CalculationsAndCharts!$A108+$A$11,0,1,1) -> 2013-06-24 | C108: =OFFSET(InputPriceData!G$15,CalculationsAndCharts!$A108+$A$11,IF($C$7,8,0),1,1) -> 222329000 | D108: =OFFSET(InputPriceData!C$15,CalculationsAndCharts!$A108+$A$11,IF($C$7,8,0),1,1) -> 155.11 | E108: =OFFSET(InputPriceData!D$15,CalculationsAndCharts!$A108+$A$11,IF($C$7,8,0),1,1) -> 156.12 | F108: =OFFSET(InputPriceData!E$15,CalculationsAndCharts!$A108+$A$11,IF($C$7,8,0),1,1) -> 153.46 | G108: =OFFSET(InputPriceData!F$15,CalculationsAndCharts!$A108+$A$11,IF($C$7,8,0),1,1) -> 154.77 | O108: -6.889198113 | P108: -3.051703389 | Q108: 3.051703389 | R108: -1 | S108: -1 | W108: -6.889198113 | X108: -3.051703389 | Y108: 3.051703389 | Z108: -1 | AA108: -1
A109: 77 | B109: =OFFSET(InputPriceData!B$15,CalculationsAndCharts!$A109+$A$11,0,1,1) -> 2013-06-21 | C109: =OFFSET(InputPriceData!G$15,CalculationsAndCharts!$A109+$A$11,IF($C$7,8,0),1,1) -> 271956800 | D109: =OFFSET(InputPriceData!C$15,CalculationsAndCharts!$A109+$A$11,IF($C$7,8,0),1,1) -> 157.31 | E109: =OFFSET(InputPriceData!D$15,CalculationsAndCharts!$A109+$A$11,IF($C$7,8,0),1,1) -> 157.43 | F109: =OFFSET(InputPriceData!E$15,CalculationsAndCharts!$A109+$A$11,IF($C$7,8,0),1,1) -> 155.17 | G109: =OFFSET(InputPriceData!F$15,CalculationsAndCharts!$A109+$A$11,IF($C$7,8,0),1,1) -> 156.75 | O109: -5.316045332 | P109: -2.584804744 | Q109: 2.584804744 | R109: -1 | S109: -1 | W109: -5.316045332 | X109: -2.584804744 | Y109: 2.584804744 | Z109: -1 | AA109: -1
A110: 78 | B110: =OFFSET(InputPriceData!B$15,CalculationsAndCharts!$A110+$A$11,0,1,1) -> 2013-06-20 | C110: =OFFSET(InputPriceData!G$15,CalculationsAndCharts!$A110+$A$11,IF($C$7,8,0),1,1) -> 321255900 | D110: =OFFSET(InputPriceData!C$15,CalculationsAndCharts!$A110+$A$11,IF($C$7,8,0),1,1) -> 158.66 | E110: =OFFSET(InputPriceData!D$15,CalculationsAndCharts!$A110+$A$11,IF($C$7,8,0),1,1) -> 160.24 | F110: =OFFSET(InputPriceData!E$15,CalculationsAndCharts!$A110+$A$11,IF($C$7,8,0),1,1) -> 155.84 | G110: =OFFSET(InputPriceData!F$15,CalculationsAndCharts!$A110+$A$11,IF($C$7,8,0),1,1) -> 156.25 | O110: -6.179672463 | P110: -2.290198225 | Q110: 2.562743894 | R110: -0.8936508367 | S110: 0.03244098681 | W110: -6.179672463 | X110: -2.290198225 | Y110: 2.562743894 | Z110: -0.8936508367 | AA110: -0.76828072
A111: 79 | B111: =OFFSET(InputPriceData!B$15,CalculationsAndCharts!$A111+$A$11,0,1,1) -> 2013-06-19 | C111: =OFFSET(InputPriceData!G$15,CalculationsAndCharts!$A111+$A$11,IF($C$7,8,0),1,1) -> 206149500 | D111: =OFFSET(InputPriceData!C$15,CalculationsAndCharts!$A111+$A$11,IF($C$7,8,0),1,1) -> 162.33 | E111: =OFFSET(InputPriceData!D$15,CalculationsAndCharts!$A111+$A$11,IF($C$7,8,0),1,1) -> 162.61 | F111: =OFFSET(InputPriceData!E$15,CalculationsAndCharts!$A111+$A$11,IF($C$7,8,0),1,1) -> 160.15 | G111: =OFFSET(InputPriceData!F$15,CalculationsAndCharts!$A111+$A$11,IF($C$7,8,0),1,1) -> 160.22 | O111: -2.435389153 | P111: -2.256830845 | Q111: 2.586018057 | R111: -0.8727049831 | S111: 0.1272106417 | W111: -2.435389153 | X111: -2.256830845 | Y111: 2.586018057 | Z111: -0.8727049831 | AA111: -0.7262127921
A112: 80 | B112: =OFFSET(InputPriceData!B$15,CalculationsAndCharts!$A112+$A$11,0,1,1) -> 2013-06-18 | C112: =OFFSET(InputPriceData!G$15,CalculationsAndCharts!$A112+$A$11,IF($C$7,8,0),1,1) -> 114695600 | D112: =OFFSET(InputPriceData!C$15,CalculationsAndCharts!$A112+$A$11,IF($C$7,8,0),1,1) -> 161.27 | E112: =OFFSET(InputPriceData!D$15,CalculationsAndCharts!$A112+$A$11,IF($C$7,8,0),1,1) -> 162.71 | F112: =OFFSET(InputPriceData!E$15,CalculationsAndCharts!$A112+$A$11,IF($C$7,8,0),1,1) -> 161.26 | G112: =OFFSET(InputPriceData!F$15,CalculationsAndCharts!$A112+$A$11,IF($C$7,8,0),1,1) -> 162.46 | O112: -0.1475771547 | P112: -2.45746082 | Q112: 2.609503589 | R112: -0.9417349838 | S112: -0.2737824096 | W112: -0.1475771547 | X112: -2.45746082 | Y112: 2.609503589 | Z112: -0.9417349838 | AA112: -0.8691316596
A113: 81 | B113: =OFFSET(InputPriceData!B$15,CalculationsAndCharts!$A113+$A$11,0,1,1) -> 2013-06-17 | C113: =OFFSET(InputPriceData!G$15,CalculationsAndCharts!$A113+$A$11,IF($C$7,8,0),1,1) -> 136295600 | D113: =OFFSET(InputPriceData!C$15,CalculationsAndCharts!$A113+$A$11,IF($C$7,8,0),1,1) -> 161.04 | E113: =OFFSET(InputPriceData!D$15,CalculationsAndCharts!$A113+$A$11,IF($C$7,8,0),1,1) -> 161.95 | F113: =OFFSET(InputPriceData!E$15,CalculationsAndCharts!$A113+$A$11,IF($C$7,8,0),1,1) -> 159.99 | G113: =OFFSET(InputPriceData!F$15,CalculationsAndCharts!$A113+$A$11,IF($C$7,8,0),1,1) -> 161.19 | O113: -1.318127886 | P113: -2.626642437 | Q113: 2.633202411 | R113: -0.9975087467 | S113: -0.9537041988 | W113: -1.318127886 | X113: -2.626642437 | Y113: 2.633202411 | Z113: -0.9975087467 | AA113: -0.994196714
A114: 82 | B114: =OFFSET(InputPriceData!B$15,CalculationsAndCharts!$A114+$A$11,0,1,1) -> 2013-06-14 | C114: =OFFSET(InputPriceData!G$15,CalculationsAndCharts!$A114+$A$11,IF($C$7,8,0),1,1) -> 141197500 | D114: =OFFSET(InputPriceData!C$15,CalculationsAndCharts!$A114+$A$11,IF($C$7,8,0),1,1) -> 160.79 | E114: =OFFSET(InputPriceData!D$15,CalculationsAndCharts!$A114+$A$11,IF($C$7,8,0),1,1) -> 161.42 | F114: =OFFSET(InputPriceData!E$15,CalculationsAndCharts!$A114+$A$11,IF($C$7,8,0),1,1) -> 159.7 | G114: =OFFSET(InputPriceData!F$15,CalculationsAndCharts!$A114+$A$11,IF($C$7,8,0),1,1) -> 159.96 | O114: -2.552912644 | P114: -2.657116459 | Q114: 2.657116459 | R114: -1 | S114: -1 | W114: -2.552912644 | X114: -2.657116459 | Y114: 2.657116459 | Z114: -1 | AA114: -1
A115: 83 | B115: =OFFSET(InputPriceData!B$15,CalculationsAndCharts!$A115+$A$11,0,1,1) -> 2013-06-13 | C115: =OFFSET(InputPriceData!G$15,CalculationsAndCharts!$A115+$A$11,IF($C$7,8,0),1,1) -> 163587800 | D115: =OFFSET(InputPriceData!C$15,CalculationsAndCharts!$A115+$A$11,IF($C$7,8,0),1,1) -> 158.47 | E115: =OFFSET(InputPriceData!D$15,CalculationsAndCharts!$A115+$A$11,IF($C$7,8,0),1,1) -> 161.25 | F115: =OFFSET(InputPriceData!E$15,CalculationsAndCharts!$A115+$A$11,IF($C$7,8,0),1,1) -> 158.12 | G115: =OFFSET(InputPriceData!F$15,CalculationsAndCharts!$A115+$A$11,IF($C$7,8,0),1,1) -> 160.97 | O115: -1.554251026 | P115: -2.615728729 | Q115: 2.615728729 | R115: -1 | S115: -1 | W115: -1.554251026 | X115: -2.615728729 | Y115: 2.615728729 | Z115: -1 | AA115: -1
A116: 84 | B116: =OFFSET(InputPriceData!B$15,CalculationsAndCharts!$A116+$A$11,0,1,1) -> 2013-06-12 | C116: =OFFSET(InputPriceData!G$15,CalculationsAndCharts!$A116+$A$11,IF($C$7,8,0),1,1) -> 177361500 | D116: =OFFSET(InputPriceData!C$15,CalculationsAndCharts!$A116+$A$11,IF($C$7,8,0),1,1) -> 160.97 | E116: =OFFSET(InputPriceData!D$15,CalculationsAndCharts!$A116+$A$11,IF($C$7,8,0),1,1) -> 161.14 | F116: =OFFSET(InputPriceData!E$15,CalculationsAndCharts!$A116+$A$11,IF($C$7,8,0),1,1) -> 158.4 | G116: =OFFSET(InputPriceData!F$15,CalculationsAndCharts!$A116+$A$11,IF($C$7,8,0),1,1) -> 158.55 | O116: -4.047188077 | P116: -2.481933919 | Q116: 2.523321118 | R116: -0.9835981246 | S116: -0.7284497649 | W116: -4.047188077 | X116: -2.481933919 | Y116: 2.523321118 | Z116: -0.9835981246 | AA116: -0.9621429088
A117: 85 | B117: =OFFSET(InputPriceData!B$15,CalculationsAndCharts!$A117+$A$11,0,1,1) -> 2013-06-11 | C117: =OFFSET(InputPriceData!G$15,CalculationsAndCharts!$A117+$A$11,IF($C$7,8,0),1,1) -> 159505400 | D117: =OFFSET(InputPriceData!C$15,CalculationsAndCharts!$A117+$A$11,IF($C$7,8,0),1,1) -> 160.08 | E117: =OFFSET(InputPriceData!D$15,CalculationsAndCharts!$A117+$A$11,IF($C$7,8,0),1,1) -> 161.29 | F117: =OFFSET(InputPriceData!E$15,CalculationsAndCharts!$A117+$A$11,IF($C$7,8,0),1,1) -> 159.53 | G117: =OFFSET(InputPriceData!F$15,CalculationsAndCharts!$A117+$A$11,IF($C$7,8,0),1,1) -> 159.88 | O117: -2.841137121 | P117: -2.312587404 | Q117: 2.546237253 | R117: -0.9082372043 | S117: -0.04511397908 | W117: -2.841137121 | X117: -2.312587404 | Y117: 2.546237253 | Z117: -0.9082372043 | AA117: -0.798230122
A118: 86 | B118: =OFFSET(InputPriceData!B$15,CalculationsAndCharts!$A118+$A$11,0,1,1) -> 2013-06-10 | C118: =OFFSET(InputPriceData!G$15,CalculationsAndCharts!$A118+$A$11,IF($C$7,8,0),1,1) -> 105667100 | D118: =OFFSET(InputPriceData!C$15,CalculationsAndCharts!$A118+$A$11,IF($C$7,8,0),1,1) -> 162.04 | E118: =OFFSET(InputPriceData!D$15,CalculationsAndCharts!$A118+$A$11,IF($C$7,8,0),1,1) -> 162.13 | F118: =OFFSET(InputPriceData!E$15,CalculationsAndCharts!$A118+$A$11,IF($C$7,8,0),1,1) -> 161.12 | G118: =OFFSET(InputPriceData!F$15,CalculationsAndCharts!$A118+$A$11,IF($C$7,8,0),1,1) -> 161.54 | O118: -1.171961726 | P118: -2.187946702 | Q118: 2.569361507 | R118: -0.8515526898 | S118: 0.2073920175 | W118: -1.171961726 | X118: -2.187946702 | Y118: 2.569361507 | Z118: -0.8515526898 | AA118: -0.6848151697
A119: 87 | B119: =OFFSET(InputPriceData!B$15,CalculationsAndCharts!$A119+$A$11,0,1,1) -> 2013-06-07 | C119: =OFFSET(InputPriceData!G$15,CalculationsAndCharts!$A119+$A$11,IF($C$7,8,0),1,1) -> 188337800 | D119: =OFFSET(InputPriceData!C$15,CalculationsAndCharts!$A119+$A$11,IF($C$7,8,0),1,1) -> 160.61 | E119: =OFFSET(InputPriceData!D$15,CalculationsAndCharts!$A119+$A$11,IF($C$7,8,0),1,1) -> 161.69 | F119: =OFFSET(InputPriceData!E$15,CalculationsAndCharts!$A119+$A$11,IF($C$7,8,0),1,1) -> 159.91 | G119: =OFFSET(InputPriceData!F$15,CalculationsAndCharts!$A119+$A$11,IF($C$7,8,0),1,1) -> 161.54 | O119: -1.081514806 | P119: -1.971248335 | Q119: 2.592695769 | R119: -0.760308386 | S119: 0.4424506806 | W119: -1.081514806 | X119: -1.971248335 | Y119: 2.592695769 | Z119: -0.760308386 | AA119: -0.5177762298
A120: 88 | B120: =OFFSET(InputPriceData!B$15,CalculationsAndCharts!$A120+$A$11,0,1,1) -> 2013-06-06 | C120: =OFFSET(InputPriceData!G$15,CalculationsAndCharts!$A120+$A$11,IF($C$7,8,0),1,1) -> 200225500 | D120: =OFFSET(InputPriceData!C$15,CalculationsAndCharts!$A120+$A$11,IF($C$7,8,0),1,1) -> 158.01 | E120: =OFFSET(InputPriceData!D$15,CalculationsAndCharts!$A120+$A$11,IF($C$7,8,0),1,1) -> 159.52 | F120: =OFFSET(InputPriceData!E$15,CalculationsAndCharts!$A120+$A$11,IF($C$7,8,0),1,1) -> 157.08 | G120: =OFFSET(InputPriceData!F$15,CalculationsAndCharts!$A120+$A$11,IF($C$7,8,0),1,1) -> 159.51 | O120: -3.103717214 | P120: -1.529307185 | Q120: 2.616241946 | R120: -0.5845434852 | S120: 0.6656452494 | W120: -3.103717214 | X120: -1.529307185 | Y120: 2.616241946 | Z120: -0.5845434852 | AA120: -0.2408609694
A121: 89 | B121: =OFFSET(InputPriceData!B$15,CalculationsAndCharts!$A121+$A$11,0,1,1) -> 2013-06-05 | C121: =OFFSET(InputPriceData!G$15,CalculationsAndCharts!$A121+$A$11,IF($C$7,8,0),1,1) -> 211737800 | D121: =OFFSET(InputPriceData!C$15,CalculationsAndCharts!$A121+$A$11,IF($C$7,8,0),1,1) -> 159.86 | E121: =OFFSET(InputPriceData!D$15,CalculationsAndCharts!$A121+$A$11,IF($C$7,8,0),1,1) -> 160.19 | F121: =OFFSET(InputPriceData!E$15,CalculationsAndCharts!$A121+$A$11,IF($C$7,8,0),1,1) -> 157.94 | G121: =OFFSET(InputPriceData!F$15,CalculationsAndCharts!$A121+$A$11,IF($C$7,8,0),1,1) -> 158.08 | O121: -4.679886678 | P121: -0.9096026214 | Q121: 2.640001964 | R121: -0.3445461912 | S121: 0.805112369 | W121: -4.679886678 | X121: -0.9096026214 | Y121: 2.640001964 | Z121: -0.3445461912 | AA121: 0.06431802039
A122: 90 | B122: =OFFSET(InputPriceData!B$15,CalculationsAndCharts!$A122+$A$11,0,1,1) -> 2013-06-04 | C122: =OFFSET(InputPriceData!G$15,CalculationsAndCharts!$A122+$A$11,IF($C$7,8,0),1,1) -> 157631500 | D122: =OFFSET(InputPriceData!C$15,CalculationsAndCharts!$A122+$A$11,IF($C$7,8,0),1,1) -> 161.19 | E122: =OFFSET(InputPriceData!D$15,CalculationsAndCharts!$A122+$A$11,IF($C$7,8,0),1,1) -> 161.84 | F122: =OFFSET(InputPriceData!E$15,CalculationsAndCharts!$A122+$A$11,IF($C$7,8,0),1,1) -> 159.52 | G122: =OFFSET(InputPriceData!F$15,CalculationsAndCharts!$A122+$A$11,IF($C$7,8,0),1,1) -> 160.33 | O122: -2.543772116 | P122: -0.3107382869 | Q122: 2.663977764 | R122: -0.1166444747 | S122: 0.8752380384 | W122: -2.543772116 | X122: -0.3107382869 | Y122: 2.663977764 | Z122: -0.1166444747 | AA122: 0.2972233079
A123: 91 | B123: =OFFSET(InputPriceData!B$15,CalculationsAndCharts!$A123+$A$11,0,1,1) -> 2013-06-03 | C123: =OFFSET(InputPriceData!G$15,CalculationsAndCharts!$A123+$A$11,IF($C$7,8,0),1,1) -> 168390700 | D123: =OFFSET(InputPriceData!C$15,CalculationsAndCharts!$A123+$A$11,IF($C$7,8,0),1,1) -> 160.59 | E123: =OFFSET(InputPriceData!D$15,CalculationsAndCharts!$A123+$A$11,IF($C$7,8,0),1,1) -> 161.21 | F123: =OFFSET(InputPriceData!E$15,CalculationsAndCharts!$A123+$A$11,IF($C$7,8,0),1,1) -> 159.44 | G123: =OFFSET(InputPriceData!F$15,CalculationsAndCharts!$A123+$A$11,IF($C$7,8,0),1,1) -> 161.1 | O123: -1.751883339 | P123: 0.2163409676 | Q123: 2.688171305 | R123: 0.08047886202 | S123: 0.9142582452 | W123: -1.751883339 | X123: 0.2163409676 | Y123: 2.688171305 | Z123: 0.08047886202 | AA123: 0.4654938945
A124: 92 | B124: =OFFSET(InputPriceData!B$15,CalculationsAndCharts!$A124+$A$11,0,1,1) -> 2013-05-31 | C124: =OFFSET(InputPriceData!G$15,CalculationsAndCharts!$A124+$A$11,IF($C$7,8,0),1,1) -> 176850100 | D124: =OFFSET(InputPriceData!C$15,CalculationsAndCharts!$A124+$A$11,IF($C$7,8,0),1,1) -> 162.1 | E124: =OFFSET(InputPriceData!D$15,CalculationsAndCharts!$A124+$A$11,IF($C$7,8,0),1,1) -> 163.02 | F124: =OFFSET(InputPriceData!E$15,CalculationsAndCharts!$A124+$A$11,IF($C$7,8,0),1,1) -> 159.91 | G124: =OFFSET(InputPriceData!F$15,CalculationsAndCharts!$A124+$A$11,IF($C$7,8,0),1,1) -> 160.22 | O124: -2.608603221 | P124: 0.746922181 | Q124: 2.712584566 | R124: 0.2753544314 | S124: 0.9419270282 | W124: -2.608603221 | X124: 0.746922181 | Y124: 2.712584566 | Z124: 0.2753544314 | AA124: 0.6083497154
A125: 93 | B125: =OFFSET(InputPriceData!B$15,CalculationsAndCharts!$A125+$A$11,0,1,1) -> 2013-05-30 | C125: =OFFSET(InputPriceData!G$15,CalculationsAndCharts!$A125+$A$11,IF($C$7,8,0),1,1) -> 107793800 | D125: =OFFSET(InputPriceData!C$15,CalculationsAndCharts!$A125+$A$11,IF($C$7,8,0),1,1) -> 162.08 | E125: =OFFSET(InputPriceData!D$15,CalculationsAndCharts!$A125+$A$11,IF($C$7,8,0),1,1) -> 163.29 | F125: =OFFSET(InputPriceData!E$15,CalculationsAndCharts!$A125+$A$11,IF($C$7,8,0),1,1) -> 161.95 | G125: =OFFSET(InputPriceData!F$15,CalculationsAndCharts!$A125+$A$11,IF($C$7,8,0),1,1) -> 162.55 | O125: -0.1820471409 | P125: 1.213599235 | Q125: 2.737219542 | R125: 0.4433693447 | S125: 0.9602131694 | W125: -0.1820471409 | X125: 1.213599235 | Y125: 2.737219542 | Z125: 0.4433693447 | AA125: 0.7163298638
A126: 94 | B126: =OFFSET(InputPriceData!B$15,CalculationsAndCharts!$A126+$A$11,0,1,1) -> 2013-05-29 | C126: =OFFSET(InputPriceData!G$15,CalculationsAndCharts!$A126+$A$11,IF($C$7,8,0),1,1) -> 160363400 | D126: =OFFSET(InputPriceData!C$15,CalculationsAndCharts!$A126+$A$11,IF($C$7,8,0),1,1) -> 162.16 | E126: =OFFSET(InputPriceData!D$15,CalculationsAndCharts!$A126+$A$11,IF($C$7,8,0),1,1) -> 162.53 | F126: =OFFSET(InputPriceData!E$15,CalculationsAndCharts!$A126+$A$11,IF($C$7,8,0),1,1) -> 161.1 | G126: =OFFSET(InputPriceData!F$15,CalculationsAndCharts!$A126+$A$11,IF($C$7,8,0),1,1) -> 161.96 | O126: -0.5837739628 | P126: 1.619841405 | Q126: 2.762078247 | R126: 0.5864574644 | S126: 0.9729323626 | W126: -0.5837739628 | X126: 1.619841405 | Y126: 2.762078247 | Z126: 0.5864574644 | AA126: 0.7990207833
A127: 95 | B127: =OFFSET(InputPriceData!B$15,CalculationsAndCharts!$A127+$A$11,0,1,1) -> 2013-05-28 | C127: =OFFSET(InputPriceData!G$15,CalculationsAndCharts!$A127+$A$11,IF($C$7,8,0),1,1) -> 143679800 | D127: =OFFSET(InputPriceData!C$15,CalculationsAndCharts!$A127+$A$11,IF($C$7,8,0),1,1) -> 163.74 | E127: =OFFSET(InputPriceData!D$15,CalculationsAndCharts!$A127+$A$11,IF($C$7,8,0),1,1) -> 164.46 | F127: =OFFSET(InputPriceData!E$15,CalculationsAndCharts!$A127+$A$11,IF($C$7,8,0),1,1) -> 162.53 | G127: =OFFSET(InputPriceData!F$15,CalculationsAndCharts!$A127+$A$11,IF($C$7,8,0),1,1) -> 163.01 | O127: 0.6937333015 | P127: 2.006533173 | Q127: 2.787162711 | R127: 0.7199196392 | S127: 0.9830040866 | W127: 0.6937333015 | X127: 2.006533173 | Y127: 2.787162711 | Z127: 0.7199196392 | AA127: 0.869524526
A128: 96 | B128: =OFFSET(InputPriceData!B$15,CalculationsAndCharts!$A128+$A$11,0,1,1) -> 2013-05-24 | C128: =OFFSET(InputPriceData!G$15,CalculationsAndCharts!$A128+$A$11,IF($C$7,8,0),1,1) -> 151573900 | D128: =OFFSET(InputPriceData!C$15,CalculationsAndCharts!$A128+$A$11,IF($C$7,8,0),1,1) -> 161.22 | E128: =OFFSET(InputPriceData!D$15,CalculationsAndCharts!$A128+$A$11,IF($C$7,8,0),1,1) -> 162.11 | F128: =OFFSET(InputPriceData!E$15,CalculationsAndCharts!$A128+$A$11,IF($C$7,8,0),1,1) -> 160.74 | G128: =OFFSET(InputPriceData!F$15,CalculationsAndCharts!$A128+$A$11,IF($C$7,8,0),1,1) -> 162.04 | O128: -0.02428635245 | P128: 2.369048459 | Q128: 2.812474986 | R128: 0.8423358326 | S128: 0.9910321389 | W128: -0.02428635245 | X128: 2.369048459 | Y128: 2.812474986 | Z128: 0.8423358326 | AA128: 0.9292422237
A129: 97 | B129: =OFFSET(InputPriceData!B$15,CalculationsAndCharts!$A129+$A$11,0,1,1) -> 2013-05-23 | C129: =OFFSET(InputPriceData!G$15,CalculationsAndCharts!$A129+$A$11,IF($C$7,8,0),1,1) -> 211064400 | D129: =OFFSET(InputPriceData!C$15,CalculationsAndCharts!$A129+$A$11,IF($C$7,8,0),1,1) -> 160.92 | E129: =OFFSET(InputPriceData!D$15,CalculationsAndCharts!$A129+$A$11,IF($C$7,8,0),1,1) -> 162.63 | F129: =OFFSET(InputPriceData!E$15,CalculationsAndCharts!$A129+$A$11,IF($C$7,8,0),1,1) -> 160.7 | G129: =OFFSET(InputPriceData!F$15,CalculationsAndCharts!$A129+$A$11,IF($C$7,8,0),1,1) -> 162.18 | O129: 0.3520197547 | P129: 2.683668007 | Q129: 2.83801714 | R129: 0.9456137417 | S129: 0.9970618736 | W129: 0.3520197547 | X129: 2.683668007 | Y129: 2.83801714 | Z129: 0.9456137417 | AA129: 0.9763236992
A130: 98 | B130: =OFFSET(InputPriceData!B$15,CalculationsAndCharts!$A130+$A$11,0,1,1) -> 2013-05-22 | C130: =OFFSET(InputPriceData!G$15,CalculationsAndCharts!$A130+$A$11,IF($C$7,8,0),1,1) -> 244031800 | D130: =OFFSET(InputPriceData!C$15,CalculationsAndCharts!$A130+$A$11,IF($C$7,8,0),1,1) -> 164.03 | E130: =OFFSET(InputPriceData!D$15,CalculationsAndCharts!$A130+$A$11,IF($C$7,8,0),1,1) -> 165.73 | F130: =OFFSET(InputPriceData!E$15,CalculationsAndCharts!$A130+$A$11,IF($C$7,8,0),1,1) -> 161.91 | G130: =OFFSET(InputPriceData!F$15,CalculationsAndCharts!$A130+$A$11,IF($C$7,8,0),1,1) -> 162.65 | O130: 1.107738983 | P130: 2.863791261 | Q130: 2.863791261 | R130: 1 | S130: 1 | W130: 1.107738983 | X130: 2.863791261 | Y130: 2.863791261 | Z130: 1 | AA130: 1
A131: 99 | B131: =OFFSET(InputPriceData!B$15,CalculationsAndCharts!$A131+$A$11,0,1,1) -> 2013-05-21 | C131: =OFFSET(InputPriceData!G$15,CalculationsAndCharts!$A131+$A$11,IF($C$7,8,0),1,1) -> 95804200 | D131: =OFFSET(InputPriceData!C$15,CalculationsAndCharts!$A131+$A$11,IF($C$7,8,0),1,1) -> 163.78 | E131: =OFFSET(InputPriceData!D$15,CalculationsAndCharts!$A131+$A$11,IF($C$7,8,0),1,1) -> 164.49 | F131: =OFFSET(InputPriceData!E$15,CalculationsAndCharts!$A131+$A$11,IF($C$7,8,0),1,1) -> 163.21 | G131: =OFFSET(InputPriceData!F$15,CalculationsAndCharts!$A131+$A$11,IF($C$7,8,0),1,1) -> 163.87 | O131: 2.715875662 | P131: 2.881741795 | Q131: 2.881741795 | R131: 1 | S131: 1 | W131: 2.715875662 | X131: 2.881741795 | Y131: 2.881741795 | Z131: 1 | AA131: 1
A132: 100 | B132: =OFFSET(InputPriceData!B$15,CalculationsAndCharts!$A132+$A$11,0,1,1) -> 2013-05-20 | C132: =OFFSET(InputPriceData!G$15,CalculationsAndCharts!$A132+$A$11,IF($C$7,8,0),1,1) -> 85071200 | D132: =OFFSET(InputPriceData!C$15,CalculationsAndCharts!$A132+$A$11,IF($C$7,8,0),1,1) -> 163.48 | E132: =OFFSET(InputPriceData!D$15,CalculationsAndCharts!$A132+$A$11,IF($C$7,8,0),1,1) -> 164.27 | F132: =OFFSET(InputPriceData!E$15,CalculationsAndCharts!$A132+$A$11,IF($C$7,8,0),1,1) -> 163.32 | G132: =OFFSET(InputPriceData!F$15,CalculationsAndCharts!$A132+$A$11,IF($C$7,8,0),1,1) -> 163.63 | O132: 2.940774615 | P132: 2.790229696 | Q132: 2.790229696 | R132: 1 | S132: 1 | W132: 2.940774615 | X132: 2.790229696 | Y132: 2.790229696 | Z132: 1 | AA132: 1
A133: 101 | B133: =OFFSET(InputPriceData!B$15,CalculationsAndCharts!$A133+$A$11,0,1,1) -> 2013-05-17 | C133: =OFFSET(InputPriceData!G$15,CalculationsAndCharts!$A133+$A$11,IF($C$7,8,0),1,1) -> 129801000 | D133: =OFFSET(InputPriceData!C$15,CalculationsAndCharts!$A133+$A$11,IF($C$7,8,0),1,1) -> 162.67 | E133: =OFFSET(InputPriceData!D$15,CalculationsAndCharts!$A133+$A$11,IF($C$7,8,0),1,1) -> 163.74 | F133: =OFFSET(InputPriceData!E$15,CalculationsAndCharts!$A133+$A$11,IF($C$7,8,0),1,1) -> 162.45 | G133: =OFFSET(InputPriceData!F$15,CalculationsAndCharts!$A133+$A$11,IF($C$7,8,0),1,1) -> 163.64 | O133: 3.441993178 | P133: 2.652230782 | Q133: 2.652230782 | R133: 1 | S133: 1 | W133: 3.441993178 | X133: 2.652230782 | Y133: 2.652230782 | Z133: 1 | AA133: 1
A134: 102 | B134: =OFFSET(InputPriceData!B$15,CalculationsAndCharts!$A134+$A$11,0,1,1) -> 2013-05-16 | C134: =OFFSET(InputPriceData!G$15,CalculationsAndCharts!$A134+$A$11,IF($C$7,8,0),1,1) -> 109913600 | D134: =OFFSET(InputPriceData!C$15,CalculationsAndCharts!$A134+$A$11,IF($C$7,8,0),1,1) -> 162.5 | E134: =OFFSET(InputPriceData!D$15,CalculationsAndCharts!$A134+$A$11,IF($C$7,8,0),1,1) -> 163.07 | F134: =OFFSET(InputPriceData!E$15,CalculationsAndCharts!$A134+$A$11,IF($C$7,8,0),1,1) -> 161.82 | G134: =OFFSET(InputPriceData!F$15,CalculationsAndCharts!$A134+$A$11,IF($C$7,8,0),1,1) -> 162.07 | O134: 2.330080622 | P134: 2.503479547 | Q134: 2.503479547 | R134: 1 | S134: 1 | W134: 2.330080622 | X134: 2.503479547 | Y134: 2.503479547 | Z134: 1 | AA134: 1
A135: 103 | B135: =OFFSET(InputPriceData!B$15,CalculationsAndCharts!$A135+$A$11,0,1,1) -> 2013-05-15 | C135: =OFFSET(InputPriceData!G$15,CalculationsAndCharts!$A135+$A$11,IF($C$7,8,0),1,1) -> 120718500 | D135: =OFFSET(InputPriceData!C$15,CalculationsAndCharts!$A135+$A$11,IF($C$7,8,0),1,1) -> 161.7 | E135: =OFFSET(InputPriceData!D$15,CalculationsAndCharts!$A135+$A$11,IF($C$7,8,0),1,1) -> 163.16 | F135: =OFFSET(InputPriceData!E$15,CalculationsAndCharts!$A135+$A$11,IF($C$7,8,0),1,1) -> 161.65 | G135: =OFFSET(InputPriceData!F$15,CalculationsAndCharts!$A135+$A$11,IF($C$7,8,0),1,1) -> 162.84 | O135: 3.557548119 | P135: 2.318668926 | Q135: 2.318668926 | R135: 1 | S135: 1 | W135: 3.557548119 | X135: 2.318668926 | Y135: 2.318668926 | Z135: 1 | AA135: 1
A136: 104 | B136: =OFFSET(InputPriceData!B$15,CalculationsAndCharts!$A136+$A$11,0,1,1) -> 2013-05-14 | C136: =OFFSET(InputPriceData!G$15,CalculationsAndCharts!$A136+$A$11,IF($C$7,8,0),1,1) -> 119000900 | D136: =OFFSET(InputPriceData!C$15,CalculationsAndCharts!$A136+$A$11,IF($C$7,8,0),1,1) -> 160.44 | E136: =OFFSET(InputPriceData!D$15,CalculationsAndCharts!$A136+$A$11,IF($C$7,8,0),1,1) -> 162.09 | F136: =OFFSET(InputPriceData!E$15,CalculationsAndCharts!$A136+$A$11,IF($C$7,8,0),1,1) -> 160.44 | G136: =OFFSET(InputPriceData!F$15,CalculationsAndCharts!$A136+$A$11,IF($C$7,8,0),1,1) -> 161.97 | O136: 3.176387903 | P136: 2.107520163 | Q136: 2.107520163 | R136: 1 | S136: 1 | W136: 3.176387903 | X136: 2.107520163 | Y136: 2.107520163 | Z136: 1 | AA136: 1
A137: 105 | B137: =OFFSET(InputPriceData!B$15,CalculationsAndCharts!$A137+$A$11,0,1,1) -> 2013-05-13 | C137: =OFFSET(InputPriceData!G$15,CalculationsAndCharts!$A137+$A$11,IF($C$7,8,0),1,1) -> 81843200 | D137: =OFFSET(InputPriceData!C$15,CalculationsAndCharts!$A137+$A$11,IF($C$7,8,0),1,1) -> 159.98 | E137: =OFFSET(InputPriceData!D$15,CalculationsAndCharts!$A137+$A$11,IF($C$7,8,0),1,1) -> 160.57 | F137: =OFFSET(InputPriceData!E$15,CalculationsAndCharts!$A137+$A$11,IF($C$7,8,0),1,1) -> 159.6 | G137: =OFFSET(InputPriceData!F$15,CalculationsAndCharts!$A137+$A$11,IF($C$7,8,0),1,1) -> 160.31 | O137: 1.926939049 | P137: 1.933452969 | Q137: 1.933452969 | R137: 1 | S137: 1 | W137: 1.926939049 | X137: 1.933452969 | Y137: 1.933452969 | Z137: 1 | AA137: 1
A138: 106 | B138: =OFFSET(InputPriceData!B$15,CalculationsAndCharts!$A138+$A$11,0,1,1) -> 2013-05-10 | C138: =OFFSET(InputPriceData!G$15,CalculationsAndCharts!$A138+$A$11,IF($C$7,8,0),1,1) -> 103203000 | D138: =OFFSET(InputPriceData!C$15,CalculationsAndCharts!$A138+$A$11,IF($C$7,8,0),1,1) -> 159.77 | E138: =OFFSET(InputPriceData!D$15,CalculationsAndCharts!$A138+$A$11,IF($C$7,8,0),1,1) -> 160.32 | F138: =OFFSET(InputPriceData!E$15,CalculationsAndCharts!$A138+$A$11,IF($C$7,8,0),1,1) -> 159.3 | G138: =OFFSET(InputPriceData!F$15,CalculationsAndCharts!$A138+$A$11,IF($C$7,8,0),1,1) -> 160.18 | O138: 2.157696103 | P138: 1.738201735 | Q138: 1.738201735 | R138: 1 | S138: 1 | W138: 2.157696103 | X138: 1.738201735 | Y138: 1.738201735 | Z138: 1 | AA138: 1
A139: 107 | B139: =OFFSET(InputPriceData!B$15,CalculationsAndCharts!$A139+$A$11,0,1,1) -> 2013-05-09 | C139: =OFFSET(InputPriceData!G$15,CalculationsAndCharts!$A139+$A$11,IF($C$7,8,0),1,1) -> 106738600 | D139: =OFFSET(InputPriceData!C$15,CalculationsAndCharts!$A139+$A$11,IF($C$7,8,0),1,1) -> 160.04 | E139: =OFFSET(InputPriceData!D$15,CalculationsAndCharts!$A139+$A$11,IF($C$7,8,0),1,1) -> 160.46 | F139: =OFFSET(InputPriceData!E$15,CalculationsAndCharts!$A139+$A$11,IF($C$7,8,0),1,1) -> 159.26 | G139: =OFFSET(InputPriceData!F$15,CalculationsAndCharts!$A139+$A$11,IF($C$7,8,0),1,1) -> 159.66 | O139: 1.99752284 | P139: 1.471220358 | Q139: 1.596751147 | R139: 0.921383624 | S139: 0.9957022507 | W139: 1.99752284 | X139: 1.471220358 | Y139: 1.596751147 | Z139: 0.921383624 | AA139: 0.9655330776
A140: 108 | B140: =OFFSET(InputPriceData!B$15,CalculationsAndCharts!$A140+$A$11,0,1,1) -> 2013-05-08 | C140: =OFFSET(InputPriceData!G$15,CalculationsAndCharts!$A140+$A$11,IF($C$7,8,0),1,1) -> 97419200 | D140: =OFFSET(InputPriceData!C$15,CalculationsAndCharts!$A140+$A$11,IF($C$7,8,0),1,1) -> 159.21 | E140: =OFFSET(InputPriceData!D$15,CalculationsAndCharts!$A140+$A$11,IF($C$7,8,0),1,1) -> 160.16 | F140: =OFFSET(InputPriceData!E$15,CalculationsAndCharts!$A140+$A$11,IF($C$7,8,0),1,1) -> 159.12 | G140: =OFFSET(InputPriceData!F$15,CalculationsAndCharts!$A140+$A$11,IF($C$7,8,0),1,1) -> 160.11 | O140: 2.832914793 | P140: 1.129633913 | Q140: 1.611252418 | R140: 0.7010905925 | S140: 0.9816730354 | W140: 2.832914793 | X140: 1.129633913 | Y140: 1.611252418 | Z140: 0.7010905925 | AA140: 0.8599339512
A141: 109 | B141: =OFFSET(InputPriceData!B$15,CalculationsAndCharts!$A141+$A$11,0,1,1) -> 2013-05-07 | C141: =OFFSET(InputPriceData!G$15,CalculationsAndCharts!$A141+$A$11,IF($C$7,8,0),1,1) -> 90359200 | D141: =OFFSET(InputPriceData!C$15,CalculationsAndCharts!$A141+$A$11,IF($C$7,8,0),1,1) -> 158.93 | E141: =OFFSET(InputPriceData!D$15,CalculationsAndCharts!$A141+$A$11,IF($C$7,8,0),1,1) -> 159.44 | F141: =OFFSET(InputPriceData!E$15,CalculationsAndCharts!$A141+$A$11,IF($C$7,8,0),1,1) -> 158.48 | G141: =OFFSET(InputPriceData!F$15,CalculationsAndCharts!$A141+$A$11,IF($C$7,8,0),1,1) -> 159.39 | O141: 2.516333602 | P141: 0.7553987782 | Q141: 1.625885387 | R141: 0.4646076435 | S141: 0.9622470448 | W141: 2.516333602 | X141: 0.7553987782 | Y141: 1.625885387 | Z141: 0.4646076435 | AA141: 0.7291079862
A142: 110 | B142: =OFFSET(InputPriceData!B$15,CalculationsAndCharts!$A142+$A$11,0,1,1) -> 2013-05-06 | C142: =OFFSET(InputPriceData!G$15,CalculationsAndCharts!$A142+$A$11,IF($C$7,8,0),1,1) -> 66882100 | D142: =OFFSET(InputPriceData!C$15,CalculationsAndCharts!$A142+$A$11,IF($C$7,8,0),1,1) -> 158.3 | E142: =OFFSET(InputPriceData!D$15,CalculationsAndCharts!$A142+$A$11,IF($C$7,8,0),1,1) -> 158.81 | F142: =OFFSET(InputPriceData!E$15,CalculationsAndCharts!$A142+$A$11,IF($C$7,8,0),1,1) -> 158.23 | G142: =OFFSET(InputPriceData!F$15,CalculationsAndCharts!$A142+$A$11,IF($C$7,8,0),1,1) -> 158.58 | O142: 2.070997213 | P142: 0.4083237883 | Q142: 1.640651248 | R142: 0.2488790892 | S142: 0.9386334703 | W142: 2.070997213 | X142: 0.4083237883 | Y142: 1.640651248 | Z142: 0.2488790892 | AA142: 0.5901306206
A143: 111 | B143: =OFFSET(InputPriceData!B$15,CalculationsAndCharts!$A143+$A$11,0,1,1) -> 2013-05-03 | C143: =OFFSET(InputPriceData!G$15,CalculationsAndCharts!$A143+$A$11,IF($C$7,8,0),1,1) -> 144202300 | D143: =OFFSET(InputPriceData!C$15,CalculationsAndCharts!$A143+$A$11,IF($C$7,8,0),1,1) -> 157.95 | E143: =OFFSET(InputPriceData!D$15,CalculationsAndCharts!$A143+$A$11,IF($C$7,8,0),1,1) -> 158.68 | F143: =OFFSET(InputPriceData!E$15,CalculationsAndCharts!$A143+$A$11,IF($C$7,8,0),1,1) -> 156.62 | G143: =OFFSET(InputPriceData!F$15,CalculationsAndCharts!$A143+$A$11,IF($C$7,8,0),1,1) -> 158.18 | O143: 2.008835798 | P143: 0.09942423347 | Q143: 1.655551209 | R143: 0.06005506379 | S143: 0.9108253564 | W143: 2.008835798 | X143: 0.09942423347 | Y143: 1.655551209 | Z143: 0.06005506379 | AA143: 0.4492628599
A144: 112 | B144: =OFFSET(InputPriceData!B$15,CalculationsAndCharts!$A144+$A$11,0,1,1) -> 2013-05-02 | C144: =OFFSET(InputPriceData!G$15,CalculationsAndCharts!$A144+$A$11,IF($C$7,8,0),1,1) -> 96407600 | D144: =OFFSET(InputPriceData!C$15,CalculationsAndCharts!$A144+$A$11,IF($C$7,8,0),1,1) -> 155.54 | E144: =OFFSET(InputPriceData!D$15,CalculationsAndCharts!$A144+$A$11,IF($C$7,8,0),1,1) -> 156.73 | F144: =OFFSET(InputPriceData!E$15,CalculationsAndCharts!$A144+$A$11,IF($C$7,8,0),1,1) -> 155.39 | G144: =OFFSET(InputPriceData!F$15,CalculationsAndCharts!$A144+$A$11,IF($C$7,8,0),1,1) -> 156.59 | O144: 0.6920628751 | P144: -0.1431544276 | Q144: 1.670586487 | R144: -0.08569112024 | S144: 0.8823581091 | W144: 0.6920628751 | X144: -0.1431544276 | Y144: 1.670586487 | Z144: -0.08569112024 | AA144: 0.325464652
A145: 113 | B145: =OFFSET(InputPriceData!B$15,CalculationsAndCharts!$A145+$A$11,0,1,1) -> 2013-05-01 | C145: =OFFSET(InputPriceData!G$15,CalculationsAndCharts!$A145+$A$11,IF($C$7,8,0),1,1) -> 138874200 | D145: =OFFSET(InputPriceData!C$15,CalculationsAndCharts!$A145+$A$11,IF($C$7,8,0),1,1) -> 156.18 | E145: =OFFSET(InputPriceData!D$15,CalculationsAndCharts!$A145+$A$11,IF($C$7,8,0),1,1) -> 156.26 | F145: =OFFSET(InputPriceData!E$15,CalculationsAndCharts!$A145+$A$11,IF($C$7,8,0),1,1) -> 154.97 | G145: =OFFSET(InputPriceData!F$15,CalculationsAndCharts!$A145+$A$11,IF($C$7,8,0),1,1) -> 155.15 | O145: -0.5916296768 | P145: -0.3373800138 | Q145: 1.685758312 | R145: -0.2001354591 | S145: 0.8536202542 | W145: -0.5916296768 | X145: -0.3373800138 | Y145: 1.685758312 | Z145: -0.2001354591 | AA145: 0.2172568615
A146: 114 | B146: =OFFSET(InputPriceData!B$15,CalculationsAndCharts!$A146+$A$11,0,1,1) -> 2013-04-30 | C146: =OFFSET(InputPriceData!G$15,CalculationsAndCharts!$A146+$A$11,IF($C$7,8,0),1,1) -> 116010700 | D146: =OFFSET(InputPriceData!C$15,CalculationsAndCharts!$A146+$A$11,IF($C$7,8,0),1,1) -> 156.12 | E146: =OFFSET(InputPriceData!D$15,CalculationsAndCharts!$A146+$A$11,IF($C$7,8,0),1,1) -> 156.56 | F146: =OFFSET(InputPriceData!E$15,CalculationsAndCharts!$A146+$A$11,IF($C$7,8,0),1,1) -> 155.47 | G146: =OFFSET(InputPriceData!F$15,CalculationsAndCharts!$A146+$A$11,IF($C$7,8,0),1,1) -> 156.52 | O146: 0.9457234595 | P146: -0.5924767767 | Q146: 1.701067923 | R146: -0.3482969542 | S146: 0.8036077709 | W146: 0.9457234595 | X146: -0.5924767767 | Y146: 1.701067923 | Z146: -0.3482969542 | AA146: 0.06007223661
A147: 115 | B147: =OFFSET(InputPriceData!B$15,CalculationsAndCharts!$A147+$A$11,0,1,1) -> 2013-04-29 | C147: =OFFSET(InputPriceData!G$15,CalculationsAndCharts!$A147+$A$11,IF($C$7,8,0),1,1) -> 88572800 | D147: =OFFSET(InputPriceData!C$15,CalculationsAndCharts!$A147+$A$11,IF($C$7,8,0),1,1) -> 155.53 | E147: =OFFSET(InputPriceData!D$15,CalculationsAndCharts!$A147+$A$11,IF($C$7,8,0),1,1) -> 156.49 | F147: =OFFSET(InputPriceData!E$15,CalculationsAndCharts!$A147+$A$11,IF($C$7,8,0),1,1) -> 155.29 | G147: =OFFSET(InputPriceData!F$15,CalculationsAndCharts!$A147+$A$11,IF($C$7,8,0),1,1) -> 156.15 | O147: 0.8040474884 | P147: -0.8954326596 | Q147: 1.716516573 | R147: -0.5216568683 | S147: 0.7131702971 | W147: 0.8040474884 | X147: -0.8954326596 | Y147: 1.716516573 | Z147: -0.5216568683 | AA147: -0.1537358033
A148: 116 | B148: =OFFSET(InputPriceData!B$15,CalculationsAndCharts!$A148+$A$11,0,1,1) -> 2013-04-26 | C148: =OFFSET(InputPriceData!G$15,CalculationsAndCharts!$A148+$A$11,IF($C$7,8,0),1,1) -> 95918800 | D148: =OFFSET(InputPriceData!C$15,CalculationsAndCharts!$A148+$A$11,IF($C$7,8,0),1,1) -> 155.2 | E148: =OFFSET(InputPriceData!D$15,CalculationsAndCharts!$A148+$A$11,IF($C$7,8,0),1,1) -> 155.46 | F148: =OFFSET(InputPriceData!E$15,CalculationsAndCharts!$A148+$A$11,IF($C$7,8,0),1,1) -> 154.61 | G148: =OFFSET(InputPriceData!F$15,CalculationsAndCharts!$A148+$A$11,IF($C$7,8,0),1,1) -> 155.11 | O148: -0.05324614561 | P148: -1.149710007 | Q148: 1.732105522 | R148: -0.663764414 | S148: 0.586757399 | W148: -0.05324614561 | X148: -1.149710007 | Y148: 1.732105522 | Z148: -0.663764414 | AA148: -0.359110258
A149: 117 | B149: =OFFSET(InputPriceData!B$15,CalculationsAndCharts!$A149+$A$11,0,1,1) -> 2013-04-25 | C149: =OFFSET(InputPriceData!G$15,CalculationsAndCharts!$A149+$A$11,IF($C$7,8,0),1,1) -> 131060600 | D149: =OFFSET(InputPriceData!C$15,CalculationsAndCharts!$A149+$A$11,IF($C$7,8,0),1,1) -> 155.21 | E149: =OFFSET(InputPriceData!D$15,CalculationsAndCharts!$A149+$A$11,IF($C$7,8,0),1,1) -> 156.13 | F149: =OFFSET(InputPriceData!E$15,CalculationsAndCharts!$A149+$A$11,IF($C$7,8,0),1,1) -> 154.98 | G149: =OFFSET(InputPriceData!F$15,CalculationsAndCharts!$A149+$A$11,IF($C$7,8,0),1,1) -> 155.39 | O149: 0.3905518736 | P149: -1.358295214 | Q149: 1.747836047 | R149: -0.7771296491 | S149: 0.4087730238 | W149: 0.3905518736 | X149: -1.358295214 | Y149: 1.747836047 | Z149: -0.7771296491 | AA149: -0.5472403203
A150: 118 | B150: =OFFSET(InputPriceData!B$15,CalculationsAndCharts!$A150+$A$11,0,1,1) -> 2013-04-24 | C150: =OFFSET(InputPriceData!G$15,CalculationsAndCharts!$A150+$A$11,IF($C$7,8,0),1,1) -> 96781200 | D150: =OFFSET(InputPriceData!C$15,CalculationsAndCharts!$A150+$A$11,IF($C$7,8,0),1,1) -> 154.71 | E150: =OFFSET(InputPriceData!D$15,CalculationsAndCharts!$A150+$A$11,IF($C$7,8,0),1,1) -> 155.17 | F150: =OFFSET(InputPriceData!E$15,CalculationsAndCharts!$A150+$A$11,IF($C$7,8,0),1,1) -> 154.43 | G150: =OFFSET(InputPriceData!F$15,CalculationsAndCharts!$A150+$A$11,IF($C$7,8,0),1,1) -> 154.76 | O150: -0.07702789689 | P150: -1.495407439 | Q150: 1.763709432 | R150: -0.8478763065 | S150: 0.2200135163 | W150: -0.07702789689 | X150: -1.495407439 | Y150: 1.763709432 | Z150: -0.8478763065 | AA150: -0.6777281693
A151: 119 | B151: =OFFSET(InputPriceData!B$15,CalculationsAndCharts!$A151+$A$11,0,1,1) -> 2013-04-23 | C151: =OFFSET(InputPriceData!G$15,CalculationsAndCharts!$A151+$A$11,IF($C$7,8,0),1,1) -> 166141300 | D151: =OFFSET(InputPriceData!C$15,CalculationsAndCharts!$A151+$A$11,IF($C$7,8,0),1,1) -> 153.85 | E151: =OFFSET(InputPriceData!D$15,CalculationsAndCharts!$A151+$A$11,IF($C$7,8,0),1,1) -> 154.81 | F151: =OFFSET(InputPriceData!E$15,CalculationsAndCharts!$A151+$A$11,IF($C$7,8,0),1,1) -> 153.08 | G151: =OFFSET(InputPriceData!F$15,CalculationsAndCharts!$A151+$A$11,IF($C$7,8,0),1,1) -> 154.66 | O151: -0.03355044245 | P151: -1.505645603 | Q151: 1.779726974 | R151: -0.84599808 | S151: 0.2263266089 | W151: -0.03355044245 | X151: -1.505645603 | Y151: 1.779726974 | Z151: -0.84599808 | AA151: -0.6741196529
A152: 120 | B152: =OFFSET(InputPriceData!B$15,CalculationsAndCharts!$A152+$A$11,0,1,1) -> 2013-04-22 | C152: =OFFSET(InputPriceData!G$15,CalculationsAndCharts!$A152+$A$11,IF($C$7,8,0),1,1) -> 106553500 | D152: =OFFSET(InputPriceData!C$15,CalculationsAndCharts!$A152+$A$11,IF($C$7,8,0),1,1) -> 152.7 | E152: =OFFSET(InputPriceData!D$15,CalculationsAndCharts!$A152+$A$11,IF($C$7,8,0),1,1) -> 153.44 | F152: =OFFSET(InputPriceData!E$15,CalculationsAndCharts!$A152+$A$11,IF($C$7,8,0),1,1) -> 151.69 | G152: =OFFSET(InputPriceData!F$15,CalculationsAndCharts!$A152+$A$11,IF($C$7,8,0),1,1) -> 153.08 | O152: -1.533976233 | P152: -1.342916852 | Q152: 1.795889984 | R152: -0.7477723379 | S152: 0.4655210488 | W152: -1.533976233 | X152: -1.342916852 | Y152: 1.795889984 | Z152: -0.7477723379 | AA152: -0.4961860057
A153: 121 | B153: =OFFSET(InputPriceData!B$15,CalculationsAndCharts!$A153+$A$11,0,1,1) -> 2013-04-19 | C153: =OFFSET(InputPriceData!G$15,CalculationsAndCharts!$A153+$A$11,IF($C$7,8,0),1,1) -> 149687600 | D153: =OFFSET(InputPriceData!C$15,CalculationsAndCharts!$A153+$A$11,IF($C$7,8,0),1,1) -> 151.45 | E153: =OFFSET(InputPriceData!D$15,CalculationsAndCharts!$A153+$A$11,IF($C$7,8,0),1,1) -> 152.48 | F153: =OFFSET(InputPriceData!E$15,CalculationsAndCharts!$A153+$A$11,IF($C$7,8,0),1,1) -> 151.08 | G153: =OFFSET(InputPriceData!F$15,CalculationsAndCharts!$A153+$A$11,IF($C$7,8,0),1,1) -> 152.41 | O153: -2.218868901 | P153: -1.020286852 | Q153: 1.812199782 | R153: -0.5630101391 | S153: 0.6831463506 | W153: -2.218868901 | X153: -1.020286852 | Y153: 1.812199782 | Z153: -0.5630101391 | AA153: -0.2103910588
A154: 122 | B154: =OFFSET(InputPriceData!B$15,CalculationsAndCharts!$A154+$A$11,0,1,1) -> 2013-04-18 | C154: =OFFSET(InputPriceData!G$15,CalculationsAndCharts!$A154+$A$11,IF($C$7,8,0),1,1) -> 167583200 | D154: =OFFSET(InputPriceData!C$15,CalculationsAndCharts!$A154+$A$11,IF($C$7,8,0),1,1) -> 152.3 | E154: =OFFSET(InputPriceData!D$15,CalculationsAndCharts!$A154+$A$11,IF($C$7,8,0),1,1) -> 152.33 | F154: =OFFSET(InputPriceData!E$15,CalculationsAndCharts!$A154+$A$11,IF($C$7,8,0),1,1) -> 150.51 | G154: =OFFSET(InputPriceData!F$15,CalculationsAndCharts!$A154+$A$11,IF($C$7,8,0),1,1) -> 151.09 | O154: -3.642706595 | P154: -0.622699233 | Q154: 1.828657702 | R154: -0.340522577 | S154: 0.8067101359 | W154: -3.642706595 | X154: -0.622699233 | Y154: 1.828657702 | Z154: -0.340522577 | AA154: 0.06885626859
A155: 123 | B155: =OFFSET(InputPriceData!B$15,CalculationsAndCharts!$A155+$A$11,0,1,1) -> 2013-04-17 | C155: =OFFSET(InputPriceData!G$15,CalculationsAndCharts!$A155+$A$11,IF($C$7,8,0),1,1) -> 226834800 | D155: =OFFSET(InputPriceData!C$15,CalculationsAndCharts!$A155+$A$11,IF($C$7,8,0),1,1) -> 153.2 | E155: =OFFSET(InputPriceData!D$15,CalculationsAndCharts!$A155+$A$11,IF($C$7,8,0),1,1) -> 153.23 | F155: =OFFSET(InputPriceData!E$15,CalculationsAndCharts!$A155+$A$11,IF($C$7,8,0),1,1) -> 151.23 | G155: =OFFSET(InputPriceData!F$15,CalculationsAndCharts!$A155+$A$11,IF($C$7,8,0),1,1) -> 152.04 | O155: -2.817040205 | P155: -0.2871216371 | Q155: 1.845265087 | R155: -0.1555991272 | S155: 0.8656218811 | W155: -2.817040205 | X155: -0.2871216371 | Y155: 1.845265087 | Z155: -0.1555991272 | AA155: 0.2606218881
A156: 124 | B156: =OFFSET(InputPriceData!B$15,CalculationsAndCharts!$A156+$A$11,0,1,1) -> 2013-04-16 | C156: =OFFSET(InputPriceData!G$15,CalculationsAndCharts!$A156+$A$11,IF($C$7,8,0),1,1) -> 147507800 | D156: =OFFSET(InputPriceData!C$15,CalculationsAndCharts!$A156+$A$11,IF($C$7,8,0),1,1) -> 153.2 | E156: =OFFSET(InputPriceData!D$15,CalculationsAndCharts!$A156+$A$11,IF($C$7,8,0),1,1) -> 154.38 | F156: =OFFSET(InputPriceData!E$15,CalculationsAndCharts!$A156+$A$11,IF($C$7,8,0),1,1) -> 152.83 | G156: =OFFSET(InputPriceData!F$15,CalculationsAndCharts!$A156+$A$11,IF($C$7,8,0),1,1) -> 154.3 | O156: -0.5386170597 | P156: -0.1264291339 | Q156: 1.862023297 | R156: -0.0678987927 | S156: 0.8862595664 | W156: -0.5386170597 | X156: -0.1264291339 | Y156: 1.862023297 | Z156: -0.0678987927 | AA156: 0.3413727257
A157: 125 | B157: =OFFSET(InputPriceData!B$15,CalculationsAndCharts!$A157+$A$11,0,1,1) -> 2013-04-15 | C157: =OFFSET(InputPriceData!G$15,CalculationsAndCharts!$A157+$A$11,IF($C$7,8,0),1,1) -> 217259000 | D157: =OFFSET(InputPriceData!C$15,CalculationsAndCharts!$A157+$A$11,IF($C$7,8,0),1,1) -> 154.87 | E157: =OFFSET(InputPriceData!D$15,CalculationsAndCharts!$A157+$A$11,IF($C$7,8,0),1,1) -> 155 | F157: =OFFSET(InputPriceData!E$15,CalculationsAndCharts!$A157+$A$11,IF($C$7,8,0),1,1) -> 152.03 | G157: =OFFSET(InputPriceData!F$15,CalculationsAndCharts!$A157+$A$11,IF($C$7,8,0),1,1) -> 152.05 | O157: -2.7645769 | P157: -0.06700735915 | Q157: 1.8789337 | R157: -0.03566243936 | S157: 0.8929994454 | W157: -2.7645769 | X157: -0.06700735915 | Y157: 1.8789337 | Z157: -0.03566243936 | AA157: 0.3696100389
A158: 126 | B158: =OFFSET(InputPriceData!B$15,CalculationsAndCharts!$A158+$A$11,0,1,1) -> 2013-04-12 | C158: =OFFSET(InputPriceData!G$15,CalculationsAndCharts!$A158+$A$11,IF($C$7,8,0),1,1) -> 116359900 | D158: =OFFSET(InputPriceData!C$15,CalculationsAndCharts!$A158+$A$11,IF($C$7,8,0),1,1) -> 155.54 | E158: =OFFSET(InputPriceData!D$15,CalculationsAndCharts!$A158+$A$11,IF($C$7,8,0),1,1) -> 155.9 | F158: =OFFSET(InputPriceData!E$15,CalculationsAndCharts!$A158+$A$11,IF($C$7,8,0),1,1) -> 154.8 | G158: =OFFSET(InputPriceData!F$15,CalculationsAndCharts!$A158+$A$11,IF($C$7,8,0),1,1) -> 155.66 | O158: 0.9375816367 | P158: -0.1695837048 | Q158: 1.895997679 | R158: -0.08944299175 | S158: 0.8815180595 | W158: 0.9375816367 | X158: -0.1695837048 | Y158: 1.895997679 | Z158: -0.08944299175 | AA158: 0.3220801325
A159: 127 | B159: =OFFSET(InputPriceData!B$15,CalculationsAndCharts!$A159+$A$11,0,1,1) -> 2013-04-11 | C159: =OFFSET(InputPriceData!G$15,CalculationsAndCharts!$A159+$A$11,IF($C$7,8,0),1,1) -> 110142500 | D159: =OFFSET(InputPriceData!C$15,CalculationsAndCharts!$A159+$A$11,IF($C$7,8,0),1,1) -> 155.56 | E159: =OFFSET(InputPriceData!D$15,CalculationsAndCharts!$A159+$A$11,IF($C$7,8,0),1,1) -> 156.55 | F159: =OFFSET(InputPriceData!E$15,CalculationsAndCharts!$A159+$A$11,IF($C$7,8,0),1,1) -> 155.4 | G159: =OFFSET(InputPriceData!F$15,CalculationsAndCharts!$A159+$A$11,IF($C$7,8,0),1,1) -> 156.04 | O159: 1.60345704 | P159: -0.4211831998 | Q159: 1.913216629 | R159: -0.22014402 | S159: 0.8478377494 | W159: 1.60345704 | X159: -0.4211831998 | Y159: 1.913216629 | Z159: -0.22014402 | AA159: 0.1972229623
A160: 128 | B160: =OFFSET(InputPriceData!B$15,CalculationsAndCharts!$A160+$A$11,0,1,1) -> 2013-04-10 | C160: =OFFSET(InputPriceData!G$15,CalculationsAndCharts!$A160+$A$11,IF($C$7,8,0),1,1) -> 135711100 | D160: =OFFSET(InputPriceData!C$15,CalculationsAndCharts!$A160+$A$11,IF($C$7,8,0),1,1) -> 154.06 | E160: =OFFSET(InputPriceData!D$15,CalculationsAndCharts!$A160+$A$11,IF($C$7,8,0),1,1) -> 155.73 | F160: =OFFSET(InputPriceData!E$15,CalculationsAndCharts!$A160+$A$11,IF($C$7,8,0),1,1) -> 154.02 | G160: =OFFSET(InputPriceData!F$15,CalculationsAndCharts!$A160+$A$11,IF($C$7,8,0),1,1) -> 155.53 | O160: 1.39700988 | P160: -0.6050677535 | Q160: 1.930591957 | R160: -0.3134104808 | S160: 0.817056058 | W160: 1.39700988 | X160: -0.6050677535 | Y160: 1.930591957 | Z160: -0.3134104808 | AA160: 0.0990006565
A161: 129 | B161: =OFFSET(InputPriceData!B$15,CalculationsAndCharts!$A161+$A$11,0,1,1) -> 2013-04-09 | C161: =OFFSET(InputPriceData!G$15,CalculationsAndCharts!$A161+$A$11,IF($C$7,8,0),1,1) -> 101922200 | D161: =OFFSET(InputPriceData!C$15,CalculationsAndCharts!$A161+$A$11,IF($C$7,8,0),1,1) -> 153.4 | E161: =OFFSET(InputPriceData!D$15,CalculationsAndCharts!$A161+$A$11,IF($C$7,8,0),1,1) -> 154.21 | F161: =OFFSET(InputPriceData!E$15,CalculationsAndCharts!$A161+$A$11,IF($C$7,8,0),1,1) -> 152.9 | G161: =OFFSET(InputPriceData!F$15,CalculationsAndCharts!$A161+$A$11,IF($C$7,8,0),1,1) -> 153.65 | O161: =$N$38*(G161-2*G162+G163)+2*$N$36*O162-$N$37*O163 -> -0.2644677185 | P161: =$N$41*(O161+O162)/2+$N$42*P162+$N$43*P163 -> -0.6324081979 | Q161: 1.948125083 | R161: -0.3246240211 | S161: =(R161+$A$21)/($A$21*R161+1) -> 0.812863493 | W161: -0.2644677185 | X161: -0.6324081979 | Y161: 1.948125083 | Z161: -0.3246240211 | AA161: 0.08662408204
A162: 130 | B162: =OFFSET(InputPriceData!B$15,CalculationsAndCharts!$A162+$A$11,0,1,1) -> 2013-04-08 | C162: =OFFSET(InputPriceData!G$15,CalculationsAndCharts!$A162+$A$11,IF($C$7,8,0),1,1) -> 86571200 | D162: =OFFSET(InputPriceData!C$15,CalculationsAndCharts!$A162+$A$11,IF($C$7,8,0),1,1) -> 152.2 | E162: =OFFSET(InputPriceData!D$15,CalculationsAndCharts!$A162+$A$11,IF($C$7,8,0),1,1) -> 153.13 | F162: =OFFSET(InputPriceData!E$15,CalculationsAndCharts!$A162+$A$11,IF($C$7,8,0),1,1) -> 151.69 | G162: =OFFSET(InputPriceData!F$15,CalculationsAndCharts!$A162+$A$11,IF($C$7,8,0),1,1) -> 153.12 | O162: -0.6677816647 | P162: -0.5273547788 | Q162: =IF(ABS(P162)>(Q163*0.991),ABS(P162),(Q163*0.991)) -> 1.965817439 | R162: =IF(Q162>0,P162/Q162,R163) -> -0.2682623362 | S162: 0.8328074483 | W162: =$V$38*(G162-2*G163+G164)+2*$V$36*W163-$V$37*W164 -> -0.6677816647 | X162: =$V$41*(W162+W163)/2+$V$42*X163+$V$43*X164 -> -0.5273547788 | Y162: =IF(ABS(X162)>(Y163*0.991),ABS(X162),(Y163*0.991)) -> 1.965817439 | Z162: =IF(Y162>0,X162/Y162,Z163) -> -0.2682623362 | AA162: =(Z162+$A$26)/($A$26*Z162+1) -> 0.1475729719
A163: 131 | B163: =OFFSET(InputPriceData!B$15,CalculationsAndCharts!$A163+$A$11,0,1,1) -> 2013-04-05 | C163: =OFFSET(InputPriceData!G$15,CalculationsAndCharts!$A163+$A$11,IF($C$7,8,0),1,1) -> 159666000 | D163: =OFFSET(InputPriceData!C$15,CalculationsAndCharts!$A163+$A$11,IF($C$7,8,0),1,1) -> 150.9 | E163: =OFFSET(InputPriceData!D$15,CalculationsAndCharts!$A163+$A$11,IF($C$7,8,0),1,1) -> 152.28 | F163: =OFFSET(InputPriceData!E$15,CalculationsAndCharts!$A163+$A$11,IF($C$7,8,0),1,1) -> 150.73 | G163: =OFFSET(InputPriceData!F$15,CalculationsAndCharts!$A163+$A$11,IF($C$7,8,0),1,1) -> 152.09 | O163: -1.630179306 | P163: -0.3560037076 | Q163: 1.983670474 | R163: -0.1794671606 | S163: 0.8593326274 | W163: -1.630179306 | X163: -0.3560037076 | Y163: 1.983670474 | Z163: -0.1794671606 | AA163: 0.2375885784
A164: 132 | B164: =OFFSET(InputPriceData!B$15,CalculationsAndCharts!$A164+$A$11,0,1,1) -> 2013-04-04 | C164: =OFFSET(InputPriceData!G$15,CalculationsAndCharts!$A164+$A$11,IF($C$7,8,0),1,1) -> 131885000 | D164: =OFFSET(InputPriceData!C$15,CalculationsAndCharts!$A164+$A$11,IF($C$7,8,0),1,1) -> 152.36 | E164: =OFFSET(InputPriceData!D$15,CalculationsAndCharts!$A164+$A$11,IF($C$7,8,0),1,1) -> 153.08 | F164: =OFFSET(InputPriceData!E$15,CalculationsAndCharts!$A164+$A$11,IF($C$7,8,0),1,1) -> 152.03 | G164: =OFFSET(InputPriceData!F$15,CalculationsAndCharts!$A164+$A$11,IF($C$7,8,0),1,1) -> 152.78 | O164: -0.8796160296 | P164: -0.1865199371 | Q164: 2.001685645 | R164: -0.09318143315 | S164: 0.8806748577 | W164: -0.8796160296 | X164: -0.1865199371 | Y164: 2.001685645 | Z164: -0.09318143315 | AA164: 0.3186972328
A165: 133 | B165: =OFFSET(InputPriceData!B$15,CalculationsAndCharts!$A165+$A$11,0,1,1) -> 2013-04-03 | C165: =OFFSET(InputPriceData!G$15,CalculationsAndCharts!$A165+$A$11,IF($C$7,8,0),1,1) -> 154167400 | D165: =OFFSET(InputPriceData!C$15,CalculationsAndCharts!$A165+$A$11,IF($C$7,8,0),1,1) -> 153.81 | E165: =OFFSET(InputPriceData!D$15,CalculationsAndCharts!$A165+$A$11,IF($C$7,8,0),1,1) -> 153.92 | F165: =OFFSET(InputPriceData!E$15,CalculationsAndCharts!$A165+$A$11,IF($C$7,8,0),1,1) -> 151.76 | G165: =OFFSET(InputPriceData!F$15,CalculationsAndCharts!$A165+$A$11,IF($C$7,8,0),1,1) -> 152.16 | O165: -1.427678559 | P165: -0.05387889839 | Q165: 2.019864424 | R165: -0.02667451228 | S165: 0.8948071783 | W165: -1.427678559 | X165: -0.05387889839 | Y165: 2.019864424 | Z165: -0.02667451228 | AA165: 0.3773517574
A166: 134 | B166: =OFFSET(InputPriceData!B$15,CalculationsAndCharts!$A166+$A$11,0,1,1) -> 2013-04-02 | C166: =OFFSET(InputPriceData!G$15,CalculationsAndCharts!$A166+$A$11,IF($C$7,8,0),1,1) -> 101504300 | D166: =OFFSET(InputPriceData!C$15,CalculationsAndCharts!$A166+$A$11,IF($C$7,8,0),1,1) -> 153.51 | E166: =OFFSET(InputPriceData!D$15,CalculationsAndCharts!$A166+$A$11,IF($C$7,8,0),1,1) -> 154.1 | F166: =OFFSET(InputPriceData!E$15,CalculationsAndCharts!$A166+$A$11,IF($C$7,8,0),1,1) -> 153.28 | G166: =OFFSET(InputPriceData!F$15,CalculationsAndCharts!$A166+$A$11,IF($C$7,8,0),1,1) -> 153.72 | O166: 0.2564503161 | P166: 0.01744667421 | Q166: 2.038208299 | R166: 0.00855980923 | S166: 0.9016139303 | W166: 0.2564503161 | X166: 0.01744667421 | Y166: 2.038208299 | Z166: 0.00855980923 | AA166: 0.4071657049
A167: 135 | B167: =OFFSET(InputPriceData!B$15,CalculationsAndCharts!$A167+$A$11,0,1,1) -> 2013-04-01 | C167: =OFFSET(InputPriceData!G$15,CalculationsAndCharts!$A167+$A$11,IF($C$7,8,0),1,1) -> 99194100 | D167: =OFFSET(InputPriceData!C$15,CalculationsAndCharts!$A167+$A$11,IF($C$7,8,0),1,1) -> 153.5 | E167: =OFFSET(InputPriceData!D$15,CalculationsAndCharts!$A167+$A$11,IF($C$7,8,0),1,1) -> 153.81 | F167: =OFFSET(InputPriceData!E$15,CalculationsAndCharts!$A167+$A$11,IF($C$7,8,0),1,1) -> 152.6 | G167: =OFFSET(InputPriceData!F$15,CalculationsAndCharts!$A167+$A$11,IF($C$7,8,0),1,1) -> 152.97 | O167: -0.3195794537 | P167: 0.0543620288 | Q167: 2.056718768 | R167: 0.02643143518 | S167: 0.9049052843 | W167: -0.3195794537 | X167: 0.0543620288 | Y167: 2.056718768 | Z167: 0.02643143518 | AA167: 0.4219701248
A168: 136 | B168: =OFFSET(InputPriceData!B$15,CalculationsAndCharts!$A168+$A$11,0,1,1) -> 2013-03-28 | C168: =OFFSET(InputPriceData!G$15,CalculationsAndCharts!$A168+$A$11,IF($C$7,8,0),1,1) -> 102932800 | D168: =OFFSET(InputPriceData!C$15,CalculationsAndCharts!$A168+$A$11,IF($C$7,8,0),1,1) -> 153 | E168: =OFFSET(InputPriceData!D$15,CalculationsAndCharts!$A168+$A$11,IF($C$7,8,0),1,1) -> 153.75 | F168: =OFFSET(InputPriceData!E$15,CalculationsAndCharts!$A168+$A$11,IF($C$7,8,0),1,1) -> 152.67 | G168: =OFFSET(InputPriceData!F$15,CalculationsAndCharts!$A168+$A$11,IF($C$7,8,0),1,1) -> 153.57 | O168: 0.4635523032 | P168: 0.101336523 | Q168: 2.075397344 | R168: 0.0488275285 | S168: 0.9088867061 | W168: 0.4635523032 | X168: 0.101336523 | Y168: 2.075397344 | Z168: 0.0488275285 | AA168: 0.440229403
A169: 137 | B169: =OFFSET(InputPriceData!B$15,CalculationsAndCharts!$A169+$A$11,0,1,1) -> 2013-03-27 | C169: =OFFSET(InputPriceData!G$15,CalculationsAndCharts!$A169+$A$11,IF($C$7,8,0),1,1) -> 99950600 | D169: =OFFSET(InputPriceData!C$15,CalculationsAndCharts!$A169+$A$11,IF($C$7,8,0),1,1) -> 152.19 | E169: =OFFSET(InputPriceData!D$15,CalculationsAndCharts!$A169+$A$11,IF($C$7,8,0),1,1) -> 153.15 | F169: =OFFSET(InputPriceData!E$15,CalculationsAndCharts!$A169+$A$11,IF($C$7,8,0),1,1) -> 151.93 | G169: =OFFSET(InputPriceData!F$15,CalculationsAndCharts!$A169+$A$11,IF($C$7,8,0),1,1) -> 153.1 | O169: 0.199341225 | P169: 0.1709665536 | Q169: 2.094245554 | R169: 0.0816363455 | S169: 0.914449278 | W169: 0.199341225 | X169: 0.1709665536 | Y169: 2.094245554 | Z169: 0.0816363455 | AA169: 0.4664060707
A170: 138 | B170: =OFFSET(InputPriceData!B$15,CalculationsAndCharts!$A170+$A$11,0,1,1) -> 2013-03-26 | C170: =OFFSET(InputPriceData!G$15,CalculationsAndCharts!$A170+$A$11,IF($C$7,8,0),1,1) -> 86856600 | D170: =OFFSET(InputPriceData!C$15,CalculationsAndCharts!$A170+$A$11,IF($C$7,8,0),1,1) -> 152.51 | E170: =OFFSET(InputPriceData!D$15,CalculationsAndCharts!$A170+$A$11,IF($C$7,8,0),1,1) -> 153.14 | F170: =OFFSET(InputPriceData!E$15,CalculationsAndCharts!$A170+$A$11,IF($C$7,8,0),1,1) -> 152.35 | G170: =OFFSET(InputPriceData!F$15,CalculationsAndCharts!$A170+$A$11,IF($C$7,8,0),1,1) -> 153.1 | O170: 0.4017610219 | P170: 0.2993110563 | Q170: 2.113264938 | R170: 0.1416344212 | S170: 0.9238680556 | W170: 0.4017610219 | X170: 0.2993110563 | Y170: 2.113264938 | Z170: 0.1416344212 | AA170: 0.5125940373
A171: 139 | B171: =OFFSET(InputPriceData!B$15,CalculationsAndCharts!$A171+$A$11,0,1,1) -> 2013-03-25 | C171: =OFFSET(InputPriceData!G$15,CalculationsAndCharts!$A171+$A$11,IF($C$7,8,0),1,1) -> 151322300 | D171: =OFFSET(InputPriceData!C$15,CalculationsAndCharts!$A171+$A$11,IF($C$7,8,0),1,1) -> 152.93 | E171: =OFFSET(InputPriceData!D$15,CalculationsAndCharts!$A171+$A$11,IF($C$7,8,0),1,1) -> 153.18 | F171: =OFFSET(InputPriceData!E$15,CalculationsAndCharts!$A171+$A$11,IF($C$7,8,0),1,1) -> 151.3 | G171: =OFFSET(InputPriceData!F$15,CalculationsAndCharts!$A171+$A$11,IF($C$7,8,0),1,1) -> 151.89 | O171: -0.6434408794 | P171: 0.499588186 | Q171: 2.132457052 | R171: 0.2342781936 | S171: 0.9367616493 | W171: -0.6434408794 | X171: 0.499588186 | Y171: 2.132457052 | Z171: 0.2342781936 | AA171: 0.5799320229
A172: 140 | B172: =OFFSET(InputPriceData!B$15,CalculationsAndCharts!$A172+$A$11,0,1,1) -> 2013-03-22 | C172: =OFFSET(InputPriceData!G$15,CalculationsAndCharts!$A172+$A$11,IF($C$7,8,0),1,1) -> 111163600 | D172: =OFFSET(InputPriceData!C$15,CalculationsAndCharts!$A172+$A$11,IF($C$7,8,0),1,1) -> 151.79 | E172: =OFFSET(InputPriceData!D$15,CalculationsAndCharts!$A172+$A$11,IF($C$7,8,0),1,1) -> 152.53 | F172: =OFFSET(InputPriceData!E$15,CalculationsAndCharts!$A172+$A$11,IF($C$7,8,0),1,1) -> 151.68 | G172: =OFFSET(InputPriceData!F$15,CalculationsAndCharts!$A172+$A$11,IF($C$7,8,0),1,1) -> 152.53 | O172: 0.1505589571 | P172: 0.73543469 | Q172: 2.151823463 | R172: 0.3417727814 | S172: 0.949661251 | W172: 0.1505589571 | X172: 0.73543469 | Y172: 2.151823463 | Z172: 0.3417727814 | AA172: 0.6525616564
A173: 141 | B173: =OFFSET(InputPriceData!B$15,CalculationsAndCharts!$A173+$A$11,0,1,1) -> 2013-03-21 | C173: =OFFSET(InputPriceData!G$15,CalculationsAndCharts!$A173+$A$11,IF($C$7,8,0),1,1) -> 128605000 | D173: =OFFSET(InputPriceData!C$15,CalculationsAndCharts!$A173+$A$11,IF($C$7,8,0),1,1) -> 151.7 | E173: =OFFSET(InputPriceData!D$15,CalculationsAndCharts!$A173+$A$11,IF($C$7,8,0),1,1) -> 152.56 | F173: =OFFSET(InputPriceData!E$15,CalculationsAndCharts!$A173+$A$11,IF($C$7,8,0),1,1) -> 151.06 | G173: =OFFSET(InputPriceData!F$15,CalculationsAndCharts!$A173+$A$11,IF($C$7,8,0),1,1) -> 151.31 | O173: -0.9274321603 | P173: 0.9822110551 | Q173: 2.171365755 | R173: 0.4523471243 | S173: 0.9610796642 | W173: -0.9274321603 | X173: 0.9822110551 | Y173: 2.171365755 | Z173: 0.4523471243 | AA173: 0.7217538186
A174: 142 | B174: =OFFSET(InputPriceData!B$15,CalculationsAndCharts!$A174+$A$11,0,1,1) -> 2013-03-20 | C174: =OFFSET(InputPriceData!G$15,CalculationsAndCharts!$A174+$A$11,IF($C$7,8,0),1,1) -> 113759300 | D174: =OFFSET(InputPriceData!C$15,CalculationsAndCharts!$A174+$A$11,IF($C$7,8,0),1,1) -> 152.44 | E174: =OFFSET(InputPriceData!D$15,CalculationsAndCharts!$A174+$A$11,IF($C$7,8,0),1,1) -> 152.86 | F174: =OFFSET(InputPriceData!E$15,CalculationsAndCharts!$A174+$A$11,IF($C$7,8,0),1,1) -> 152.19 | G174: =OFFSET(InputPriceData!F$15,CalculationsAndCharts!$A174+$A$11,IF($C$7,8,0),1,1) -> 152.61 | O174: 0.5321071625 | P174: 1.198130967 | Q174: 2.191085525 | R174: 0.5468207211 | S174: 0.969628876 | W174: 0.5321071625 | X174: 1.198130967 | Y174: 2.191085525 | Z174: 0.5468207211 | AA174: 0.7768923804
A175: 143 | B175: =OFFSET(InputPriceData!B$15,CalculationsAndCharts!$A175+$A$11,0,1,1) -> 2013-03-19 | C175: =OFFSET(InputPriceData!G$15,CalculationsAndCharts!$A175+$A$11,IF($C$7,8,0),1,1) -> 167567300 | D175: =OFFSET(InputPriceData!C$15,CalculationsAndCharts!$A175+$A$11,IF($C$7,8,0),1,1) -> 152.23 | E175: =OFFSET(InputPriceData!D$15,CalculationsAndCharts!$A175+$A$11,IF($C$7,8,0),1,1) -> 152.43 | F175: =OFFSET(InputPriceData!E$15,CalculationsAndCharts!$A175+$A$11,IF($C$7,8,0),1,1) -> 150.55 | G175: =OFFSET(InputPriceData!F$15,CalculationsAndCharts!$A175+$A$11,IF($C$7,8,0),1,1) -> 151.55 | O175: -0.3422529391 | P175: 1.36283907 | Q175: 2.210984384 | R175: 0.6163947061 | S175: 0.9753269656 | W175: -0.3422529391 | X175: 1.36283907 | Y175: 2.210984384 | Z175: 0.6163947061 | AA175: 0.8153610197
A176: 144 | B176: =OFFSET(InputPriceData!B$15,CalculationsAndCharts!$A176+$A$11,0,1,1) -> 2013-03-18 | C176: =OFFSET(InputPriceData!G$15,CalculationsAndCharts!$A176+$A$11,IF($C$7,8,0),1,1) -> 126704300 | D176: =OFFSET(InputPriceData!C$15,CalculationsAndCharts!$A176+$A$11,IF($C$7,8,0),1,1) -> 151.29 | E176: =OFFSET(InputPriceData!D$15,CalculationsAndCharts!$A176+$A$11,IF($C$7,8,0),1,1) -> 152.57 | F176: =OFFSET(InputPriceData!E$15,CalculationsAndCharts!$A176+$A$11,IF($C$7,8,0),1,1) -> 151.16 | G176: =OFFSET(InputPriceData!F$15,CalculationsAndCharts!$A176+$A$11,IF($C$7,8,0),1,1) -> 151.91 | O176: 0.1880846246 | P176: 1.463449682 | Q176: 2.23106396 | R176: 0.6559425048 | S176: 0.9783659023 | W176: 0.1880846246 | X176: 1.463449682 | Y176: 2.23106396 | Z176: 0.6559425048 | AA176: 0.8364715954
A177: 145 | B177: =OFFSET(InputPriceData!B$15,CalculationsAndCharts!$A177+$A$11,0,1,1) -> 2013-03-15 | C177: =OFFSET(InputPriceData!G$15,CalculationsAndCharts!$A177+$A$11,IF($C$7,8,0),1,1) -> 138601100 | D177: =OFFSET(InputPriceData!C$15,CalculationsAndCharts!$A177+$A$11,IF($C$7,8,0),1,1) -> 152.77 | E177: =OFFSET(InputPriceData!D$15,CalculationsAndCharts!$A177+$A$11,IF($C$7,8,0),1,1) -> 152.96 | F177: =OFFSET(InputPriceData!E$15,CalculationsAndCharts!$A177+$A$11,IF($C$7,8,0),1,1) -> 152.24 | G177: =OFFSET(InputPriceData!F$15,CalculationsAndCharts!$A177+$A$11,IF($C$7,8,0),1,1) -> 152.75 | O177: 1.269383083 | P177: 1.430525997 | Q177: 2.251325893 | R177: 0.635414891 | S177: 0.9768056951 | W177: 1.269383083 | X177: 1.430525997 | Y177: 2.251325893 | Z177: 0.635414891 | AA177: 0.8255804471
A178: 146 | B178: =OFFSET(InputPriceData!B$15,CalculationsAndCharts!$A178+$A$11,0,1,1) -> 2013-03-14 | C178: =OFFSET(InputPriceData!G$15,CalculationsAndCharts!$A178+$A$11,IF($C$7,8,0),1,1) -> 126329900 | D178: =OFFSET(InputPriceData!C$15,CalculationsAndCharts!$A178+$A$11,IF($C$7,8,0),1,1) -> 152.54 | E178: =OFFSET(InputPriceData!D$15,CalculationsAndCharts!$A178+$A$11,IF($C$7,8,0),1,1) -> 153.02 | F178: =OFFSET(InputPriceData!E$15,CalculationsAndCharts!$A178+$A$11,IF($C$7,8,0),1,1) -> 152.15 | G178: =OFFSET(InputPriceData!F$15,CalculationsAndCharts!$A178+$A$11,IF($C$7,8,0),1,1) -> 152.95 | O178: 1.779147888 | P178: 1.292723801 | Q178: 2.271771839 | R178: 0.5690376908 | S178: 0.9714997261 | W178: 1.779147888 | X178: 1.292723801 | Y178: 2.271771839 | Z178: 0.5690376908 | AA178: 0.789366072
A179: 147 | B179: =OFFSET(InputPriceData!B$15,CalculationsAndCharts!$A179+$A$11,0,1,1) -> 2013-03-13 | C179: =OFFSET(InputPriceData!G$15,CalculationsAndCharts!$A179+$A$11,IF($C$7,8,0),1,1) -> 92550900 | D179: =OFFSET(InputPriceData!C$15,CalculationsAndCharts!$A179+$A$11,IF($C$7,8,0),1,1) -> 152 | E179: =OFFSET(InputPriceData!D$15,CalculationsAndCharts!$A179+$A$11,IF($C$7,8,0),1,1) -> 152.35 | F179: =OFFSET(InputPriceData!E$15,CalculationsAndCharts!$A179+$A$11,IF($C$7,8,0),1,1) -> 151.49 | G179: =OFFSET(InputPriceData!F$15,CalculationsAndCharts!$A179+$A$11,IF($C$7,8,0),1,1) -> 152.14 | O179: 1.276203494 | P179: 1.106379678 | Q179: 2.292403471 | R179: 0.4826286876 | S179: 0.9639303094 | W179: 1.276203494 | X179: 1.106379678 | Y179: 2.292403471 | Z179: 0.4826286876 | AA179: 0.7398077167
A180: 148 | B180: =OFFSET(InputPriceData!B$15,CalculationsAndCharts!$A180+$A$11,0,1,1) -> 2013-03-12 | C180: =OFFSET(InputPriceData!G$15,CalculationsAndCharts!$A180+$A$11,IF($C$7,8,0),1,1) -> 105755800 | D180: =OFFSET(InputPriceData!C$15,CalculationsAndCharts!$A180+$A$11,IF($C$7,8,0),1,1) -> 152.16 | E180: =OFFSET(InputPriceData!D$15,CalculationsAndCharts!$A180+$A$11,IF($C$7,8,0),1,1) -> 152.34 | F180: =OFFSET(InputPriceData!E$15,CalculationsAndCharts!$A180+$A$11,IF($C$7,8,0),1,1) -> 151.47 | G180: =OFFSET(InputPriceData!F$15,CalculationsAndCharts!$A180+$A$11,IF($C$7,8,0),1,1) -> 151.93 | O180: 1.351452304 | P180: 0.8677242567 | Q180: 2.313222473 | R180: 0.3751149174 | S180: 0.9532832325 | W180: 1.351452304 | X180: 0.8677242567 | Y180: 2.313222473 | Z180: 0.3751149174 | AA180: 0.6739860315
A181: 149 | B181: =OFFSET(InputPriceData!B$15,CalculationsAndCharts!$A181+$A$11,0,1,1) -> 2013-03-11 | C181: =OFFSET(InputPriceData!G$15,CalculationsAndCharts!$A181+$A$11,IF($C$7,8,0),1,1) -> 83746800 | D181: =OFFSET(InputPriceData!C$15,CalculationsAndCharts!$A181+$A$11,IF($C$7,8,0),1,1) -> 151.58 | E181: =OFFSET(InputPriceData!D$15,CalculationsAndCharts!$A181+$A$11,IF($C$7,8,0),1,1) -> 152.28 | F181: =OFFSET(InputPriceData!E$15,CalculationsAndCharts!$A181+$A$11,IF($C$7,8,0),1,1) -> 151.39 | G181: =OFFSET(InputPriceData!F$15,CalculationsAndCharts!$A181+$A$11,IF($C$7,8,0),1,1) -> 152.27 | O181: 2.006179843 | P181: 0.5505575991 | Q181: 2.334230548 | R181: 0.2358625628 | S181: 0.9369667267 | W181: 2.006179843 | X181: 0.5505575991 | Y181: 2.334230548 | Z181: 0.2358625628 | AA181: 0.5810439561
A182: 150 | B182: =OFFSET(InputPriceData!B$15,CalculationsAndCharts!$A182+$A$11,0,1,1) -> 2013-03-08 | C182: =OFFSET(InputPriceData!G$15,CalculationsAndCharts!$A182+$A$11,IF($C$7,8,0),1,1) -> 123477800 | D182: =OFFSET(InputPriceData!C$15,CalculationsAndCharts!$A182+$A$11,IF($C$7,8,0),1,1) -> 151.71 | E182: =OFFSET(InputPriceData!D$15,CalculationsAndCharts!$A182+$A$11,IF($C$7,8,0),1,1) -> 151.89 | F182: =OFFSET(InputPriceData!E$15,CalculationsAndCharts!$A182+$A$11,IF($C$7,8,0),1,1) -> 150.93 | G182: =OFFSET(InputPriceData!F$15,CalculationsAndCharts!$A182+$A$11,IF($C$7,8,0),1,1) -> 151.69 | O182: 1.755338563 | P182: 0.1950160368 | Q182: 2.355429412 | R182: 0.08279426068 | S182: 0.9146400115 | W182: 1.755338563 | X182: 0.1950160368 | Y182: 2.355429412 | Z182: 0.08279426068 | AA182: 0.467317769
A183: 151 | B183: =OFFSET(InputPriceData!B$15,CalculationsAndCharts!$A183+$A$11,0,1,1) -> 2013-03-07 | C183: =OFFSET(InputPriceData!G$15,CalculationsAndCharts!$A183+$A$11,IF($C$7,8,0),1,1) -> 86101400 | D183: =OFFSET(InputPriceData!C$15,CalculationsAndCharts!$A183+$A$11,IF($C$7,8,0),1,1) -> 150.97 | E183: =OFFSET(InputPriceData!D$15,CalculationsAndCharts!$A183+$A$11,IF($C$7,8,0),1,1) -> 151.25 | F183: =OFFSET(InputPriceData!E$15,CalculationsAndCharts!$A183+$A$11,IF($C$7,8,0),1,1) -> 150.8 | G183: =OFFSET(InputPriceData!F$15,CalculationsAndCharts!$A183+$A$11,IF($C$7,8,0),1,1) -> 151.05 | O183: 1.414801975 | P183: -0.1516769919 | Q183: 2.3768208 | R183: -0.0638150726 | S183: 0.8871363298 | W183: 1.414801975 | X183: -0.1516769919 | Y183: 2.3768208 | Z183: -0.0638150726 | AA183: 0.3449911823
A184: 152 | B184: =OFFSET(InputPriceData!B$15,CalculationsAndCharts!$A184+$A$11,0,1,1) -> 2013-03-06 | C184: =OFFSET(InputPriceData!G$15,CalculationsAndCharts!$A184+$A$11,IF($C$7,8,0),1,1) -> 94469900 | D184: =OFFSET(InputPriceData!C$15,CalculationsAndCharts!$A184+$A$11,IF($C$7,8,0),1,1) -> 151.11 | E184: =OFFSET(InputPriceData!D$15,CalculationsAndCharts!$A184+$A$11,IF($C$7,8,0),1,1) -> 151.19 | F184: =OFFSET(InputPriceData!E$15,CalculationsAndCharts!$A184+$A$11,IF($C$7,8,0),1,1) -> 150.45 | G184: =OFFSET(InputPriceData!F$15,CalculationsAndCharts!$A184+$A$11,IF($C$7,8,0),1,1) -> 150.78 | O184: 1.426697341 | P184: -0.4782887061 | Q184: 2.398406458 | R184: -0.1994193705 | S184: 0.8538225005 | W184: 1.426697341 | X184: -0.4782887061 | Y184: 2.398406458 | Z184: -0.1994193705 | AA184: 0.217967398
A185: 153 | B185: =OFFSET(InputPriceData!B$15,CalculationsAndCharts!$A185+$A$11,0,1,1) -> 2013-03-05 | C185: =OFFSET(InputPriceData!G$15,CalculationsAndCharts!$A185+$A$11,IF($C$7,8,0),1,1) -> 121431900 | D185: =OFFSET(InputPriceData!C$15,CalculationsAndCharts!$A185+$A$11,IF($C$7,8,0),1,1) -> 149.96 | E185: =OFFSET(InputPriceData!D$15,CalculationsAndCharts!$A185+$A$11,IF($C$7,8,0),1,1) -> 150.97 | F185: =OFFSET(InputPriceData!E$15,CalculationsAndCharts!$A185+$A$11,IF($C$7,8,0),1,1) -> 149.94 | G185: =OFFSET(InputPriceData!F$15,CalculationsAndCharts!$A185+$A$11,IF($C$7,8,0),1,1) -> 150.57 | O185: 1.499509906 | P185: -0.7535928677 | Q185: 2.420188151 | R185: -0.3113778023 | S185: 0.8178034563 | W185: 1.499509906 | X185: -0.7535928677 | Y185: 2.420188151 | Z185: -0.3113778023 | AA185: 0.1012305799
A186: 154 | B186: =OFFSET(InputPriceData!B$15,CalculationsAndCharts!$A186+$A$11,0,1,1) -> 2013-03-04 | C186: =OFFSET(InputPriceData!G$15,CalculationsAndCharts!$A186+$A$11,IF($C$7,8,0),1,1) -> 99010200 | D186: =OFFSET(InputPriceData!C$15,CalculationsAndCharts!$A186+$A$11,IF($C$7,8,0),1,1) -> 148.1 | E186: =OFFSET(InputPriceData!D$15,CalculationsAndCharts!$A186+$A$11,IF($C$7,8,0),1,1) -> 149.23 | F186: =OFFSET(InputPriceData!E$15,CalculationsAndCharts!$A186+$A$11,IF($C$7,8,0),1,1) -> 147.86 | G186: =OFFSET(InputPriceData!F$15,CalculationsAndCharts!$A186+$A$11,IF($C$7,8,0),1,1) -> 149.23 | O186: 0.3940646627 | P186: -0.9097570153 | Q186: 2.44216766 | R186: -0.3725202942 | S186: 0.7935226767 | W186: 0.3940646627 | X186: -0.9097570153 | Y186: 2.44216766 | Z186: -0.3725202942 | AA186: 0.03229138415
A187: 155 | B187: =OFFSET(InputPriceData!B$15,CalculationsAndCharts!$A187+$A$11,0,1,1) -> 2013-03-01 | C187: =OFFSET(InputPriceData!G$15,CalculationsAndCharts!$A187+$A$11,IF($C$7,8,0),1,1) -> 170634800 | D187: =OFFSET(InputPriceData!C$15,CalculationsAndCharts!$A187+$A$11,IF($C$7,8,0),1,1) -> 147.44 | E187: =OFFSET(InputPriceData!D$15,CalculationsAndCharts!$A187+$A$11,IF($C$7,8,0),1,1) -> 148.66 | F187: =OFFSET(InputPriceData!E$15,CalculationsAndCharts!$A187+$A$11,IF($C$7,8,0),1,1) -> 146.78 | G187: =OFFSET(InputPriceData!F$15,CalculationsAndCharts!$A187+$A$11,IF($C$7,8,0),1,1) -> 148.44 | O187: -0.2396616388 | P187: -0.9245221165 | Q187: 2.464346781 | R187: -0.3751590984 | S187: 0.7923839425 | W187: -0.2396616388 | X187: -0.9245221165 | Y187: 2.464346781 | Z187: -0.3751590984 | AA187: 0.02922677832
A188: 156 | B188: =OFFSET(InputPriceData!B$15,CalculationsAndCharts!$A188+$A$11,0,1,1) -> 2013-02-28 | C188: =OFFSET(InputPriceData!G$15,CalculationsAndCharts!$A188+$A$11,IF($C$7,8,0),1,1) -> 126866000 | D188: =OFFSET(InputPriceData!C$15,CalculationsAndCharts!$A188+$A$11,IF($C$7,8,0),1,1) -> 148.24 | E188: =OFFSET(InputPriceData!D$15,CalculationsAndCharts!$A188+$A$11,IF($C$7,8,0),1,1) -> 149.19 | F188: =OFFSET(InputPriceData!E$15,CalculationsAndCharts!$A188+$A$11,IF($C$7,8,0),1,1) -> 147.76 | G188: =OFFSET(InputPriceData!F$15,CalculationsAndCharts!$A188+$A$11,IF($C$7,8,0),1,1) -> 147.96 | O188: -0.6075470805 | P188: -0.8241264337 | Q188: 2.486727327 | R188: -0.3314100524 | S188: 0.810267732 | W188: -0.6075470805 | X188: -0.8241264337 | Y188: 2.486727327 | Z188: -0.3314100524 | AA188: 0.07907205753
A189: 157 | B189: =OFFSET(InputPriceData!B$15,CalculationsAndCharts!$A189+$A$11,0,1,1) -> 2013-02-27 | C189: =OFFSET(InputPriceData!G$15,CalculationsAndCharts!$A189+$A$11,IF($C$7,8,0),1,1) -> 150781900 | D189: =OFFSET(InputPriceData!C$15,CalculationsAndCharts!$A189+$A$11,IF($C$7,8,0),1,1) -> 146.28 | E189: =OFFSET(InputPriceData!D$15,CalculationsAndCharts!$A189+$A$11,IF($C$7,8,0),1,1) -> 148.66 | F189: =OFFSET(InputPriceData!E$15,CalculationsAndCharts!$A189+$A$11,IF($C$7,8,0),1,1) -> 146.15 | G189: =OFFSET(InputPriceData!F$15,CalculationsAndCharts!$A189+$A$11,IF($C$7,8,0),1,1) -> 148.25 | O189: -0.2029849121 | P189: -0.6182351865 | Q189: 2.509311127 | R189: -0.2463764576 | S189: 0.8398511353 | W189: -0.2029849121 | X189: -0.6182351865 | Y189: 2.509311127 | Z189: -0.2463764576 | AA189: 0.1704183724
A190: 158 | B190: =OFFSET(InputPriceData!B$15,CalculationsAndCharts!$A190+$A$11,0,1,1) -> 2013-02-26 | C190: =OFFSET(InputPriceData!G$15,CalculationsAndCharts!$A190+$A$11,IF($C$7,8,0),1,1) -> 186596200 | D190: =OFFSET(InputPriceData!C$15,CalculationsAndCharts!$A190+$A$11,IF($C$7,8,0),1,1) -> 146.11 | E190: =OFFSET(InputPriceData!D$15,CalculationsAndCharts!$A190+$A$11,IF($C$7,8,0),1,1) -> 146.58 | F190: =OFFSET(InputPriceData!E$15,CalculationsAndCharts!$A190+$A$11,IF($C$7,8,0),1,1) -> 145.14 | G190: =OFFSET(InputPriceData!F$15,CalculationsAndCharts!$A190+$A$11,IF($C$7,8,0),1,1) -> 146.4 | O190: -1.998746399 | P190: -0.2709550396 | Q190: 2.532100027 | R190: -0.1070080316 | S190: 0.8775017278 | W190: -1.998746399 | X190: -0.2709550396 | Y190: 2.532100027 | Z190: -0.1070080316 | AA190: 0.3060937649
A191: 159 | B191: =OFFSET(InputPriceData!B$15,CalculationsAndCharts!$A191+$A$11,0,1,1) -> 2013-02-25 | C191: =OFFSET(InputPriceData!G$15,CalculationsAndCharts!$A191+$A$11,IF($C$7,8,0),1,1) -> 245824800 | D191: =OFFSET(InputPriceData!C$15,CalculationsAndCharts!$A191+$A$11,IF($C$7,8,0),1,1) -> 148.95 | E191: =OFFSET(InputPriceData!D$15,CalculationsAndCharts!$A191+$A$11,IF($C$7,8,0),1,1) -> 149.18 | F191: =OFFSET(InputPriceData!E$15,CalculationsAndCharts!$A191+$A$11,IF($C$7,8,0),1,1) -> 145.41 | G191: =OFFSET(InputPriceData!F$15,CalculationsAndCharts!$A191+$A$11,IF($C$7,8,0),1,1) -> 145.41 | O191: -3.057762106 | P191: 0.1683000241 | Q191: 2.55509589 | R191: 0.06586837883 | S191: 0.911814604 | W191: -3.057762106 | X191: 0.1683000241 | Y191: 2.55509589 | Z191: 0.06586837883 | AA191: 0.4539090768
A192: 160 | B192: =OFFSET(InputPriceData!B$15,CalculationsAndCharts!$A192+$A$11,0,1,1) -> 2013-02-22 | C192: =OFFSET(InputPriceData!G$15,CalculationsAndCharts!$A192+$A$11,IF($C$7,8,0),1,1) -> 106356600 | D192: =OFFSET(InputPriceData!C$15,CalculationsAndCharts!$A192+$A$11,IF($C$7,8,0),1,1) -> 147.51 | E192: =OFFSET(InputPriceData!D$15,CalculationsAndCharts!$A192+$A$11,IF($C$7,8,0),1,1) -> 148.23 | F192: =OFFSET(InputPriceData!E$15,CalculationsAndCharts!$A192+$A$11,IF($C$7,8,0),1,1) -> 146.86 | G192: =OFFSET(InputPriceData!F$15,CalculationsAndCharts!$A192+$A$11,IF($C$7,8,0),1,1) -> 148.23 | O192: -0.2238033243 | P192: 0.5209872373 | Q192: 2.578300596 | R192: 0.2020661354 | S192: 0.9324848808 | W192: -0.2238033243 | X192: 0.5209872373 | Y192: 2.578300596 | Z192: 0.2020661354 | AA192: 0.5570423754
A193: 161 | B193: =OFFSET(InputPriceData!B$15,CalculationsAndCharts!$A193+$A$11,0,1,1) -> 2013-02-21 | C193: =OFFSET(InputPriceData!G$15,CalculationsAndCharts!$A193+$A$11,IF($C$7,8,0),1,1) -> 183257000 | D193: =OFFSET(InputPriceData!C$15,CalculationsAndCharts!$A193+$A$11,IF($C$7,8,0),1,1) -> 147.32 | E193: =OFFSET(InputPriceData!D$15,CalculationsAndCharts!$A193+$A$11,IF($C$7,8,0),1,1) -> 147.77 | F193: =OFFSET(InputPriceData!E$15,CalculationsAndCharts!$A193+$A$11,IF($C$7,8,0),1,1) -> 146.32 | G193: =OFFSET(InputPriceData!F$15,CalculationsAndCharts!$A193+$A$11,IF($C$7,8,0),1,1) -> 146.79 | O193: -1.581755974 | P193: 0.8045801137 | Q193: 2.60171604 | R193: 0.3092497803 | S193: 0.9459644201 | W193: -1.581755974 | X193: 0.8045801137 | Y193: 2.60171604 | Z193: 0.3092497803 | AA193: 0.6311736547
A194: 162 | B194: =OFFSET(InputPriceData!B$15,CalculationsAndCharts!$A194+$A$11,0,1,1) -> 2013-02-20 | C194: =OFFSET(InputPriceData!G$15,CalculationsAndCharts!$A194+$A$11,IF($C$7,8,0),1,1) -> 160574800 | D194: =OFFSET(InputPriceData!C$15,CalculationsAndCharts!$A194+$A$11,IF($C$7,8,0),1,1) -> 149.45 | E194: =OFFSET(InputPriceData!D$15,CalculationsAndCharts!$A194+$A$11,IF($C$7,8,0),1,1) -> 149.5 | F194: =OFFSET(InputPriceData!E$15,CalculationsAndCharts!$A194+$A$11,IF($C$7,8,0),1,1) -> 147.61 | G194: =OFFSET(InputPriceData!F$15,CalculationsAndCharts!$A194+$A$11,IF($C$7,8,0),1,1) -> 147.69 | O194: -0.6151193969 | P194: 1.036422073 | Q194: 2.625344137 | R194: 0.3947757015 | S194: 0.9553438255 | W194: -0.6151193969 | X194: 1.036422073 | Y194: 2.625344137 | Z194: 0.3947757015 | AA194: 0.6863879825
A195: 163 | B195: =OFFSET(InputPriceData!B$15,CalculationsAndCharts!$A195+$A$11,0,1,1) -> 2013-02-19 | C195: =OFFSET(InputPriceData!G$15,CalculationsAndCharts!$A195+$A$11,IF($C$7,8,0),1,1) -> 95105400 | D195: =OFFSET(InputPriceData!C$15,CalculationsAndCharts!$A195+$A$11,IF($C$7,8,0),1,1) -> 148.7 | E195: =OFFSET(InputPriceData!D$15,CalculationsAndCharts!$A195+$A$11,IF($C$7,8,0),1,1) -> 149.59 | F195: =OFFSET(InputPriceData!E$15,CalculationsAndCharts!$A195+$A$11,IF($C$7,8,0),1,1) -> 148.5 | G195: =OFFSET(InputPriceData!F$15,CalculationsAndCharts!$A195+$A$11,IF($C$7,8,0),1,1) -> 149.56 | O195: 1.457205056 | P195: 1.134899496 | Q195: 2.649186819 | R195: 0.4283954186 | S195: 0.9587454688 | W195: 1.457205056 | X195: 1.134899496 | Y195: 2.649186819 | Z195: 0.4283954186 | AA195: 0.7072093247
A196: 164 | B196: =OFFSET(InputPriceData!B$15,CalculationsAndCharts!$A196+$A$11,0,1,1) -> 2013-02-15 | C196: =OFFSET(InputPriceData!G$15,CalculationsAndCharts!$A196+$A$11,IF($C$7,8,0),1,1) -> 215226500 | D196: =OFFSET(InputPriceData!C$15,CalculationsAndCharts!$A196+$A$11,IF($C$7,8,0),1,1) -> 148.75 | E196: =OFFSET(InputPriceData!D$15,CalculationsAndCharts!$A196+$A$11,IF($C$7,8,0),1,1) -> 148.91 | F196: =OFFSET(InputPriceData!E$15,CalculationsAndCharts!$A196+$A$11,IF($C$7,8,0),1,1) -> 147.89 | G196: =OFFSET(InputPriceData!F$15,CalculationsAndCharts!$A196+$A$11,IF($C$7,8,0),1,1) -> 148.44 | O196: 0.5917220875 | P196: 1.200501311 | Q196: 2.673246033 | R196: 0.4490799934 | S196: 0.9607654896 | W196: 0.5917220875 | X196: 1.200501311 | Y196: 2.673246033 | Z196: 0.4490799934 | AA196: 0.719783793
A197: 165 | B197: =OFFSET(InputPriceData!B$15,CalculationsAndCharts!$A197+$A$11,0,1,1) -> 2013-02-14 | C197: =OFFSET(InputPriceData!G$15,CalculationsAndCharts!$A197+$A$11,IF($C$7,8,0),1,1) -> 80834300 | D197: =OFFSET(InputPriceData!C$15,CalculationsAndCharts!$A197+$A$11,IF($C$7,8,0),1,1) -> 148.03 | E197: =OFFSET(InputPriceData!D$15,CalculationsAndCharts!$A197+$A$11,IF($C$7,8,0),1,1) -> 148.8 | F197: =OFFSET(InputPriceData!E$15,CalculationsAndCharts!$A197+$A$11,IF($C$7,8,0),1,1) -> 147.87 | G197: =OFFSET(InputPriceData!F$15,CalculationsAndCharts!$A197+$A$11,IF($C$7,8,0),1,1) -> 148.62 | O197: 1.004318878 | P197: 1.28110363 | Q197: 2.697523747 | R197: 0.4749183881 | S197: 0.9632148069 | W197: 1.004318878 | X197: 1.28110363 | Y197: 2.697523747 | Z197: 0.4749183881 | AA197: 0.7352457059
A198: 166 | B198: =OFFSET(InputPriceData!B$15,CalculationsAndCharts!$A198+$A$11,0,1,1) -> 2013-02-13 | C198: =OFFSET(InputPriceData!G$15,CalculationsAndCharts!$A198+$A$11,IF($C$7,8,0),1,1) -> 82322600 | D198: =OFFSET(InputPriceData!C$15,CalculationsAndCharts!$A198+$A$11,IF($C$7,8,0),1,1) -> 148.66 | E198: =OFFSET(InputPriceData!D$15,CalculationsAndCharts!$A198+$A$11,IF($C$7,8,0),1,1) -> 148.93 | F198: =OFFSET(InputPriceData!E$15,CalculationsAndCharts!$A198+$A$11,IF($C$7,8,0),1,1) -> 148.06 | G198: =OFFSET(InputPriceData!F$15,CalculationsAndCharts!$A198+$A$11,IF($C$7,8,0),1,1) -> 148.48 | O198: 1.118484181 | P198: 1.347265968 | Q198: 2.722021944 | R198: 0.4949504432 | S198: 0.9650594853 | W198: 1.118484181 | X198: 1.347265968 | Y198: 2.722021944 | Z198: 0.4949504432 | AA198: 0.7470494589
A199: 167 | B199: =OFFSET(InputPriceData!B$15,CalculationsAndCharts!$A199+$A$11,0,1,1) -> 2013-02-12 | C199: =OFFSET(InputPriceData!G$15,CalculationsAndCharts!$A199+$A$11,IF($C$7,8,0),1,1) -> 65392700 | D199: =OFFSET(InputPriceData!C$15,CalculationsAndCharts!$A199+$A$11,IF($C$7,8,0),1,1) -> 148.13 | E199: =OFFSET(InputPriceData!D$15,CalculationsAndCharts!$A199+$A$11,IF($C$7,8,0),1,1) -> 148.63 | F199: =OFFSET(InputPriceData!E$15,CalculationsAndCharts!$A199+$A$11,IF($C$7,8,0),1,1) -> 147.96 | G199: =OFFSET(InputPriceData!F$15,CalculationsAndCharts!$A199+$A$11,IF($C$7,8,0),1,1) -> 148.36 | O199: 1.261870056 | P199: 1.41521097 | Q199: 2.746742628 | R199: 0.515232463 | S199: 0.9668808851 | W199: 1.261870056 | X199: 1.41521097 | Y199: 2.746742628 | Z199: 0.515232463 | AA199: 0.7588407148
A200: 168 | B200: =OFFSET(InputPriceData!B$15,CalculationsAndCharts!$A200+$A$11,0,1,1) -> 2013-02-11 | C200: =OFFSET(InputPriceData!G$15,CalculationsAndCharts!$A200+$A$11,IF($C$7,8,0),1,1) -> 73775000 | D200: =OFFSET(InputPriceData!C$15,CalculationsAndCharts!$A200+$A$11,IF($C$7,8,0),1,1) -> 148.08 | E200: =OFFSET(InputPriceData!D$15,CalculationsAndCharts!$A200+$A$11,IF($C$7,8,0),1,1) -> 148.24 | F200: =OFFSET(InputPriceData!E$15,CalculationsAndCharts!$A200+$A$11,IF($C$7,8,0),1,1) -> 147.74 | G200: =OFFSET(InputPriceData!F$15,CalculationsAndCharts!$A200+$A$11,IF($C$7,8,0),1,1) -> 148.11 | O200: 1.280003035 | P200: 1.493430338 | Q200: 2.771687818 | R200: 0.5388162144 | S200: 0.9689424849 | W200: 1.280003035 | X200: 1.493430338 | Y200: 2.771687818 | Z200: 0.5388162144 | AA200: 0.7723535648
A201: 169 | B201: =OFFSET(InputPriceData!B$15,CalculationsAndCharts!$A201+$A$11,0,1,1) -> 2013-02-08 | C201: =OFFSET(InputPriceData!G$15,CalculationsAndCharts!$A201+$A$11,IF($C$7,8,0),1,1) -> 103133700 | D201: =OFFSET(InputPriceData!C$15,CalculationsAndCharts!$A201+$A$11,IF($C$7,8,0),1,1) -> 147.57 | E201: =OFFSET(InputPriceData!D$15,CalculationsAndCharts!$A201+$A$11,IF($C$7,8,0),1,1) -> 148.23 | F201: =OFFSET(InputPriceData!E$15,CalculationsAndCharts!$A201+$A$11,IF($C$7,8,0),1,1) -> 147.57 | G201: =OFFSET(InputPriceData!F$15,CalculationsAndCharts!$A201+$A$11,IF($C$7,8,0),1,1) -> 148.14 | O201: 1.590045931 | P201: 1.587983218 | Q201: 2.796859554 | R201: 0.5677736714 | S201: 0.9713946138 | W201: 1.590045931 | X201: 1.587983218 | Y201: 2.796859554 | Z201: 0.5677736714 | AA201: 0.788661237
A202: 170 | B202: =OFFSET(InputPriceData!B$15,CalculationsAndCharts!$A202+$A$11,0,1,1) -> 2013-02-07 | C202: =OFFSET(InputPriceData!G$15,CalculationsAndCharts!$A202+$A$11,IF($C$7,8,0),1,1) -> 162490000 | D202: =OFFSET(InputPriceData!C$15,CalculationsAndCharts!$A202+$A$11,IF($C$7,8,0),1,1) -> 147.56 | E202: =OFFSET(InputPriceData!D$15,CalculationsAndCharts!$A202+$A$11,IF($C$7,8,0),1,1) -> 147.7 | F202: =OFFSET(InputPriceData!E$15,CalculationsAndCharts!$A202+$A$11,IF($C$7,8,0),1,1) -> 146.25 | G202: =OFFSET(InputPriceData!F$15,CalculationsAndCharts!$A202+$A$11,IF($C$7,8,0),1,1) -> 147.32 | O202: 1.036560239 | P202: 1.716571678 | Q202: 2.822259893 | R202: 0.6082259404 | S202: 0.9746818397 | W202: 1.036560239 | X202: 1.716571678 | Y202: 2.822259893 | Z202: 0.6082259404 | AA202: 0.8109335999
A203: 171 | B203: =OFFSET(InputPriceData!B$15,CalculationsAndCharts!$A203+$A$11,0,1,1) -> 2013-02-06 | C203: =OFFSET(InputPriceData!G$15,CalculationsAndCharts!$A203+$A$11,IF($C$7,8,0),1,1) -> 138762800 | D203: =OFFSET(InputPriceData!C$15,CalculationsAndCharts!$A203+$A$11,IF($C$7,8,0),1,1) -> 146.9 | E203: =OFFSET(InputPriceData!D$15,CalculationsAndCharts!$A203+$A$11,IF($C$7,8,0),1,1) -> 147.62 | F203: =OFFSET(InputPriceData!E$15,CalculationsAndCharts!$A203+$A$11,IF($C$7,8,0),1,1) -> 146.79 | G203: =OFFSET(InputPriceData!F$15,CalculationsAndCharts!$A203+$A$11,IF($C$7,8,0),1,1) -> 147.52 | O203: 1.496366216 | P203: 1.867391241 | Q203: 2.847890912 | R203: 0.6557102428 | S203: 0.9783484519 | W203: 1.496366216 | X203: 1.867391241 | Y203: 2.847890912 | Z203: 0.6557102428 | AA203: 0.8363491588
A204: 172 | B204: =OFFSET(InputPriceData!B$15,CalculationsAndCharts!$A204+$A$11,0,1,1) -> 2013-02-05 | C204: =OFFSET(InputPriceData!G$15,CalculationsAndCharts!$A204+$A$11,IF($C$7,8,0),1,1) -> 113912400 | D204: =OFFSET(InputPriceData!C$15,CalculationsAndCharts!$A204+$A$11,IF($C$7,8,0),1,1) -> 146.73 | E204: =OFFSET(InputPriceData!D$15,CalculationsAndCharts!$A204+$A$11,IF($C$7,8,0),1,1) -> 147.83 | F204: =OFFSET(InputPriceData!E$15,CalculationsAndCharts!$A204+$A$11,IF($C$7,8,0),1,1) -> 146.67 | G204: =OFFSET(InputPriceData!F$15,CalculationsAndCharts!$A204+$A$11,IF($C$7,8,0),1,1) -> 147.41 | O204: 1.671572065 | P204: 2.028522342 | Q204: 2.873754704 | R204: 0.7058787374 | S204: 0.9820141316 | W204: 1.671572065 | X204: 2.028522342 | Y204: 2.873754704 | Z204: 0.7058787374 | AA204: 0.8623834742
A205: 173 | B205: =OFFSET(InputPriceData!B$15,CalculationsAndCharts!$A205+$A$11,0,1,1) -> 2013-02-04 | C205: =OFFSET(InputPriceData!G$15,CalculationsAndCharts!$A205+$A$11,IF($C$7,8,0),1,1) -> 159073600 | D205: =OFFSET(InputPriceData!C$15,CalculationsAndCharts!$A205+$A$11,IF($C$7,8,0),1,1) -> 146.7 | E205: =OFFSET(InputPriceData!D$15,CalculationsAndCharts!$A205+$A$11,IF($C$7,8,0),1,1) -> 147.63 | F205: =OFFSET(InputPriceData!E$15,CalculationsAndCharts!$A205+$A$11,IF($C$7,8,0),1,1) -> 145.83 | G205: =OFFSET(InputPriceData!F$15,CalculationsAndCharts!$A205+$A$11,IF($C$7,8,0),1,1) -> 145.94 | O205: 0.4371118714 | P205: 2.224998306 | Q205: 2.899853384 | R205: 0.7672795865 | S205: 0.9862340546 | W205: 0.4371118714 | X205: 2.224998306 | Y205: 2.899853384 | Z205: 0.7672795865 | AA205: 0.8931586321
A206: 174 | B206: =OFFSET(InputPriceData!B$15,CalculationsAndCharts!$A206+$A$11,0,1,1) -> 2013-02-01 | C206: =OFFSET(InputPriceData!G$15,CalculationsAndCharts!$A206+$A$11,IF($C$7,8,0),1,1) -> 131173000 | D206: =OFFSET(InputPriceData!C$15,CalculationsAndCharts!$A206+$A$11,IF($C$7,8,0),1,1) -> 147.02 | E206: =OFFSET(InputPriceData!D$15,CalculationsAndCharts!$A206+$A$11,IF($C$7,8,0),1,1) -> 147.78 | F206: =OFFSET(InputPriceData!E$15,CalculationsAndCharts!$A206+$A$11,IF($C$7,8,0),1,1) -> 146.77 | G206: =OFFSET(InputPriceData!F$15,CalculationsAndCharts!$A206+$A$11,IF($C$7,8,0),1,1) -> 147.6 | O206: 2.360854711 | P206: 2.387126235 | Q206: 2.926189086 | R206: 0.8157798982 | S206: 0.9893772403 | W206: 2.360854711 | X206: 2.387126235 | Y206: 2.926189086 | Z206: 0.8157798982 | AA206: 0.9166620942
... 2626 more rows
